Workbook

Sheet Title
C1: CENTERS FOR DISEASE CONTROL & PREVENTION (CDC)
H3: Maxi-Vac 2.0*
A4: A tool for planning smallpox vaccination clinics and mass vaccination sites
A6: Contributors to the Spreadsheet Adaptation: Castonguay, François M.; Fischer, Leah S.; Jeon, S; Washington, Michael L.; Meltzer, Martin I.
A9: Date of this version:
A10: 2021-10-08
G16: Contact Info: HEMU@cdc.gov

Sheet Introduction
A1: Introduction
C3: About the Tool | L3: Navigation and Instructions
N5: Click the arrow buttons on the upper right corner to navigate through the tool.
L7: User Input | N7: Peach-colored cells are designated user input cells in which users will select from a drop down menu or enter a value. There are four peach/user input cells in this tool.
C8: Background
L9: Calculated, fixed, or linked cell | N9: Grey cells contain formula, calculated values, or fixed factors; they are automatically updated based on user entries in the yellow cells.
L11: Pop-up box | N11: Bright yellow buttons are for pop-up boxes on tabs 1-4 that contain additional information or helpful hints regarding variables user inputs.
C12: Description of the Simulation Model
L13: Pop-up box | N13: Red buttons are for pop-up boxes on tabs 5-7 that contain interpretation for results.
C16: How to Choose Between Maxi-Vac and Maxi-Vac Alternative
C22: Data Sources
C26: Additional Reference

Sheet 1. Personnel
A1: 1. Select the number of staff available per 12-hour shift
B9: Number of shifts per 24-hour period (cannot be changed): | I9: 2
B11: Select number of physicians per shift from pulldown menu: | I11: 9
B13: Select number of nurses per shift from pulldown menu: | I13: 45
B15: Select number of other staff per shift from pulldown menu: | I15: 5
B18: Total Staff
B19: Total number of physicians in a 24-hour period: | I19: =I11*I9 -> 18
B21: Total number of nurses in a 24-hour period: | I21: =I13*I9 -> 90
B23: Total number of other staff in a 24-hour period: | I23: =I15*I9 -> 10
B25: Total staff in a 24-hour period: | I25: =I19+I21+I23 -> 118

Sheet 2. Activities
A1: 2. Indicate the size of the orientation room
I4: Dropdown menu options
G6: Activities that cannot be opt out of | I6: Yes | K6: Nb of shifts | L6: 2
G8: Size of orientation room | I8: 30
B10: Select orientation room size from pulldown menu: | E10: 30 | G10: Number of physicians | I10: 1 | J10: 3 | K10: 5 | L10: 9
G12: Number of nurses | I12: 15 | J12: 30 | K12: 45
G14: Number of other staff | I14: 5 | J14: 10 | K14: 15
G16: Orientation room size | I16: 30 | J16: 75
G20: Percentage of families | I20: 0.02 | J20: 0.02 | K20: 0.1 | L20: 0.1

Sheet 3. % of Families
A1: 3. Percentages of families
B8: Percentage of families turned away at triage: | I8: 0.02
B10: Percentage of families that need to be treated elsewhere: | I10: 0.02
B12: Percentage of families sent to medical screeners: | I12: 0.1
B14: Percentage of families to see physician evaluator: | I14: 0.1

Sheet 4. Scenario Summary
A1: 4. Scenario Summary
B3: Number of physicians per shift: | E3: =IF('1. Personnel'!I11=0,"*ERROR*",'1. Personnel'!I11) -> 9
B4: Number of nurses per shift: | E4: =IF('1. Personnel'!I13=0,"*ERROR*",'1. Personnel'!I13) -> 45 | I4: Dropdown menu options
B5: Number of other staff per shift: | E5: =IF('1. Personnel'!I15=0,"*ERROR*",'1. Personnel'!I15) -> 5
B6: Total staff per shift | E6: =E3+E4+E5 -> 59 | G6: Activities that cannot be opt out of | I6: Yes
B8: Total staff per 24 hours | E8: ='1. Personnel'!I9*'4. Scenario Summary'!E6 -> 118 | G8: Size of orientation room | I8: 30
G10: Number of physicians | I10: 1 | J10: 3 | K10: 5 | L10: 9
C11: Chosen size of orientation room:
E12: =IF('2. Activities'!E10=0,"*ERROR*",'2. Activities'!E10) -> 30 | G12: Number of nurses | I12: 15 | J12: 30 | K12: 45
G14: Number of other staff | I14: 5 | J14: 10 | K14: 15
G16: Orientation room size | I16: 30 | J16: 75
G20: Percentage of families | I20: 0.02 | J20: 0.02 | K20: 0.1 | L20: 0.1

Sheet 5. Results – Vaccinated & Staff
A1: 5. Results for People Treated & Staff Placement and Utilization
B3: Total number of staff available per shift: | E3: ='Results INDEX-MATCH'!F10 -> 59
B4: Actual number of staff used per shift: | E4: ='Results INDEX-MATCH'!F12 -> 29
B5: Maximum number of people that can be treated in a 24-hour period: | E5: ='Results INDEX-MATCH'!F11 -> 3369
B7: Optimal Staff Placement by Station per Shift | G7: Staff Utilization (Percentage of Time Busy) per Shift
B8: Station Description | C8: Physicians | D8: Nurses | E8: Other Staff | G8: Station Description | H8: Physicians | I8: Nurses | J8: Other Staff
B9: Triage personnel | C9: ='Results INDEX-MATCH'!C16 -> 0 | D9: ='Results INDEX-MATCH'!D16 -> 3 | E9: ='Results INDEX-MATCH'!E16 -> 0 | G9: Triage personnel | H9: ='Results INDEX-MATCH'!C31 -> 0 | I9: ='Results INDEX-MATCH'!D31 -> 99.7 | J9: ='Results INDEX-MATCH'!E31 -> 0
B10: Orientation personnel | C10: ='Results INDEX-MATCH'!C17 -> 0 | D10: ='Results INDEX-MATCH'!D17 -> 0 | E10: ='Results INDEX-MATCH'!E17 -> 2 | G10: Orientation personnel | H10: ='Results INDEX-MATCH'!C32 -> 0 | I10: ='Results INDEX-MATCH'!D32 -> 0 | J10: ='Results INDEX-MATCH'!E32 -> 94.8
B11: Medical form helper | C11: ='Results INDEX-MATCH'!C18 -> 0 | D11: ='Results INDEX-MATCH'!D18 -> 0 | E11: ='Results INDEX-MATCH'!E18 -> 1 | G11: Medical form helper | H11: ='Results INDEX-MATCH'!C33 -> 0 | I11: ='Results INDEX-MATCH'!D33 -> 0 | J11: ='Results INDEX-MATCH'!E33 -> 4.6
B12: Referral personnel | C12: ='Results INDEX-MATCH'!C19 -> 0 | D12: ='Results INDEX-MATCH'!D19 -> 0 | E12: ='Results INDEX-MATCH'!E19 -> 2 | G12: Referral personnel | H12: ='Results INDEX-MATCH'!C34 -> 0 | I12: ='Results INDEX-MATCH'!D34 -> 0 | J12: ='Results INDEX-MATCH'!E34 -> 64.9
B13: Medical screener | C13: ='Results INDEX-MATCH'!C20 -> 0 | D13: ='Results INDEX-MATCH'!D20 -> 5 | E13: ='Results INDEX-MATCH'!E20 -> 0 | G13: Medical screener | H13: ='Results INDEX-MATCH'!C35 -> 0 | I13: ='Results INDEX-MATCH'!D35 -> 47.3 | J13: ='Results INDEX-MATCH'!E35 -> 0
B14: Physician evaluator | C14: ='Results INDEX-MATCH'!C21 -> 2 | D14: ='Results INDEX-MATCH'!D21 -> 0 | E14: ='Results INDEX-MATCH'!E21 -> 0 | G14: Physician evaluator | H14: ='Results INDEX-MATCH'!C36 -> 11.4 | I14: ='Results INDEX-MATCH'!D36 -> 0 | J14: ='Results INDEX-MATCH'!E36 -> 0
B15: Vaccinator | C15: ='Results INDEX-MATCH'!C22 -> 0 | D15: ='Results INDEX-MATCH'!D22 -> 6 | E15: ='Results INDEX-MATCH'!E22 -> 0 | G15: Vaccinator | H15: ='Results INDEX-MATCH'!C37 -> 0 | I15: ='Results INDEX-MATCH'!D37 -> 45.7 | J15: ='Results INDEX-MATCH'!E37 -> 0
B16: Witness | C16: ='Results INDEX-MATCH'!C23 -> 0 | D16: ='Results INDEX-MATCH'!D23 -> 6 | E16: ='Results INDEX-MATCH'!E23 -> 0 | G16: Witness | H16: ='Results INDEX-MATCH'!C38 -> 0 | I16: ='Results INDEX-MATCH'!D38 -> 45.7 | J16: ='Results INDEX-MATCH'!E38 -> 0
B17: Exit review Personnel | C17: ='Results INDEX-MATCH'!C24 -> 0 | D17: ='Results INDEX-MATCH'!D24 -> 2 | E17: ='Results INDEX-MATCH'!E24 -> 0 | G17: Exit review Personnel | H17: ='Results INDEX-MATCH'!C39 -> 0 | I17: ='Results INDEX-MATCH'!D39 -> 53 | J17: ='Results INDEX-MATCH'!E39 -> 0
B18: Total | C18: =SUM(C9:C17) -> 2 | D18: =SUM(D9:D17) -> 22 | E18: =SUM(E9:E17) -> 5

Sheet 6. Results – Time & Auxiliary
A1: 6. Results for Average Time Spent & Auxiliary Staff
B3: Average Time Families Spent at Each Station (in Minutes) | E3: Auxiliary Staff
E4: Station Description | F4: Number per shift
B5: Station Description | C5: Average time (in minutes) | E5: Form distribution | F5: 9
B6: Triage | C6: ='Results INDEX-MATCH'!C76 -> 4.271 | E6: Vaccine preparation | F6: 2
B7: Orientation | C7: ='Results INDEX-MATCH'!C77 -> 33.972 | E7: Medical records data | F7: 10
B8: Medical froms help | C8: ='Results INDEX-MATCH'!C78 -> 3.909 | E8: Clinic manager | F8: 2
B9: Referral | C9: ='Results INDEX-MATCH'!C79 -> 3.807 | E9: Supply manager | F9: 2
B10: Medical screening | C10: ='Results INDEX-MATCH'!C80 -> 37.683 | E10: Clinic QA reviewer | F10: 4
B11: Physician evaluation | C11: ='Results INDEX-MATCH'!C81 -> 36.573 | E11: Security | F11: 20
B12: Vaccination | C12: ='Results INDEX-MATCH'!C82 -> 4.285 | E12: Traffic flow | F12: 2
B13: Witness | C13: ='Results INDEX-MATCH'!C83 -> 4.285 | E13: Translator | F13: 1 (per major language)
B14: Review/Exit | C14: ='Results INDEX-MATCH'!C84 -> 3.944 | E14: Float staff | F14: 3
E15: Contact evaluation | F15: 4
E16: EMT | F16: 1
E17: IT support | F17: 1
E18: Total | F18: =SUM(F5:F12)+SUM(F14:F17)+1 -> 61
N27: `

Sheet 7. Results – Adding & Removing
A1: 7. Results for Impact/Minus One & Impact/Plus One
B3: Impact on the Number of People Treated by Removing One Staff per Station per Shift | G3: Impact on the Number of People Treated by Adding One Staff per Station per Shift
B5: Station Description | C5: Physicians | D5: Nurses | E5: Other Staff | G5: Station Description | H5: Physicians | I5: Nurses | J5: Other Staff
B6: Triage | C6: ='Results INDEX-MATCH'!C61 -> 0 | D6: ='Results INDEX-MATCH'!D61 -> -1110 | E6: ='Results INDEX-MATCH'!E61 -> 0 | G6: Triage | H6: ='Results INDEX-MATCH'!C46 -> 0 | I6: ='Results INDEX-MATCH'!D46 -> 141 | J6: ='Results INDEX-MATCH'!E46 -> 0
B7: Orientation | C7: ='Results INDEX-MATCH'!C62 -> 0 | D7: ='Results INDEX-MATCH'!D62 -> 0 | E7: ='Results INDEX-MATCH'!E62 -> -1614 | G7: Orientation | H7: ='Results INDEX-MATCH'!C47 -> 0 | I7: ='Results INDEX-MATCH'!D47 -> 0 | J7: ='Results INDEX-MATCH'!E47 -> 8
B8: Medical froms help | C8: ='Results INDEX-MATCH'!C63 -> 0 | D8: ='Results INDEX-MATCH'!D63 -> 0 | E8: ='Results INDEX-MATCH'!E63 -> na | G8: Medical froms help | H8: ='Results INDEX-MATCH'!C48 -> 0 | I8: ='Results INDEX-MATCH'!D48 -> 0 | J8: ='Results INDEX-MATCH'!E48 -> -2
B9: Referral | C9: ='Results INDEX-MATCH'!C64 -> 0 | D9: ='Results INDEX-MATCH'!D64 -> 0 | E9: ='Results INDEX-MATCH'!E64 -> -1 | G9: Referral | H9: ='Results INDEX-MATCH'!C49 -> 0 | I9: ='Results INDEX-MATCH'!D49 -> 0 | J9: ='Results INDEX-MATCH'!E49 -> -1
B10: Medical screening | C10: ='Results INDEX-MATCH'!C65 -> 0 | D10: ='Results INDEX-MATCH'!D65 -> -8 | E10: ='Results INDEX-MATCH'!E65 -> 0 | G10: Medical screening | H10: ='Results INDEX-MATCH'!C50 -> 0 | I10: ='Results INDEX-MATCH'!D50 -> -2 | J10: ='Results INDEX-MATCH'!E50 -> 0
B11: Physician evaluation | C11: ='Results INDEX-MATCH'!C66 -> -7 | D11: ='Results INDEX-MATCH'!D66 -> 0 | E11: ='Results INDEX-MATCH'!E66 -> 0 | G11: Physician evaluation | H11: ='Results INDEX-MATCH'!C51 -> 3 | I11: ='Results INDEX-MATCH'!D51 -> 0 | J11: ='Results INDEX-MATCH'!E51 -> 0
B12: Vaccination | C12: ='Results INDEX-MATCH'!C67 -> 0 | D12: ='Results INDEX-MATCH'!D67 -> 6 | E12: ='Results INDEX-MATCH'!E67 -> 0 | G12: Vaccination | H12: ='Results INDEX-MATCH'!C52 -> 0 | I12: ='Results INDEX-MATCH'!D52 -> 1 | J12: ='Results INDEX-MATCH'!E52 -> 0
B13: Witness | C13: ='Results INDEX-MATCH'!C68 -> 0 | D13: ='Results INDEX-MATCH'!D68 -> 6 | E13: ='Results INDEX-MATCH'!E68 -> 0 | G13: Witness | H13: ='Results INDEX-MATCH'!C53 -> 0 | I13: ='Results INDEX-MATCH'!D53 -> 1 | J13: ='Results INDEX-MATCH'!E53 -> 0
B14: Review/Exit | C14: ='Results INDEX-MATCH'!C69 -> 0 | D14: ='Results INDEX-MATCH'!D69 -> -5 | E14: ='Results INDEX-MATCH'!E69 -> 0 | G14: Review/Exit | H14: ='Results INDEX-MATCH'!C54 -> 0 | I14: ='Results INDEX-MATCH'!D54 -> -4 | J14: ='Results INDEX-MATCH'!E54 -> 0

Sheet Technical Appendix
A1: Technical Appendix
O3: Input Distributions*
O5: Process | S5: Version 1 (this version) Triangular Distribution (Minimum, Most Likely, Maximum) (in minutes) | W5: Alternative Version Triangular Distribution (unless specified below)
O10: Triage (per family member) | S10: (0.5, 1.0, 2.0) | W10: (0.5, 1.0, 2.0)
O12: Orientation | S12: (20, 25, 30) | W12: (13, 14, 15)
O14: Fill-out forms w/o help (per family member) | S14: (0.5, 1.0, 1.5) | W14: 33 * BETA(0.518, 6.25)
O16: Fill-out forms w/ help (per family member) | S16: (0.3, 1.0, 1.5) | W16: 33 * BETA(0.518, 6.25)
O18: Referral (per family member) | S18: (0.4, 0.5, 0.75) | W18: (0.4, 0.5, 0.75)
B20: Input Probabilities | O20: Medical screening (per family member) | S20: (5, 10, 15) | W20: -0.001 + LOGN(0.859, 0.508)
B22: Description | M22: Percent | O22: Physician evaluation | S22: (5, 10, 15) | W22: (0.1, 0.5, 0.75)
B24: Percent of families in which all have previously have been vaccinated* | M24: 2 | O24: Exit review (per family member) | S24: (2, 3, 5) | W24: ERLA(0.0599,5)
B26: Percent symptomatic/contact (exit clinic); these families exit the clinic after being triaged | M26: 1 | O26: Vaccination (per family member) | S26: (0.5, 1.0, 1.5) | W26: 1 + ERLA(0.3, 2)
B28: Percent identified as not treatable at the clinic site; these families exit the clinic after being triaged | M28: 2
B30: Percent of people who need help with filling out their medical/consent forms | M30: 2
B32: Percent with complicating health factors; these families require additional medical screening beyond that given at the referral station | M32: 10
B34: Percent with complicating health factors that are identified by the medical screener and who are not treatable on site; these families will exit the clinic after seeing a medical screener and will exit the clinic before receiving a vaccination | M34: 10
B36: Percent with complicating health factors that are identified by the physician evaluator and who are not treatable on site; these families will exit the clinic after seeing the physician evaluator and will exit the clinic before receiving a vaccination | M36: 5

Sheet Clinic Flow
A1: Vaccination Site Flow Chart
F27: ="Average Time for Medical Screening: "&'6. Results – Time & Auxiliary'!C10&" min. (only "&TEXT('3. % of Families'!K12,"0%")&" of families)" -> Average Time for Medical Screening: 37.683 min. (only 0% of families) | G27: ="Average Time for Physical Evaluation: "&'6. Results – Time & Auxiliary'!C11&" min. (only 2% of families)" -> Average Time for Physical Evaluation: 36.573 min. (only 2% of families)

Sheet Results INDEX-MATCH
B1: Physicians | C1: =IF('1. Personnel'!I11=0,"*ERROR*",'1. Personnel'!I11) -> 9
B2: Nurses | C2: =IF('1. Personnel'!I13=0,"*ERROR*",'1. Personnel'!I13) -> 45
B3: Other Staff | C3: =IF('1. Personnel'!I15=0,"*ERROR*",'1. Personnel'!I15) -> 5
B4: Orientation Room Size | C4: =IF('2. Activities'!E10=0,"*ERROR*",'2. Activities'!E10) -> 30
B5: Unique ID | C5: =VALUE(_xlfn.CONCAT(C1,C2,C3,C4)) -> 945530
A10: Total number of staff available per shift: | F10: =C1+C2+C3 -> 59
A11: Maximum number of people that can be treated in a 24-hour period: | F11: =INDEX('Maxi-Vac_Datasheet'!F1:F77,MATCH($C$5,'Maxi-Vac_Datasheet'!$E$1:$E$77,0)) -> 3369 | G11: =MATCH($C$5,'Maxi-Vac_Datasheet'!$E$1:$E$77,0) -> 17
A12: Actual number of staff used per shift: | F12: =INDEX('Maxi-Vac_Datasheet'!G1:G77,MATCH($C$5,'Maxi-Vac_Datasheet'!$E$1:$E$77,0)) -> 29 | G12: =MATCH($C$5,'Maxi-Vac_Datasheet'!$E$1:$E$77,0) -> 17
B14: People Treated
B15: Station Description | C15: Physicians | D15: Nurses | E15: Other Staff | H15: Station Description | I15: Triage Personnel | J15: Orientation personnel | K15: Medical form helper | L15: Referral personnel | M15: Medical screener | N15: Physician Evaluator | O15: Vaccinator | P15: Witness | Q15: Exit review Personnel | R15: Total
B16: Triage Personnel | C16: =TRANSPOSE(I16:Q16) -> 0 | D16: =TRANSPOSE(I17:Q17) -> 3 | E16: =TRANSPOSE(I18:Q18) -> 0 | H16: Physicians | I16: =INDEX('Maxi-Vac_Datasheet'!H1:H77,MATCH($C$5,'Maxi-Vac_Datasheet'!$E$1:$E$77,0)) -> 0 | J16: =INDEX('Maxi-Vac_Datasheet'!I1:I77,MATCH($C$5,'Maxi-Vac_Datasheet'!$E$1:$E$77,0)) -> 0 | K16: =INDEX('Maxi-Vac_Datasheet'!J1:J77,MATCH($C$5,'Maxi-Vac_Datasheet'!$E$1:$E$77,0)) -> 0 | L16: =INDEX('Maxi-Vac_Datasheet'!K1:K77,MATCH($C$5,'Maxi-Vac_Datasheet'!$E$1:$E$77,0)) -> 0 | M16: =INDEX('Maxi-Vac_Datasheet'!L1:L77,MATCH($C$5,'Maxi-Vac_Datasheet'!$E$1:$E$77,0)) -> 0 | N16: =INDEX('Maxi-Vac_Datasheet'!M1:M77,MATCH($C$5,'Maxi-Vac_Datasheet'!$E$1:$E$77,0)) -> 2 | O16: =INDEX('Maxi-Vac_Datasheet'!N1:N77,MATCH($C$5,'Maxi-Vac_Datasheet'!$E$1:$E$77,0)) -> 0 | P16: =INDEX('Maxi-Vac_Datasheet'!O1:O77,MATCH($C$5,'Maxi-Vac_Datasheet'!$E$1:$E$77,0)) -> 0 | Q16: =INDEX('Maxi-Vac_Datasheet'!P1:P77,MATCH($C$5,'Maxi-Vac_Datasheet'!$E$1:$E$77,0)) -> 0
B17: Orientation personnel | C17: 0 | D17: 0 | E17: 2 | H17: Nurses | I17: =INDEX('Maxi-Vac_Datasheet'!Q1:Q77,MATCH($C$5,'Maxi-Vac_Datasheet'!$E$1:$E$77,0)) -> 3 | J17: =INDEX('Maxi-Vac_Datasheet'!R1:R77,MATCH($C$5,'Maxi-Vac_Datasheet'!$E$1:$E$77,0)) -> 0 | K17: =INDEX('Maxi-Vac_Datasheet'!S1:S77,MATCH($C$5,'Maxi-Vac_Datasheet'!$E$1:$E$77,0)) -> 0 | L17: =INDEX('Maxi-Vac_Datasheet'!T1:T77,MATCH($C$5,'Maxi-Vac_Datasheet'!$E$1:$E$77,0)) -> 0 | M17: =INDEX('Maxi-Vac_Datasheet'!U1:U77,MATCH($C$5,'Maxi-Vac_Datasheet'!$E$1:$E$77,0)) -> 5 | N17: =INDEX('Maxi-Vac_Datasheet'!V1:V77,MATCH($C$5,'Maxi-Vac_Datasheet'!$E$1:$E$77,0)) -> 0 | O17: =INDEX('Maxi-Vac_Datasheet'!W1:W77,MATCH($C$5,'Maxi-Vac_Datasheet'!$E$1:$E$77,0)) -> 6 | P17: =INDEX('Maxi-Vac_Datasheet'!X1:X77,MATCH($C$5,'Maxi-Vac_Datasheet'!$E$1:$E$77,0)) -> 6 | Q17: =INDEX('Maxi-Vac_Datasheet'!Y1:Y77,MATCH($C$5,'Maxi-Vac_Datasheet'!$E$1:$E$77,0)) -> 2
B18: Medical form helper | C18: 0 | D18: 0 | E18: 1 | H18: Other Staff | I18: =INDEX('Maxi-Vac_Datasheet'!Z1:Z77,MATCH($C$5,'Maxi-Vac_Datasheet'!$E$1:$E$77,0)) -> 0 | J18: =INDEX('Maxi-Vac_Datasheet'!AA1:AA77,MATCH($C$5,'Maxi-Vac_Datasheet'!$E$1:$E$77,0)) -> 2 | K18: =INDEX('Maxi-Vac_Datasheet'!AB1:AB77,MATCH($C$5,'Maxi-Vac_Datasheet'!$E$1:$E$77,0)) -> 1 | L18: =INDEX('Maxi-Vac_Datasheet'!AC1:AC77,MATCH($C$5,'Maxi-Vac_Datasheet'!$E$1:$E$77,0)) -> 2 | M18: =INDEX('Maxi-Vac_Datasheet'!AD1:AD77,MATCH($C$5,'Maxi-Vac_Datasheet'!$E$1:$E$77,0)) -> 0 | N18: =INDEX('Maxi-Vac_Datasheet'!AE1:AE77,MATCH($C$5,'Maxi-Vac_Datasheet'!$E$1:$E$77,0)) -> 0 | O18: =INDEX('Maxi-Vac_Datasheet'!AF1:AF77,MATCH($C$5,'Maxi-Vac_Datasheet'!$E$1:$E$77,0)) -> 0 | P18: =INDEX('Maxi-Vac_Datasheet'!AG1:AG77,MATCH($C$5,'Maxi-Vac_Datasheet'!$E$1:$E$77,0)) -> 0 | Q18: =INDEX('Maxi-Vac_Datasheet'!AH1:AH77,MATCH($C$5,'Maxi-Vac_Datasheet'!$E$1:$E$77,0)) -> 0
B19: Referral personnel | C19: 0 | D19: 0 | E19: 2
B20: Medical screener | C20: 0 | D20: 5 | E20: 0
B21: Physician Evaluator | C21: 2 | D21: 0 | E21: 0
B22: Vaccinator | C22: 0 | D22: 6 | E22: 0
B23: Witness | C23: 0 | D23: 6 | E23: 0
B24: Exit review Personnel | C24: 0 | D24: 2 | E24: 0
B25: Total | C25: =SUM(C16:C24) -> 2 | D25: =SUM(D16:D24) -> 22 | E25: =SUM(E16:E24) -> 5
B29: Staff Utilization
B30: Station Description | C30: Physicians | D30: Nurses | E30: Other Staff | H30: Station Description | I30: Triage personnel | J30: Orientation personnel | K30: Medical form helper | L30: Referral personnel | M30: Medical screener | N30: Physician evaluator | O30: Vaccinator | P30: Witness | Q30: Exit review Personnel
B31: Triage personnel | C31: =TRANSPOSE(I31:Q31) -> 0 | D31: =TRANSPOSE(I32:Q32) -> 99.7 | E31: =TRANSPOSE(I33:Q33) -> 0 | H31: Physicians | I31: =INDEX('Maxi-Vac_Datasheet'!AI1:AI77,MATCH($C$5,'Maxi-Vac_Datasheet'!$E$1:$E$77,0)) -> 0 | J31: =INDEX('Maxi-Vac_Datasheet'!AJ1:AJ77,MATCH($C$5,'Maxi-Vac_Datasheet'!$E$1:$E$77,0)) -> 0 | K31: =INDEX('Maxi-Vac_Datasheet'!AK1:AK77,MATCH($C$5,'Maxi-Vac_Datasheet'!$E$1:$E$77,0)) -> 0 | L31: =INDEX('Maxi-Vac_Datasheet'!AL1:AL77,MATCH($C$5,'Maxi-Vac_Datasheet'!$E$1:$E$77,0)) -> 0 | M31: =INDEX('Maxi-Vac_Datasheet'!AM1:AM77,MATCH($C$5,'Maxi-Vac_Datasheet'!$E$1:$E$77,0)) -> 0 | N31: =INDEX('Maxi-Vac_Datasheet'!AN1:AN77,MATCH($C$5,'Maxi-Vac_Datasheet'!$E$1:$E$77,0)) -> 11.4 | O31: =INDEX('Maxi-Vac_Datasheet'!AO1:AO77,MATCH($C$5,'Maxi-Vac_Datasheet'!$E$1:$E$77,0)) -> 0 | P31: =INDEX('Maxi-Vac_Datasheet'!AP1:AP77,MATCH($C$5,'Maxi-Vac_Datasheet'!$E$1:$E$77,0)) -> 0 | Q31: =INDEX('Maxi-Vac_Datasheet'!AQ1:AQ77,MATCH($C$5,'Maxi-Vac_Datasheet'!$E$1:$E$77,0)) -> 0
B32: Orientation personnel | C32: 0 | D32: 0 | E32: 94.8 | H32: Nurses | I32: =INDEX('Maxi-Vac_Datasheet'!AR1:AR77,MATCH($C$5,'Maxi-Vac_Datasheet'!$E$1:$E$77,0)) -> 99.7 | J32: =INDEX('Maxi-Vac_Datasheet'!AS1:AS77,MATCH($C$5,'Maxi-Vac_Datasheet'!$E$1:$E$77,0)) -> 0 | K32: =INDEX('Maxi-Vac_Datasheet'!AT1:AT77,MATCH($C$5,'Maxi-Vac_Datasheet'!$E$1:$E$77,0)) -> 0 | L32: =INDEX('Maxi-Vac_Datasheet'!AU1:AU77,MATCH($C$5,'Maxi-Vac_Datasheet'!$E$1:$E$77,0)) -> 0 | M32: =INDEX('Maxi-Vac_Datasheet'!AV1:AV77,MATCH($C$5,'Maxi-Vac_Datasheet'!$E$1:$E$77,0)) -> 47.3 | N32: =INDEX('Maxi-Vac_Datasheet'!AW1:AW77,MATCH($C$5,'Maxi-Vac_Datasheet'!$E$1:$E$77,0)) -> 0 | O32: =INDEX('Maxi-Vac_Datasheet'!AX1:AX77,MATCH($C$5,'Maxi-Vac_Datasheet'!$E$1:$E$77,0)) -> 45.7 | P32: =INDEX('Maxi-Vac_Datasheet'!AY1:AY77,MATCH($C$5,'Maxi-Vac_Datasheet'!$E$1:$E$77,0)) -> 45.7 | Q32: =INDEX('Maxi-Vac_Datasheet'!AZ1:AZ77,MATCH($C$5,'Maxi-Vac_Datasheet'!$E$1:$E$77,0)) -> 53
B33: Medical form helper | C33: 0 | D33: 0 | E33: 4.6 | H33: Other Staff | I33: =INDEX('Maxi-Vac_Datasheet'!BA1:BA77,MATCH($C$5,'Maxi-Vac_Datasheet'!$E$1:$E$77,0)) -> 0 | J33: =INDEX('Maxi-Vac_Datasheet'!BB1:BB77,MATCH($C$5,'Maxi-Vac_Datasheet'!$E$1:$E$77,0)) -> 94.8 | K33: =INDEX('Maxi-Vac_Datasheet'!BC1:BC77,MATCH($C$5,'Maxi-Vac_Datasheet'!$E$1:$E$77,0)) -> 4.6 | L33: =INDEX('Maxi-Vac_Datasheet'!BD1:BD77,MATCH($C$5,'Maxi-Vac_Datasheet'!$E$1:$E$77,0)) -> 64.9 | M33: =INDEX('Maxi-Vac_Datasheet'!BE1:BE77,MATCH($C$5,'Maxi-Vac_Datasheet'!$E$1:$E$77,0)) -> 0 | N33: =INDEX('Maxi-Vac_Datasheet'!BF1:BF77,MATCH($C$5,'Maxi-Vac_Datasheet'!$E$1:$E$77,0)) -> 0 | O33: =INDEX('Maxi-Vac_Datasheet'!BG1:BG77,MATCH($C$5,'Maxi-Vac_Datasheet'!$E$1:$E$77,0)) -> 0 | P33: =INDEX('Maxi-Vac_Datasheet'!BH1:BH77,MATCH($C$5,'Maxi-Vac_Datasheet'!$E$1:$E$77,0)) -> 0 | Q33: =INDEX('Maxi-Vac_Datasheet'!BI1:BI77,MATCH($C$5,'Maxi-Vac_Datasheet'!$E$1:$E$77,0)) -> 0
B34: Referral personnel | C34: 0 | D34: 0 | E34: 64.9
B35: Medical screener | C35: 0 | D35: 47.3 | E35: 0
B36: Physician evaluator | C36: 11.4 | D36: 0 | E36: 0
B37: Vaccinator | C37: 0 | D37: 45.7 | E37: 0
B38: Witness | C38: 0 | D38: 45.7 | E38: 0
B39: Exit review Personnel | C39: 0 | D39: 53 | E39: 0
B44: Impact/Plus One
B45: Station Description | C45: Physicians | D45: Nurses | E45: Other Staff
B46: Triage | C46: =TRANSPOSE(I47:Q47) -> 0 | D46: =TRANSPOSE(I48:Q48) -> 141 | E46: =TRANSPOSE(I49:Q49) -> 0 | H46: Station Description | I46: Triage | J46: Orientation | K46: Medical froms help | L46: Referral | M46: Medical screening | N46: Physician evaluation | O46: Vaccination | P46: Witness | Q46: Review/Exit
B47: Orientation | C47: 0 | D47: 0 | E47: 8 | H47: Physicians | I47: =INDEX('Maxi-Vac_Datasheet'!BJ1:BJ77,MATCH($C$5,'Maxi-Vac_Datasheet'!$E$1:$E$77,0)) -> 0 | J47: =INDEX('Maxi-Vac_Datasheet'!BK1:BK77,MATCH($C$5,'Maxi-Vac_Datasheet'!$E$1:$E$77,0)) -> 0 | K47: =INDEX('Maxi-Vac_Datasheet'!BL1:BL77,MATCH($C$5,'Maxi-Vac_Datasheet'!$E$1:$E$77,0)) -> 0 | L47: =INDEX('Maxi-Vac_Datasheet'!BM1:BM77,MATCH($C$5,'Maxi-Vac_Datasheet'!$E$1:$E$77,0)) -> 0 | M47: =INDEX('Maxi-Vac_Datasheet'!BN1:BN77,MATCH($C$5,'Maxi-Vac_Datasheet'!$E$1:$E$77,0)) -> 0 | N47: =INDEX('Maxi-Vac_Datasheet'!BO1:BO77,MATCH($C$5,'Maxi-Vac_Datasheet'!$E$1:$E$77,0)) -> 3 | O47: =INDEX('Maxi-Vac_Datasheet'!BP1:BP77,MATCH($C$5,'Maxi-Vac_Datasheet'!$E$1:$E$77,0)) -> 0 | P47: =INDEX('Maxi-Vac_Datasheet'!BQ1:BQ77,MATCH($C$5,'Maxi-Vac_Datasheet'!$E$1:$E$77,0)) -> 0 | Q47: =INDEX('Maxi-Vac_Datasheet'!BR1:BR77,MATCH($C$5,'Maxi-Vac_Datasheet'!$E$1:$E$77,0)) -> 0
B48: Medical froms help | C48: 0 | D48: 0 | E48: -2 | H48: Nurses | I48: =INDEX('Maxi-Vac_Datasheet'!BS1:BS77,MATCH($C$5,'Maxi-Vac_Datasheet'!$E$1:$E$77,0)) -> 141 | J48: =INDEX('Maxi-Vac_Datasheet'!BT1:BT77,MATCH($C$5,'Maxi-Vac_Datasheet'!$E$1:$E$77,0)) -> 0 | K48: =INDEX('Maxi-Vac_Datasheet'!BU1:BU77,MATCH($C$5,'Maxi-Vac_Datasheet'!$E$1:$E$77,0)) -> 0 | L48: =INDEX('Maxi-Vac_Datasheet'!BV1:BV77,MATCH($C$5,'Maxi-Vac_Datasheet'!$E$1:$E$77,0)) -> 0 | M48: =INDEX('Maxi-Vac_Datasheet'!BW1:BW77,MATCH($C$5,'Maxi-Vac_Datasheet'!$E$1:$E$77,0)) -> -2 | N48: =INDEX('Maxi-Vac_Datasheet'!BX1:BX77,MATCH($C$5,'Maxi-Vac_Datasheet'!$E$1:$E$77,0)) -> 0 | O48: =INDEX('Maxi-Vac_Datasheet'!BY1:BY77,MATCH($C$5,'Maxi-Vac_Datasheet'!$E$1:$E$77,0)) -> 1 | P48: =INDEX('Maxi-Vac_Datasheet'!BZ1:BZ77,MATCH($C$5,'Maxi-Vac_Datasheet'!$E$1:$E$77,0)) -> 1 | Q48: =INDEX('Maxi-Vac_Datasheet'!CA1:CA77,MATCH($C$5,'Maxi-Vac_Datasheet'!$E$1:$E$77,0)) -> -4
B49: Referral | C49: 0 | D49: 0 | E49: -1 | H49: Other Staff | I49: =INDEX('Maxi-Vac_Datasheet'!CB1:CB77,MATCH($C$5,'Maxi-Vac_Datasheet'!$E$1:$E$77,0)) -> 0 | J49: =INDEX('Maxi-Vac_Datasheet'!CC1:CC77,MATCH($C$5,'Maxi-Vac_Datasheet'!$E$1:$E$77,0)) -> 8 | K49: =INDEX('Maxi-Vac_Datasheet'!CD1:CD77,MATCH($C$5,'Maxi-Vac_Datasheet'!$E$1:$E$77,0)) -> -2 | L49: =INDEX('Maxi-Vac_Datasheet'!CE1:CE77,MATCH($C$5,'Maxi-Vac_Datasheet'!$E$1:$E$77,0)) -> -1 | M49: =INDEX('Maxi-Vac_Datasheet'!CF1:CF77,MATCH($C$5,'Maxi-Vac_Datasheet'!$E$1:$E$77,0)) -> 0 | N49: =INDEX('Maxi-Vac_Datasheet'!CG1:CG77,MATCH($C$5,'Maxi-Vac_Datasheet'!$E$1:$E$77,0)) -> 0 | O49: =INDEX('Maxi-Vac_Datasheet'!CH1:CH77,MATCH($C$5,'Maxi-Vac_Datasheet'!$E$1:$E$77,0)) -> 0 | P49: =INDEX('Maxi-Vac_Datasheet'!CI1:CI77,MATCH($C$5,'Maxi-Vac_Datasheet'!$E$1:$E$77,0)) -> 0 | Q49: =INDEX('Maxi-Vac_Datasheet'!CJ1:CJ77,MATCH($C$5,'Maxi-Vac_Datasheet'!$E$1:$E$77,0)) -> 0
B50: Medical screening | C50: 0 | D50: -2 | E50: 0
B51: Physician evaluation | C51: 3 | D51: 0 | E51: 0
B52: Vaccination | C52: 0 | D52: 1 | E52: 0
B53: Witness | C53: 0 | D53: 1 | E53: 0
B54: Review/Exit | C54: 0 | D54: -4 | E54: 0
B59: Impact/Minus One
B60: Station Description | C60: Physicians | D60: Nurses | E60: Other Staff | H60: Station Description | I60: Triage | J60: Orientation | K60: Medical froms help | L60: Referral | M60: Medical screening | N60: Physician evaluation | O60: Vaccination | P60: Witness | Q60: Review/Exit
B61: Triage | C61: =TRANSPOSE(I61:Q61) -> 0 | D61: =TRANSPOSE(I62:Q62) -> -1110 | E61: =TRANSPOSE(I63:Q63) -> 0 | H61: Physicians | I61: =INDEX('Maxi-Vac_Datasheet'!CK1:CK77,MATCH($C$5,'Maxi-Vac_Datasheet'!$E$1:$E$77,0)) -> 0 | J61: =INDEX('Maxi-Vac_Datasheet'!CL1:CL77,MATCH($C$5,'Maxi-Vac_Datasheet'!$E$1:$E$77,0)) -> 0 | K61: =INDEX('Maxi-Vac_Datasheet'!CM1:CM77,MATCH($C$5,'Maxi-Vac_Datasheet'!$E$1:$E$77,0)) -> 0 | L61: =INDEX('Maxi-Vac_Datasheet'!CN1:CN77,MATCH($C$5,'Maxi-Vac_Datasheet'!$E$1:$E$77,0)) -> 0 | M61: =INDEX('Maxi-Vac_Datasheet'!CO1:CO77,MATCH($C$5,'Maxi-Vac_Datasheet'!$E$1:$E$77,0)) -> 0 | N61: =INDEX('Maxi-Vac_Datasheet'!CP1:CP77,MATCH($C$5,'Maxi-Vac_Datasheet'!$E$1:$E$77,0)) -> -7 | O61: =INDEX('Maxi-Vac_Datasheet'!CQ1:CQ77,MATCH($C$5,'Maxi-Vac_Datasheet'!$E$1:$E$77,0)) -> 0 | P61: =INDEX('Maxi-Vac_Datasheet'!CR1:CR77,MATCH($C$5,'Maxi-Vac_Datasheet'!$E$1:$E$77,0)) -> 0 | Q61: =INDEX('Maxi-Vac_Datasheet'!CS1:CS77,MATCH($C$5,'Maxi-Vac_Datasheet'!$E$1:$E$77,0)) -> 0
B62: Orientation | C62: 0 | D62: 0 | E62: -1614 | H62: Nurses | I62: =INDEX('Maxi-Vac_Datasheet'!CT1:CT77,MATCH($C$5,'Maxi-Vac_Datasheet'!$E$1:$E$77,0)) -> -1110 | J62: =INDEX('Maxi-Vac_Datasheet'!CU1:CU77,MATCH($C$5,'Maxi-Vac_Datasheet'!$E$1:$E$77,0)) -> 0 | K62: =INDEX('Maxi-Vac_Datasheet'!CV1:CV77,MATCH($C$5,'Maxi-Vac_Datasheet'!$E$1:$E$77,0)) -> 0 | L62: =INDEX('Maxi-Vac_Datasheet'!CW1:CW77,MATCH($C$5,'Maxi-Vac_Datasheet'!$E$1:$E$77,0)) -> 0 | M62: =INDEX('Maxi-Vac_Datasheet'!CX1:CX77,MATCH($C$5,'Maxi-Vac_Datasheet'!$E$1:$E$77,0)) -> -8 | N62: =INDEX('Maxi-Vac_Datasheet'!CY1:CY77,MATCH($C$5,'Maxi-Vac_Datasheet'!$E$1:$E$77,0)) -> 0 | O62: =INDEX('Maxi-Vac_Datasheet'!CZ1:CZ77,MATCH($C$5,'Maxi-Vac_Datasheet'!$E$1:$E$77,0)) -> 6 | P62: =INDEX('Maxi-Vac_Datasheet'!DA1:DA77,MATCH($C$5,'Maxi-Vac_Datasheet'!$E$1:$E$77,0)) -> 6 | Q62: =INDEX('Maxi-Vac_Datasheet'!DB1:DB77,MATCH($C$5,'Maxi-Vac_Datasheet'!$E$1:$E$77,0)) -> -5
B63: Medical froms help | C63: 0 | D63: 0 | E63: na | H63: Other Staff | I63: =INDEX('Maxi-Vac_Datasheet'!DC1:DC77,MATCH($C$5,'Maxi-Vac_Datasheet'!$E$1:$E$77,0)) -> 0 | J63: =INDEX('Maxi-Vac_Datasheet'!DD1:DD77,MATCH($C$5,'Maxi-Vac_Datasheet'!$E$1:$E$77,0)) -> -1614 | K63: =INDEX('Maxi-Vac_Datasheet'!DE1:DE77,MATCH($C$5,'Maxi-Vac_Datasheet'!$E$1:$E$77,0)) -> na | L63: =INDEX('Maxi-Vac_Datasheet'!DF1:DF77,MATCH($C$5,'Maxi-Vac_Datasheet'!$E$1:$E$77,0)) -> -1 | M63: =INDEX('Maxi-Vac_Datasheet'!DG1:DG77,MATCH($C$5,'Maxi-Vac_Datasheet'!$E$1:$E$77,0)) -> 0 | N63: =INDEX('Maxi-Vac_Datasheet'!DH1:DH77,MATCH($C$5,'Maxi-Vac_Datasheet'!$E$1:$E$77,0)) -> 0 | O63: =INDEX('Maxi-Vac_Datasheet'!DI1:DI77,MATCH($C$5,'Maxi-Vac_Datasheet'!$E$1:$E$77,0)) -> 0 | P63: =INDEX('Maxi-Vac_Datasheet'!DJ1:DJ77,MATCH($C$5,'Maxi-Vac_Datasheet'!$E$1:$E$77,0)) -> 0 | Q63: =INDEX('Maxi-Vac_Datasheet'!DK1:DK77,MATCH($C$5,'Maxi-Vac_Datasheet'!$E$1:$E$77,0)) -> 0
B64: Referral | C64: 0 | D64: 0 | E64: -1
B65: Medical screening | C65: 0 | D65: -8 | E65: 0
B66: Physician evaluation | C66: -7 | D66: 0 | E66: 0
B67: Vaccination | C67: 0 | D67: 6 | E67: 0
B68: Witness | C68: 0 | D68: 6 | E68: 0
B69: Review/Exit | C69: 0 | D69: -5 | E69: 0
B74: Average Time Spent
B75: Station Description | C75: Average time | H75: Station Description | I75: Triage | J75: Orientation | K75: Medical froms help | L75: Referral | M75: Medical screening | N75: Physician evaluation | O75: Vaccination | P75: Witness | Q75: Review/Exit
B76: Triage | C76: =TRANSPOSE(I76:Q76) -> 4.271 | H76: Average time | I76: =INDEX('Maxi-Vac_Datasheet'!DL1:DL77,MATCH($C$5,'Maxi-Vac_Datasheet'!$E$1:$E$77,0)) -> 4.271 | J76: =INDEX('Maxi-Vac_Datasheet'!DM1:DM77,MATCH($C$5,'Maxi-Vac_Datasheet'!$E$1:$E$77,0)) -> 33.972 | K76: =INDEX('Maxi-Vac_Datasheet'!DN1:DN77,MATCH($C$5,'Maxi-Vac_Datasheet'!$E$1:$E$77,0)) -> 3.909 | L76: =INDEX('Maxi-Vac_Datasheet'!DO1:DO77,MATCH($C$5,'Maxi-Vac_Datasheet'!$E$1:$E$77,0)) -> 3.807 | M76: =INDEX('Maxi-Vac_Datasheet'!DP1:DP77,MATCH($C$5,'Maxi-Vac_Datasheet'!$E$1:$E$77,0)) -> 37.683 | N76: =INDEX('Maxi-Vac_Datasheet'!DQ1:DQ77,MATCH($C$5,'Maxi-Vac_Datasheet'!$E$1:$E$77,0)) -> 36.573 | O76: =INDEX('Maxi-Vac_Datasheet'!DR1:DR77,MATCH($C$5,'Maxi-Vac_Datasheet'!$E$1:$E$77,0)) -> 4.285 | P76: =INDEX('Maxi-Vac_Datasheet'!DS1:DS77,MATCH($C$5,'Maxi-Vac_Datasheet'!$E$1:$E$77,0)) -> 4.285 | Q76: =INDEX('Maxi-Vac_Datasheet'!DT1:DT77,MATCH($C$5,'Maxi-Vac_Datasheet'!$E$1:$E$77,0)) -> 3.944
B77: Orientation | C77: 33.972
B78: Medical froms help | C78: 3.909
B79: Referral | C79: 3.807
B80: Medical screening | C80: 37.683
B81: Physician evaluation | C81: 36.573
B82: Vaccination | C82: 4.285
B83: Witness | C83: 4.285
B84: Review/Exit | C84: 3.944

Sheet Maxi-Vac_Datasheet
A1: INPUT DATA | F1: RESULTS RESULTS RESULTS RESULTS RESULTS RESULTS RESULTS RESULTS RESULTS RESULTS RESULTS RESULTS RESULTS RESULTS RESULTS RESULTS RESULTS RESULTS RESULTS RESULTS RESULTS RESULTS RESULTS RESULTS RESULTS RESULTS RESULTS RESULTS RESULTS RESULTS RESULTS RESULTS RESULTS RESULTS RESULTS RESULTS RESULTS RESULTS RESULTS RESULTS RESULTS RESULTS RESULTS RESULTS RESULTS
H2: PHYSICIANS | Q2: NURSES | Z2: OTHER | AI2: PHYSICIANS | AR2: NURSES | BA2: OTHER | BJ2: PHYSICIANS | BS2: NURSES | CB2: OTHER | CK2: PHYSICIANS | CT2: NURSES | DC2: OTHER
A3: CONSTRAINTS | H3: Output (# at Station) | Q3: Output (# at Station) | Z3: Output (# at Station) | AI3: Output (% Time Busy) | AR3: Output (% Time Busy) | BA3: Output (% Time Busy) | BJ3: Impact of Adding One Resource (Change in Number of People Vaccinated) | BS3: Impact of Adding One Resource (Change in Number of People Vaccinated) | CB3: Impact of Adding One Resource (Change in Number of People Vaccinated) | CK3: Impact of Removing One Resource (Change in Number of People Vaccinated) | CT3: Impact of Removing One Resource (Change in Number of People Vaccinated) | DC3: Impact of Removing One Resource (Change in Number of People Vaccinated) | DL3: Average Time Families Spend At Each Station (Minutes)
A4: Personnel Type and Orientation Room Size | F4: MAIN
A5: Physican | B5: Medical Prof | C5: Other | D5: Or room | E5: Unique Identifier | F5: People Vaccinated | G5: Total Staff Used | H5: Triage Personnel | I5: Orientation Personnel | J5: Medical Form Helper | K5: Referral Personnel | L5: Medical Screener | M5: Physician Evaluator | N5: Vaccinator | O5: Witnesses | P5: Exit Review Personnel | Q5: Triage Personnel | R5: Orientation Personnel | S5: Medical Form Helper | T5: Referral Personnel | U5: Medical Screener | V5: Physician Evaluator | W5: Vaccinator | X5: Witnesses | Y5: Exit Review Personnel | Z5: Triage Personnel | AA5: Orientation Personnel | AB5: Medical Form Helper | AC5: Referral Personnel | AD5: Medical Screener | AE5: Physician Evaluator | AF5: Vaccinator | AG5: Witnesses | AH5: Exit Review Personnel | AI5: Triage Personnel | AJ5: Orientation Personnel | AK5: Medical Form Helper | AL5: Referral Personnel | AM5: Medical Screener | AN5: Physician Evaluator | AO5: Vaccinator | AP5: Witnesses | AQ5: Exit Review Personnel | AR5: Triage Personnel | AS5: Orientation Personnel | AT5: Medical Form Helper | AU5: Referral Personnel | AV5: Medical Screener | AW5: Physician Evaluator | AX5: Vaccinator | AY5: Witnesses | AZ5: Exit Review Personnel | BA5: Triage Personel | BB5: Orientation Personnel | BC5: Medical Form Helper | BD5: Referral Personnel | BE5: Medical Screener | BF5: Physician Evaluator | BG5: Vaccinator | BH5: Witnesses | BI5: Exit Review Personnel | BJ5: Triage Personnel | BK5: Orientation Personnel | BL5: Medical Form Helper | BM5: Referral Personnel | BN5: Medical Screener | BO5: Physician Evaluator | BP5: Vaccinator | BQ5: Witnesses | BR5: Exit Review Personnel | BS5: Triage Personnel | BT5: Orientation Personnel | BU5: Medical Form Helper | BV5: Referral Personnel | BW5: Medical Screener | BX5: Physician Evaluator | BY5: Vaccinator | BZ5: Witnesses | CA5: Exit Review Personnel | CB5: Triage Personnel | CC5: Orientation Personnel | CD5: Medical Form Helper | CE5: Referral Personnel | CF5: Medical Screener | CG5: Physician Evaluator | CH5: Vaccinator | CI5: Witnesses | CJ5: Exit Review Personnel | CK5: Triage Personnel | CL5: Orientation Personnel | CM5: Medical Form Helper | CN5: Referral Personnel | CO5: Medical Screener | CP5: Physician Evaluator | CQ5: Vaccinator | CR5: Witnesses | CS5: Exit Review Personnel | CT5: Triage Personnel | CU5: Orientation Personnel | CV5: Medical Form Helper | CW5: Referral Personnel | CX5: Medical Screener | CY5: Physician Evaluator | CZ5: Vaccinator | DA5: Witnesses | DB5: Exit Review Personnel | DC5: Triage Personnel | DD5: Orientation Personnel | DE5: Medical Form Helper | DF5: Referral Personnel | DG5: Medical Screener | DH5: Physician Evaluator | DI5: Vaccinator | DJ5: Witnesses | DK5: Exit Review Personnel | DL5: Triage | DM5: Orientation | DN5: Medical Forms | DO5: Referral | DP5: Medical Screening | DQ5: Physician Evaluation | DR5: Vaccinator | DS5: Witnesses | DT5: Exit Review Personnel
A6: 1 | B6: 15 | C6: 5 | D6: 30 | E6: =VALUE(_xlfn.CONCAT(A6,B6,C6,D6)) -> 115530 | F6: 3310 | G6: 21 | H6: 0 | I6: 0 | J6: 0 | K6: 0 | L6: 0 | M6: 1 | N6: 0 | O6: 0 | P6: 0 | Q6: 3 | R6: 0 | S6: 0 | T6: 0 | U6: 2 | V6: 0 | W6: 4 | X6: 4 | Y6: 2 | Z6: 0 | AA6: 2 | AB6: 1 | AC6: 2 | AD6: 0 | AE6: 0 | AF6: 0 | AG6: 0 | AH6: 0 | AI6: 0 | AJ6: 0 | AK6: 0 | AL6: 0 | AM6: 0 | AN6: 20.6 | AO6: 0 | AP6: 0 | AQ6: 0 | AR6: 99.6 | AS6: 0 | AT6: 0 | AU6: 0 | AV6: 93 | AW6: 0 | AX6: 67.2 | AY6: 67.2 | AZ6: 51.9 | BA6: 0 | BB6: 95 | BC6: 4.7 | BD6: 65 | BE6: 0 | BF6: 0 | BG6: 0 | BH6: 0 | BI6: 0 | BJ6: 0 | BK6: 0 | BL6: 0 | BM6: 0 | BN6: 0 | BO6: -4 | BP6: 0 | BQ6: 0 | BR6: 0 | BS6: 124 | BT6: 0 | BU6: 0 | BV6: 0 | BW6: 47 | BX6: 0 | BY6: 1 | BZ6: 1 | CA6: -13 | CB6: 0 | CC6: 1 | CD6: -2 | CE6: 1 | CF6: 0 | CG6: 0 | CH6: 0 | CI6: 0 | CJ6: 0 | CK6: 0 | CL6: 0 | CM6: 0 | CN6: 0 | CO6: 0 | CP6: na | CQ6: 0 | CR6: 0 | CS6: 0 | CT6: -1059 | CU6: 0 | CV6: 0 | CW6: 0 | CX6: -131 | CY6: 0 | CZ6: -16 | DA6: -16 | DB6: -142 | DC6: 0 | DD6: -1555 | DE6: na | DF6: -804 | DG6: 0 | DH6: 0 | DI6: 0 | DJ6: 0 | DK6: 0 | DL6: 4.293 | DM6: 34.277 | DN6: 3.829 | DO6: 3.891 | DP6: 166.348 | DQ6: 41.781 | DR6: 4.661 | DS6: 4.661 | DT6: 3.824 | DU6: =0.1*F6 -> 331
A7: 3 | B7: 15 | C7: 5 | D7: 30 | E7: =VALUE(_xlfn.CONCAT(A7,B7,C7,D7)) -> 315530 | F7: 3310 | G7: 21 | H7: 0 | I7: 0 | J7: 0 | K7: 0 | L7: 0 | M7: 1 | N7: 0 | O7: 0 | P7: 0 | Q7: 3 | R7: 0 | S7: 0 | T7: 0 | U7: 2 | V7: 0 | W7: 4 | X7: 4 | Y7: 2 | Z7: 0 | AA7: 2 | AB7: 1 | AC7: 2 | AD7: 0 | AE7: 0 | AF7: 0 | AG7: 0 | AH7: 0 | AI7: 0 | AJ7: 0 | AK7: 0 | AL7: 0 | AM7: 0 | AN7: 20.6 | AO7: 0 | AP7: 0 | AQ7: 0 | AR7: 99.6 | AS7: 0 | AT7: 0 | AU7: 0 | AV7: 93 | AW7: 0 | AX7: 67.2 | AY7: 67.2 | AZ7: 51.9 | BA7: 0 | BB7: 95 | BC7: 4.7 | BD7: 65 | BE7: 0 | BF7: 0 | BG7: 0 | BH7: 0 | BI7: 0 | BJ7: 0 | BK7: 0 | BL7: 0 | BM7: 0 | BN7: 0 | BO7: -4 | BP7: 0 | BQ7: 0 | BR7: 0 | BS7: 124 | BT7: 0 | BU7: 0 | BV7: 0 | BW7: 47 | BX7: 0 | BY7: 1 | BZ7: 1 | CA7: -13 | CB7: 0 | CC7: 1 | CD7: -2 | CE7: 1 | CF7: 0 | CG7: 0 | CH7: 0 | CI7: 0 | CJ7: 0 | CK7: 0 | CL7: 0 | CM7: 0 | CN7: 0 | CO7: 0 | CP7: na | CQ7: 0 | CR7: 0 | CS7: 0 | CT7: -1059 | CU7: 0 | CV7: 0 | CW7: 0 | CX7: -131 | CY7: 0 | CZ7: -16 | DA7: -16 | DB7: -142 | DC7: 0 | DD7: -1555 | DE7: na | DF7: -804 | DG7: 0 | DH7: 0 | DI7: 0 | DJ7: 0 | DK7: 0 | DL7: 4.293 | DM7: 34.277 | DN7: 3.829 | DO7: 3.891 | DP7: 166.348 | DQ7: 41.781 | DR7: 4.661 | DS7: 4.661 | DT7: 3.824 | DU7: =0.1*F7 -> 331
A8: 5 | B8: 15 | C8: 5 | D8: 30 | E8: 515530 | F8: 3294 | G8: 19 | H8: 0 | I8: 0 | J8: 0 | K8: 0 | L8: 0 | M8: 1 | N8: 0 | O8: 0 | P8: 0 | Q8: 3 | R8: 0 | S8: 0 | T8: 0 | U8: 2 | V8: 0 | W8: 3 | X8: 3 | Y8: 2 | Z8: 0 | AA8: 2 | AB8: 1 | AC8: 2 | AD8: 0 | AE8: 0 | AF8: 0 | AG8: 0 | AH8: 0 | AI8: 0 | AJ8: 0 | AK8: 0 | AL8: 0 | AM8: 0 | AN8: 18.6 | AO8: 0 | AP8: 0 | AQ8: 0 | AR8: 99.6 | AS8: 0 | AT8: 0 | AU8: 0 | AV8: 92.7 | AW8: 0 | AX8: 89.1 | AY8: 89.1 | AZ8: 51.8 | BA8: 0 | BB8: 95 | BC8: 4.7 | BD8: 64.9 | BE8: 0 | BF8: 0 | BG8: 0 | BH8: 0 | BI8: 0 | BJ8: 0 | BK8: 0 | BL8: 0 | BM8: 0 | BN8: 0 | BO8: 4 | BP8: 0 | BQ8: 0 | BR8: 0 | BS8: 127 | BT8: 0 | BU8: 0 | BV8: 0 | BW8: 68 | BX8: 0 | BY8: 0 | BZ8: 0 | CA8: 10 | CB8: 0 | CC8: 9 | CD8: 4 | CE8: 5 | CF8: 0 | CG8: 0 | CH8: 0 | CI8: 0 | CJ8: 0 | CK8: 0 | CL8: 0 | CM8: 0 | CN8: 0 | CO8: 0 | CP8: na | CQ8: 0 | CR8: 0 | CS8: 0 | CT8: -1050 | CU8: 0 | CV8: 0 | CW8: 0 | CX8: -112 | CY8: 0 | CZ8: -907 | DA8: -907 | DB8: -121 | DC8: 0 | DD8: -1536 | DE8: na | DF8: -790 | DG8: 0 | DH8: 0 | DI8: 0 | DJ8: 0 | DK8: 0 | DL8: 4.273 | DM8: 34.644 | DN8: 3.956 | DO8: 3.829 | DP8: 170.56 | DQ8: 38.853 | DR8: 7.323 | DS8: 7.323 | DT8: 3.669 | DU8: 329.4
A9: 9 | B9: 15 | C9: 5 | D9: 30 | E9: 915530 | F9: 3304 | G9: 20 | H9: 0 | I9: 0 | J9: 0 | K9: 0 | L9: 0 | M9: 1 | N9: 0 | O9: 0 | P9: 0 | Q9: 3 | R9: 0 | S9: 0 | T9: 0 | U9: 2 | V9: 0 | W9: 3 | X9: 3 | Y9: 3 | Z9: 0 | AA9: 2 | AB9: 1 | AC9: 2 | AD9: 0 | AE9: 0 | AF9: 0 | AG9: 0 | AH9: 0 | AI9: 0 | AJ9: 0 | AK9: 0 | AL9: 0 | AM9: 0 | AN9: 16.2 | AO9: 0 | AP9: 0 | AQ9: 0 | AR9: 99.6 | AS9: 0 | AT9: 0 | AU9: 0 | AV9: 93.3 | AW9: 0 | AX9: 89.3 | AY9: 89.3 | AZ9: 34.9 | BA9: 0 | BB9: 95 | BC9: 4.6 | BD9: 65 | BE9: 0 | BF9: 0 | BG9: 0 | BH9: 0 | BI9: 0 | BJ9: 0 | BK9: 0 | BL9: 0 | BM9: 0 | BN9: 0 | BO9: -8 | BP9: 0 | BQ9: 0 | BR9: 0 | BS9: 121 | BT9: 0 | BU9: 0 | BV9: 0 | BW9: 54 | BX9: 0 | BY9: 0 | BZ9: 0 | CA9: -4 | CB9: 0 | CC9: 6 | CD9: -13 | CE9: -9 | CF9: 0 | CG9: 0 | CH9: 0 | CI9: 0 | CJ9: 0 | CK9: 0 | CL9: 0 | CM9: 0 | CN9: 0 | CO9: 0 | CP9: na | CQ9: 0 | CR9: 0 | CS9: 0 | CT9: -1061 | CU9: 0 | CV9: 0 | CW9: 0 | CX9: -126 | CY9: 0 | CZ9: -920 | DA9: -920 | DB9: -10 | DC9: 0 | DD9: -1546 | DE9: na | DF9: -798 | DG9: 0 | DH9: 0 | DI9: 0 | DJ9: 0 | DK9: 0 | DL9: 4.289 | DM9: 34.217 | DN9: 4.016 | DO9: 3.765 | DP9: 152.764 | DQ9: 40.264 | DR9: 7.342 | DS9: 7.342 | DT9: 3.358 | DU9: 330.4
A10: 1 | B10: 30 | C10: 5 | D10: 30 | E10: 130530 | F10: 3363 | G10: 34 | H10: 0 | I10: 0 | J10: 0 | K10: 0 | L10: 0 | M10: 1 | N10: 0 | O10: 0 | P10: 0 | Q10: 3 | R10: 0 | S10: 0 | T10: 0 | U10: 6 | V10: 0 | W10: 6 | X10: 6 | Y10: 7 | Z10: 0 | AA10: 2 | AB10: 1 | AC10: 2 | AD10: 0 | AE10: 0 | AF10: 0 | AG10: 0 | AH10: 0 | AI10: 0 | AJ10: 0 | AK10: 0 | AL10: 0 | AM10: 0 | AN10: 22.8 | AO10: 0 | AP10: 0 | AQ10: 0 | AR10: 99.6 | AS10: 0 | AT10: 0 | AU10: 0 | AV10: 38.6 | AW10: 0 | AX10: 45.5 | AY10: 45.5 | AZ10: 15.1 | BA10: 0 | BB10: 94.5 | BC10: 5 | BD10: 64.8 | BE10: 0 | BF10: 0 | BG10: 0 | BH10: 0 | BI10: 0 | BJ10: 0 | BK10: 0 | BL10: 0 | BM10: 0 | BN10: 0 | BO10: 4 | BP10: 0 | BQ10: 0 | BR10: 0 | BS10: 145 | BT10: 0 | BU10: 0 | BV10: 0 | BW10: 17 | BX10: 0 | BY10: 8 | BZ10: 8 | CA10: 0 | CB10: 0 | CC10: 12 | CD10: -1 | CE10: 9 | CF10: 0 | CG10: 0 | CH10: 0 | CI10: 0 | CJ10: 0 | CK10: 0 | CL10: 0 | CM10: 0 | CN10: 0 | CO10: 0 | CP10: na | CQ10: 0 | CR10: 0 | CS10: 0 | CT10: -1104 | CU10: 0 | CV10: 0 | CW10: 0 | CX10: 5 | CY10: 0 | CZ10: 9 | DA10: 9 | DB10: 1 | DC10: 0 | DD10: -1610 | DE10: na | DF10: -844 | DG10: 0 | DH10: 0 | DI10: 0 | DJ10: 0 | DK10: 0 | DL10: 4.28 | DM10: 33.561 | DN10: 3.955 | DO10: 3.666 | DP10: 36.87 | DQ10: 43.397 | DR10: 4.283 | DS10: 4.283 | DT10: 3.335 | DU10: 336.3
A11: 3 | B11: 30 | C11: 5 | D11: 30 | E11: 330530 | F11: 3370 | G11: 28 | H11: 0 | I11: 0 | J11: 0 | K11: 0 | L11: 0 | M11: 2 | N11: 0 | O11: 0 | P11: 0 | Q11: 3 | R11: 0 | S11: 0 | T11: 0 | U11: 3 | V11: 0 | W11: 5 | X11: 5 | Y11: 5 | Z11: 0 | AA11: 2 | AB11: 1 | AC11: 2 | AD11: 0 | AE11: 0 | AF11: 0 | AG11: 0 | AH11: 0 | AI11: 0 | AJ11: 0 | AK11: 0 | AL11: 0 | AM11: 0 | AN11: 11.4 | AO11: 0 | AP11: 0 | AQ11: 0 | AR11: 99.6 | AS11: 0 | AT11: 0 | AU11: 0 | AV11: 75.2 | AW11: 0 | AX11: 54.8 | AY11: 54.8 | AZ11: 21.4 | BA11: 0 | BB11: 94.9 | BC11: 4.8 | BD11: 65.1 | BE11: 0 | BF11: 0 | BG11: 0 | BH11: 0 | BI11: 0 | BJ11: 0 | BK11: 0 | BL11: 0 | BM11: 0 | BN11: 0 | BO11: 0 | BP11: 0 | BQ11: 0 | BR11: 0 | BS11: 138 | BT11: 0 | BU11: 0 | BV11: 0 | BW11: -7 | BX11: 0 | BY11: 7 | BZ11: 7 | CA11: -3 | CB11: 0 | CC11: 7 | CD11: -3 | CE11: -12 | CF11: 0 | CG11: 0 | CH11: 0 | CI11: 0 | CJ11: 0 | CK11: 0 | CL11: 0 | CM11: 0 | CN11: 0 | CO11: 0 | CP11: na | CQ11: 0 | CR11: 0 | CS11: 0 | CT11: -1115 | CU11: 0 | CV11: 0 | CW11: 0 | CX11: -54 | CY11: 0 | CZ11: -5 | DA11: -5 | DB11: -1 | DC11: 0 | DD11: -1619 | DE11: na | DF11: -858 | DG11: 0 | DH11: 0 | DI11: 0 | DJ11: 0 | DK11: 0 | DL11: 4.288 | DM11: 33.752 | DN11: 3.928 | DO11: 3.775 | DP11: 52.607 | DQ11: 35.143 | DR11: 4.375 | DS11: 4.375 | DT11: 3.334 | DU11: 337
A12: 5 | B12: 30 | C12: 5 | D12: 30 | E12: 530530 | F12: 3362 | G12: 25 | H12: 0 | I12: 0 | J12: 0 | K12: 0 | L12: 0 | M12: 2 | N12: 0 | O12: 0 | P12: 0 | Q12: 3 | R12: 0 | S12: 0 | T12: 0 | U12: 3 | V12: 0 | W12: 5 | X12: 5 | Y12: 2 | Z12: 0 | AA12: 2 | AB12: 1 | AC12: 2 | AD12: 0 | AE12: 0 | AF12: 0 | AG12: 0 | AH12: 0 | AI12: 0 | AJ12: 0 | AK12: 0 | AL12: 0 | AM12: 0 | AN12: 12 | AO12: 0 | AP12: 0 | AQ12: 0 | AR12: 99.7 | AS12: 0 | AT12: 0 | AU12: 0 | AV12: 78.4 | AW12: 0 | AX12: 54.7 | AY12: 54.7 | AZ12: 53 | BA12: 0 | BB12: 94.8 | BC12: 4.8 | BD12: 65 | BE12: 0 | BF12: 0 | BG12: 0 | BH12: 0 | BI12: 0 | BJ12: 0 | BK12: 0 | BL12: 0 | BM12: 0 | BN12: 0 | BO12: 8 | BP12: 0 | BQ12: 0 | BR12: 0 | BS12: 146 | BT12: 0 | BU12: 0 | BV12: 0 | BW12: 1 | BX12: 0 | BY12: 15 | BZ12: 15 | CA12: 5 | CB12: 0 | CC12: 15 | CD12: 5 | CE12: -4 | CF12: 0 | CG12: 0 | CH12: 0 | CI12: 0 | CJ12: 0 | CK12: 0 | CL12: 0 | CM12: 0 | CN12: 0 | CO12: 0 | CP12: na | CQ12: 0 | CR12: 0 | CS12: 0 | CT12: -1107 | CU12: 0 | CV12: 0 | CW12: 0 | CX12: -46 | CY12: 0 | CZ12: 3 | DA12: 3 | DB12: 7 | DC12: 0 | DD12: -1611 | DE12: na | DF12: -850 | DG12: 0 | DH12: 0 | DI12: 0 | DJ12: 0 | DK12: 0 | DL12: 4.284 | DM12: 33.771 | DN12: 4.004 | DO12: 3.732 | DP12: 58.017 | DQ12: 37.203 | DR12: 4.347 | DS12: 4.347 | DT12: 3.913 | DU12: 336.2
A13: 9 | B13: 30 | C13: 5 | D13: 30 | E13: 930530 | F13: 3362 | G13: 25 | H13: 0 | I13: 0 | J13: 0 | K13: 0 | L13: 0 | M13: 2 | N13: 0 | O13: 0 | P13: 0 | Q13: 3 | R13: 0 | S13: 0 | T13: 0 | U13: 3 | V13: 0 | W13: 5 | X13: 5 | Y13: 2 | Z13: 0 | AA13: 2 | AB13: 1 | AC13: 2 | AD13: 0 | AE13: 0 | AF13: 0 | AG13: 0 | AH13: 0 | AI13: 0 | AJ13: 0 | AK13: 0 | AL13: 0 | AM13: 0 | AN13: 12 | AO13: 0 | AP13: 0 | AQ13: 0 | AR13: 99.7 | AS13: 0 | AT13: 0 | AU13: 0 | AV13: 78.4 | AW13: 0 | AX13: 54.7 | AY13: 54.7 | AZ13: 53 | BA13: 0 | BB13: 94.8 | BC13: 4.8 | BD13: 65 | BE13: 0 | BF13: 0 | BG13: 0 | BH13: 0 | BI13: 0 | BJ13: 0 | BK13: 0 | BL13: 0 | BM13: 0 | BN13: 0 | BO13: 8 | BP13: 0 | BQ13: 0 | BR13: 0 | BS13: 146 | BT13: 0 | BU13: 0 | BV13: 0 | BW13: 1 | BX13: 0 | BY13: 15 | BZ13: 15 | CA13: 5 | CB13: 0 | CC13: 15 | CD13: 5 | CE13: -4 | CF13: 0 | CG13: 0 | CH13: 0 | CI13: 0 | CJ13: 0 | CK13: 0 | CL13: 0 | CM13: 0 | CN13: 0 | CO13: 0 | CP13: na | CQ13: 0 | CR13: 0 | CS13: 0 | CT13: -1107 | CU13: 0 | CV13: 0 | CW13: 0 | CX13: -46 | CY13: 0 | CZ13: 3 | DA13: 3 | DB13: 7 | DC13: 0 | DD13: -1611 | DE13: na | DF13: -850 | DG13: 0 | DH13: 0 | DI13: 0 | DJ13: 0 | DK13: 0 | DL13: 4.284 | DM13: 33.771 | DN13: 4.004 | DO13: 3.732 | DP13: 58.017 | DQ13: 37.203 | DR13: 4.347 | DS13: 4.347 | DT13: 3.913 | DU13: 336.2
A14: 1 | B14: 45 | C14: 5 | D14: 30 | E14: 145530 | F14: 3364 | G14: 33 | H14: 0 | I14: 0 | J14: 0 | K14: 0 | L14: 0 | M14: 1 | N14: 0 | O14: 0 | P14: 0 | Q14: 3 | R14: 0 | S14: 0 | T14: 0 | U14: 6 | V14: 0 | W14: 6 | X14: 6 | Y14: 6 | Z14: 0 | AA14: 2 | AB14: 1 | AC14: 2 | AD14: 0 | AE14: 0 | AF14: 0 | AG14: 0 | AH14: 0 | AI14: 0 | AJ14: 0 | AK14: 0 | AL14: 0 | AM14: 0 | AN14: 23 | AO14: 0 | AP14: 0 | AQ14: 0 | AR14: 99.6 | AS14: 0 | AT14: 0 | AU14: 0 | AV14: 38.9 | AW14: 0 | AX14: 45.6 | AY14: 45.6 | AZ14: 17.6 | BA14: 0 | BB14: 94.6 | BC14: 5 | BD14: 64.9 | BE14: 0 | BF14: 0 | BG14: 0 | BH14: 0 | BI14: 0 | BJ14: 0 | BK14: 0 | BL14: 0 | BM14: 0 | BN14: 0 | BO14: 3 | BP14: 0 | BQ14: 0 | BR14: 0 | BS14: 143 | BT14: 0 | BU14: 0 | BV14: 0 | BW14: 15 | BX14: 0 | BY14: 8 | BZ14: 8 | CA14: -1 | CB14: 0 | CC14: 7 | CD14: -1 | CE14: 9 | CF14: 0 | CG14: 0 | CH14: 0 | CI14: 0 | CJ14: 0 | CK14: 0 | CL14: 0 | CM14: 0 | CN14: 0 | CO14: 0 | CP14: na | CQ14: 0 | CR14: 0 | CS14: 0 | CT14: -1105 | CU14: 0 | CV14: 0 | CW14: 0 | CX14: 6 | CY14: 0 | CZ14: 8 | DA14: 8 | DB14: 1 | DC14: 0 | DD14: -1611 | DE14: na | DF14: -845 | DG14: 0 | DH14: 0 | DI14: 0 | DJ14: 0 | DK14: 0 | DL14: 4.277 | DM14: 33.702 | DN14: 4.011 | DO14: 3.671 | DP14: 36.868 | DQ14: 43.325 | DR14: 4.281 | DS14: 4.281 | DT14: 3.974 | DU14: 336.4
A15: 3 | B15: 45 | C15: 5 | D15: 30 | E15: 345530 | F15: 3375 | G15: 29 | H15: 0 | I15: 0 | J15: 0 | K15: 0 | L15: 0 | M15: 2 | N15: 0 | O15: 0 | P15: 0 | Q15: 3 | R15: 0 | S15: 0 | T15: 0 | U15: 5 | V15: 0 | W15: 5 | X15: 5 | Y15: 4 | Z15: 0 | AA15: 2 | AB15: 1 | AC15: 2 | AD15: 0 | AE15: 0 | AF15: 0 | AG15: 0 | AH15: 0 | AI15: 0 | AJ15: 0 | AK15: 0 | AL15: 0 | AM15: 0 | AN15: 10.5 | AO15: 0 | AP15: 0 | AQ15: 0 | AR15: 99.6 | AS15: 0 | AT15: 0 | AU15: 0 | AV15: 45.5 | AW15: 0 | AX15: 54.8 | AY15: 54.8 | AZ15: 26.8 | BA15: 0 | BB15: 95.4 | BC15: 4.7 | BD15: 65.1 | BE15: 0 | BF15: 0 | BG15: 0 | BH15: 0 | BI15: 0 | BJ15: 0 | BK15: 0 | BL15: 0 | BM15: 0 | BN15: 0 | BO15: 0 | BP15: 0 | BQ15: 0 | BR15: 0 | BS15: 130 | BT15: 0 | BU15: 0 | BV15: 0 | BW15: -2 | BX15: 0 | BY15: -14 | BZ15: -14 | CA15: 0 | CB15: 0 | CC15: 10 | CD15: 2 | CE15: 0 | CF15: 0 | CG15: 0 | CH15: 0 | CI15: 0 | CJ15: 0 | CK15: 0 | CL15: 0 | CM15: 0 | CN15: 0 | CO15: 0 | CP15: -6 | CQ15: 0 | CR15: 0 | CS15: 0 | CT15: -1117 | CU15: 0 | CV15: 0 | CW15: 0 | CX15: 0 | CY15: 0 | CZ15: -12 | DA15: -12 | DB15: -8 | DC15: 0 | DD15: -1619 | DE15: na | DF15: -858 | DG15: 0 | DH15: 0 | DI15: 0 | DJ15: 0 | DK15: 0 | DL15: 4.259 | DM15: 34.683 | DN15: 3.889 | DO15: 3.89 | DP15: 36.859 | DQ15: 37.299 | DR15: 4.344 | DS15: 4.344 | DT15: 3.343 | DU15: 337.5
A16: 5 | B16: 45 | C16: 5 | D16: 30 | E16: 545530 | F16: 3369 | G16: 29 | H16: 0 | I16: 0 | J16: 0 | K16: 0 | L16: 0 | M16: 2 | N16: 0 | O16: 0 | P16: 0 | Q16: 3 | R16: 0 | S16: 0 | T16: 0 | U16: 5 | V16: 0 | W16: 6 | X16: 6 | Y16: 2 | Z16: 0 | AA16: 2 | AB16: 1 | AC16: 2 | AD16: 0 | AE16: 0 | AF16: 0 | AG16: 0 | AH16: 0 | AI16: 0 | AJ16: 0 | AK16: 0 | AL16: 0 | AM16: 0 | AN16: 11.4 | AO16: 0 | AP16: 0 | AQ16: 0 | AR16: 99.7 | AS16: 0 | AT16: 0 | AU16: 0 | AV16: 47.3 | AW16: 0 | AX16: 45.7 | AY16: 45.7 | AZ16: 53 | BA16: 0 | BB16: 94.8 | BC16: 4.6 | BD16: 64.9 | BE16: 0 | BF16: 0 | BG16: 0 | BH16: 0 | BI16: 0 | BJ16: 0 | BK16: 0 | BL16: 0 | BM16: 0 | BN16: 0 | BO16: 0 | BP16: 0 | BQ16: 0 | BR16: 0 | BS16: 130 | BT16: 0 | BU16: 0 | BV16: 0 | BW16: -2 | BX16: 0 | BY16: -14 | BZ16: -14 | CA16: 0 | CB16: 0 | CC16: 10 | CD16: 2 | CE16: 0 | CF16: 0 | CG16: 0 | CH16: 0 | CI16: 0 | CJ16: 0 | CK16: 0 | CL16: 0 | CM16: 0 | CN16: 0 | CO16: 0 | CP16: -6 | CQ16: 0 | CR16: 0 | CS16: 0 | CT16: -1117 | CU16: 0 | CV16: 0 | CW16: 0 | CX16: 0 | CY16: 0 | CZ16: -12 | DA16: -12 | DB16: -8 | DC16: 0 | DD16: -1619 | DE16: na | DF16: -852 | DG16: 0 | DH16: 0 | DI16: 0 | DJ16: 0 | DK16: 0 | DL16: 4.259 | DM16: 34.683 | DN16: 3.889 | DO16: 3.89 | DP16: 36.859 | DQ16: 37.299 | DR16: 4.344 | DS16: 4.344 | DT16: 3.343 | DU16: 336.9
A17: 9 | B17: 45 | C17: 5 | D17: 30 | E17: 945530 | F17: 3369 | G17: 29 | H17: 0 | I17: 0 | J17: 0 | K17: 0 | L17: 0 | M17: 2 | N17: 0 | O17: 0 | P17: 0 | Q17: 3 | R17: 0 | S17: 0 | T17: 0 | U17: 5 | V17: 0 | W17: 6 | X17: 6 | Y17: 2 | Z17: 0 | AA17: 2 | AB17: 1 | AC17: 2 | AD17: 0 | AE17: 0 | AF17: 0 | AG17: 0 | AH17: 0 | AI17: 0 | AJ17: 0 | AK17: 0 | AL17: 0 | AM17: 0 | AN17: 11.4 | AO17: 0 | AP17: 0 | AQ17: 0 | AR17: 99.7 | AS17: 0 | AT17: 0 | AU17: 0 | AV17: 47.3 | AW17: 0 | AX17: 45.7 | AY17: 45.7 | AZ17: 53 | BA17: 0 | BB17: 94.8 | BC17: 4.6 | BD17: 64.9 | BE17: 0 | BF17: 0 | BG17: 0 | BH17: 0 | BI17: 0 | BJ17: 0 | BK17: 0 | BL17: 0 | BM17: 0 | BN17: 0 | BO17: 3 | BP17: 0 | BQ17: 0 | BR17: 0 | BS17: 141 | BT17: 0 | BU17: 0 | BV17: 0 | BW17: -2 | BX17: 0 | BY17: 1 | BZ17: 1 | CA17: -4 | CB17: 0 | CC17: 8 | CD17: -2 | CE17: -1 | CF17: 0 | CG17: 0 | CH17: 0 | CI17: 0 | CJ17: 0 | CK17: 0 | CL17: 0 | CM17: 0 | CN17: 0 | CO17: 0 | CP17: -7 | CQ17: 0 | CR17: 0 | CS17: 0 | CT17: -1110 | CU17: 0 | CV17: 0 | CW17: 0 | CX17: -8 | CY17: 0 | CZ17: 6 | DA17: 6 | DB17: -5 | DC17: 0 | DD17: -1614 | DE17: na | DF17: -1 | DG17: 0 | DH17: 0 | DI17: 0 | DJ17: 0 | DK17: 0 | DL17: 4.271 | DM17: 33.972 | DN17: 3.909 | DO17: 3.807 | DP17: 37.683 | DQ17: 36.573 | DR17: 4.285 | DS17: 4.285 | DT17: 3.944 | DU17: 336.9
A18: 1 | B18: 15 | C18: 10 | D18: 30 | E18: 1151030 | F18: 4209 | G18: 26 | H18: 0 | I18: 0 | J18: 0 | K18: 0 | L18: 0 | M18: 1 | N18: 0 | O18: 0 | P18: 0 | Q18: 4 | R18: 0 | S18: 0 | T18: 0 | U18: 1 | V18: 0 | W18: 4 | X18: 4 | Y18: 2 | Z18: 0 | AA18: 3 | AB18: 3 | AC18: 4 | AD18: 0 | AE18: 0 | AF18: 0 | AG18: 0 | AH18: 0 | AI18: 0 | AJ18: 0 | AK18: 0 | AL18: 0 | AM18: 0 | AN18: 9.5 | AO18: 0 | AP18: 0 | AQ18: 0 | AR18: 99.5 | AS18: 0 | AT18: 0 | AU18: 0 | AV18: 96.6 | AW18: 0 | AX18: 85.6 | AY18: 85.6 | AZ18: 66.2 | BA18: 0 | BB18: 84.8 | BC18: 2.1 | BD18: 43.6 | BE18: 0 | BF18: 0 | BG18: 0 | BH18: 0 | BI18: 0 | BJ18: 0 | BK18: 0 | BL18: 0 | BM18: 0 | BN18: 0 | BO18: -4 | BP18: 0 | BQ18: 0 | BR18: 0 | BS18: 555 | BT18: 0 | BU18: 0 | BV18: 0 | BW18: 122 | BX18: 0 | BY18: 0 | BZ18: 0 | CA18: -14 | CB18: 0 | CC18: -20 | CD18: 0 | CE18: -4 | CF18: 0 | CG18: 0 | CH18: 0 | CI18: 0 | CJ18: 0 | CK18: 0 | CL18: 0 | CM18: 0 | CN18: 0 | CO18: 0 | CP18: na | CQ18: 0 | CR18: 0 | CS18: 0 | CT18: -1022 | CU18: 0 | CV18: 0 | CW18: 0 | CX18: na | CY18: 0 | CZ18: -623 | DA18: -623 | DB18: -594 | DC18: 0 | DD18: -897 | DE18: -2 | DF18: -7 | DG18: 0 | DH18: 0 | DI18: 0 | DJ18: 0 | DK18: 0 | DL18: 4.269 | DM18: 29.534 | DN18: 3.693 | DO18: 2.201 | DP18: 495.132 | DQ18: 38.504 | DR18: 6.319 | DS18: 6.319 | DT18: 4.266 | DU18: 420.9
A19: 3 | B19: 15 | C19: 10 | D19: 30 | E19: 3151030 | F19: 4201 | G19: 25 | H19: 0 | I19: 0 | J19: 0 | K19: 0 | L19: 0 | M19: 1 | N19: 0 | O19: 0 | P19: 0 | Q19: 4 | R19: 0 | S19: 0 | T19: 0 | U19: 1 | V19: 0 | W19: 4 | X19: 4 | Y19: 2 | Z19: 0 | AA19: 3 | AB19: 1 | AC19: 5 | AD19: 0 | AE19: 0 | AF19: 0 | AG19: 0 | AH19: 0 | AI19: 0 | AJ19: 0 | AK19: 0 | AL19: 0 | AM19: 0 | AN19: 9.4 | AO19: 0 | AP19: 0 | AQ19: 0 | AR19: 99.5 | AS19: 0 | AT19: 0 | AU19: 0 | AV19: 96.7 | AW19: 0 | AX19: 85.6 | AY19: 85.6 | AZ19: 65.7 | BA19: 0 | BB19: 84.6 | BC19: 6.4 | BD19: 34.8 | BE19: 0 | BF19: 0 | BG19: 0 | BH19: 0 | BI19: 0 | BJ19: 0 | BK19: 0 | BL19: 0 | BM19: 0 | BN19: 0 | BO19: 3 | BP19: 0 | BQ19: 0 | BR19: 0 | BS19: 554 | BT19: 0 | BU19: 0 | BV19: 0 | BW19: 123 | BX19: 0 | BY19: 0 | BZ19: 0 | CA19: -5 | CB19: 0 | CC19: -9 | CD19: 2 | CE19: -10 | CF19: 0 | CG19: 0 | CH19: 0 | CI19: 0 | CJ19: 0 | CK19: 0 | CL19: 0 | CM19: 0 | CN19: 0 | CO19: 0 | CP19: na | CQ19: 0 | CR19: 0 | CS19: 0 | CT19: -1007 | CU19: 0 | CV19: 0 | CW19: 0 | CX19: na | CY19: 0 | CZ19: -625 | DA19: -625 | DB19: -554 | DC19: 0 | DD19: -896 | DE19: na | DF19: 4 | DG19: 0 | DH19: 0 | DI19: 0 | DJ19: 0 | DK19: 0 | DL19: 4.278 | DM19: 29.493 | DN19: 4.039 | DO19: 2.074 | DP19: 495.425 | DQ19: 34.606 | DR19: 6.468 | DS19: 6.468 | DT19: 4.26 | DU19: 420.1
A20: 5 | B20: 15 | C20: 10 | D20: 30 | E20: 5151030 | F20: 4201 | G20: 25 | H20: 0 | I20: 0 | J20: 0 | K20: 0 | L20: 0 | M20: 1 | N20: 0 | O20: 0 | P20: 0 | Q20: 4 | R20: 0 | S20: 0 | T20: 0 | U20: 1 | V20: 0 | W20: 4 | X20: 4 | Y20: 2 | Z20: 0 | AA20: 3 | AB20: 1 | AC20: 5 | AD20: 0 | AE20: 0 | AF20: 0 | AG20: 0 | AH20: 0 | AI20: 0 | AJ20: 0 | AK20: 0 | AL20: 0 | AM20: 0 | AN20: 9.4 | AO20: 0 | AP20: 0 | AQ20: 0 | AR20: 99.5 | AS20: 0 | AT20: 0 | AU20: 0 | AV20: 96.7 | AW20: 0 | AX20: 85.6 | AY20: 85.6 | AZ20: 65.7 | BA20: 0 | BB20: 84.6 | BC20: 6.4 | BD20: 34.8 | BE20: 0 | BF20: 0 | BG20: 0 | BH20: 0 | BI20: 0 | BJ20: 0 | BK20: 0 | BL20: 0 | BM20: 0 | BN20: 0 | BO20: 3 | BP20: 0 | BQ20: 0 | BR20: 0 | BS20: 554 | BT20: 0 | BU20: 0 | BV20: 0 | BW20: 123 | BX20: 0 | BY20: 0 | BZ20: 0 | CA20: -5 | CB20: 0 | CC20: -9 | CD20: 2 | CE20: -10 | CF20: 0 | CG20: 0 | CH20: 0 | CI20: 0 | CJ20: 0 | CK20: 0 | CL20: 0 | CM20: 0 | CN20: 0 | CO20: 0 | CP20: na | CQ20: 0 | CR20: 0 | CS20: 0 | CT20: -1007 | CU20: 0 | CV20: 0 | CW20: 0 | CX20: na | CY20: 0 | CZ20: -625 | DA20: -625 | DB20: -554 | DC20: 0 | DD20: -896 | DE20: na | DF20: 4 | DG20: 0 | DH20: 0 | DI20: 0 | DJ20: 0 | DK20: 0 | DL20: 4.278 | DM20: 29.493 | DN20: 4.039 | DO20: 2.074 | DP20: 495.425 | DQ20: 34.606 | DR20: 6.468 | DS20: 6.468 | DT20: 4.26 | DU20: 420.1
A21: 9 | B21: 15 | C21: 10 | D21: 30 | E21: 9151030 | F21: 4209 | G21: 25 | H21: 0 | I21: 0 | J21: 0 | K21: 0 | L21: 0 | M21: 3 | N21: 0 | O21: 0 | P21: 0 | Q21: 4 | R21: 0 | S21: 0 | T21: 0 | U21: 1 | V21: 0 | W21: 4 | X21: 4 | Y21: 2 | Z21: 0 | AA21: 3 | AB21: 1 | AC21: 3 | AD21: 0 | AE21: 0 | AF21: 0 | AG21: 0 | AH21: 0 | AI21: 0 | AJ21: 0 | AK21: 0 | AL21: 0 | AM21: 0 | AN21: 3.1 | AO21: 0 | AP21: 0 | AQ21: 0 | AR21: 99.5 | AS21: 0 | AT21: 0 | AU21: 0 | AV21: 96.6 | AW21: 0 | AX21: 85.5 | AY21: 85.5 | AZ21: 65.5 | BA21: 0 | BB21: 84.7 | BC21: 6.3 | BD21: 57.9 | BE21: 0 | BF21: 0 | BG21: 0 | BH21: 0 | BI21: 0 | BJ21: 0 | BK21: 0 | BL21: 0 | BM21: 0 | BN21: 0 | BO21: 0 | BP21: 0 | BQ21: 0 | BR21: 0 | BS21: 535 | BT21: 0 | BU21: 0 | BV21: 0 | BW21: 121 | BX21: 0 | BY21: 0 | BZ21: 0 | CA21: -16 | CB21: 0 | CC21: -13 | CD21: -8 | CE21: -2 | CF21: 0 | CG21: 0 | CH21: 0 | CI21: 0 | CJ21: 0 | CK21: 0 | CL21: 0 | CM21: 0 | CN21: 0 | CO21: 0 | CP21: na | CQ21: 0 | CR21: 0 | CS21: 0 | CT21: -1025 | CU21: 0 | CV21: 0 | CW21: 0 | CX21: na | CY21: 0 | CZ21: -635 | DA21: -635 | DB21: -568 | DC21: 0 | DD21: -909 | DE21: na | DF21: -10 | DG21: 0 | DH21: 0 | DI21: 0 | DJ21: 0 | DK21: 0 | DL21: 4.278 | DM21: 29.53 | DN21: 3.992 | DO21: 2.6 | DP21: 483.335 | DQ21: 36.998 | DR21: 6.128 | DS21: 6.128 | DT21: 4.216 | DU21: 420.9
A22: 1 | B22: 30 | C22: 10 | D22: 30 | E22: 1301030 | F22: 8029 | G22: 39 | H22: 0 | I22: 0 | J22: 0 | K22: 0 | L22: 0 | M22: 1 | N22: 0 | O22: 0 | P22: 0 | Q22: 8 | R22: 0 | S22: 0 | T22: 0 | U22: 1 | V22: 0 | W22: 8 | X22: 8 | Y22: 3 | Z22: 0 | AA22: 5 | AB22: 1 | AC22: 4 | AD22: 0 | AE22: 0 | AF22: 0 | AG22: 0 | AH22: 0 | AI22: 0 | AJ22: 0 | AK22: 0 | AL22: 0 | AM22: 0 | AN22: 10.9 | AO22: 0 | AP22: 0 | AQ22: 0 | AR22: 98.9 | AS22: 0 | AT22: 0 | AU22: 0 | AV22: 97 | AW22: 0 | AX22: 81.6 | AY22: 81.6 | AZ22: 84.8 | BA22: 0 | BB22: 98.6 | BC22: 12.5 | BD22: 84.3 | BE22: 0 | BF22: 0 | BG22: 0 | BH22: 0 | BI22: 0 | BJ22: 0 | BK22: 0 | BL22: 0 | BM22: 0 | BN22: 0 | BO22: 1 | BP22: 0 | BQ22: 0 | BR22: 0 | BS22: 11 | BT22: 0 | BU22: 0 | BV22: 0 | BW22: 135 | BX22: 0 | BY22: 16 | BZ22: 16 | CA22: 4 | CB22: 0 | CC22: 195 | CD22: 16 | CE22: 0 | CF22: 0 | CG22: 0 | CH22: 0 | CI22: 0 | CJ22: 0 | CK22: 0 | CL22: 0 | CM22: 0 | CN22: 0 | CO22: 0 | CP22: na | CQ22: 0 | CR22: 0 | CS22: 0 | CT22: -786 | CU22: 0 | CV22: 0 | CW22: 0 | CX22: na | CY22: 0 | CZ22: -4 | DA22: -4 | DB22: -886 | DC22: 0 | DD22: -1539 | DE22: na | DF22: -1051 | DG22: 0 | DH22: 0 | DI22: 0 | DJ22: 0 | DK22: 0 | DL22: 4.276 | DM22: 44.963 | DN22: 4.218 | DO22: 4.125 | DP22: 598.471 | DQ22: 38.814 | DR22: 4.61 | DS22: 4.61 | DT22: 5.75 | DU22: 802.9
A23: 3 | B23: 30 | C23: 10 | D23: 30 | E23: 3301030 | F23: 8245 | G23: 40 | H23: 0 | I23: 0 | J23: 0 | K23: 0 | L23: 0 | M23: 2 | N23: 0 | O23: 0 | P23: 0 | Q23: 8 | R23: 0 | S23: 0 | T23: 0 | U23: 3 | V23: 0 | W23: 7 | X23: 7 | Y23: 3 | Z23: 0 | AA23: 5 | AB23: 1 | AC23: 4 | AD23: 0 | AE23: 0 | AF23: 0 | AG23: 0 | AH23: 0 | AI23: 0 | AJ23: 0 | AK23: 0 | AL23: 0 | AM23: 0 | AN23: 13.9 | AO23: 0 | AP23: 0 | AQ23: 0 | AR23: 98.9 | AS23: 0 | AT23: 0 | AU23: 0 | AV23: 96.5 | AW23: 0 | AX23: 95.7 | AY23: 95.7 | AZ23: 86.6 | BA23: 0 | BB23: 98.6 | BC23: 11.9 | BD23: 84.3 | BE23: 0 | BF23: 0 | BG23: 0 | BH23: 0 | BI23: 0 | BJ23: 0 | BK23: 0 | BL23: 0 | BM23: 0 | BN23: 0 | BO23: 5 | BP23: 0 | BQ23: 0 | BR23: 0 | BS23: 29 | BT23: 0 | BU23: 0 | BV23: 0 | BW23: 63 | BX23: 0 | BY23: 67 | BZ23: 67 | CA23: 10 | CB23: 0 | CC23: 77 | CD23: -4 | CE23: 3 | CF23: 0 | CG23: 0 | CH23: 0 | CI23: 0 | CJ23: 0 | CK23: 0 | CL23: 0 | CM23: 0 | CN23: 0 | CO23: 0 | CP23: 11 | CQ23: 0 | CR23: 0 | CS23: 0 | CT23: -749 | CU23: 0 | CV23: 0 | CW23: 0 | CX23: -86 | CY23: 0 | CZ23: -1062 | DA23: -1062 | DB23: -1044 | DC23: 0 | DD23: -1481 | DE23: 0 | DF23: -999 | DG23: 0 | DH23: 0 | DI23: 0 | DJ23: 0 | DK23: 0 | DL23: 4.278 | DM23: 44.868 | DN23: 4.077 | DO23: 4.118 | DP23: 378.426 | DQ23: 37.185 | DR23: 10.328 | DS23: 10.328 | DT23: 5.855 | DU23: 824.5
A24: 5 | B24: 30 | C24: 10 | D24: 30 | E24: 5301030 | F24: 8256 | G24: 39 | H24: 0 | I24: 0 | J24: 0 | K24: 0 | L24: 0 | M24: 1 | N24: 0 | O24: 0 | P24: 0 | Q24: 8 | R24: 0 | S24: 0 | T24: 0 | U24: 3 | V24: 0 | W24: 7 | X24: 7 | Y24: 3 | Z24: 0 | AA24: 5 | AB24: 1 | AC24: 4 | AD24: 0 | AE24: 0 | AF24: 0 | AG24: 0 | AH24: 0 | AI24: 0 | AJ24: 0 | AK24: 0 | AL24: 0 | AM24: 0 | AN24: 27.4 | AO24: 0 | AP24: 0 | AQ24: 0 | AR24: 98.9 | AS24: 0 | AT24: 0 | AU24: 0 | AV24: 96.5 | AW24: 0 | AX24: 95.9 | AY24: 95.9 | AZ24: 86.7 | BA24: 0 | BB24: 98.6 | BC24: 12.2 | BD24: 84.5 | BE24: 0 | BF24: 0 | BG24: 0 | BH24: 0 | BI24: 0 | BJ24: 0 | BK24: 0 | BL24: 0 | BM24: 0 | BN24: 0 | BO24: -11 | BP24: 0 | BQ24: 0 | BR24: 0 | BS24: 23 | BT24: 0 | BU24: 0 | BV24: 0 | BW24: 42 | BX24: 0 | BY24: 51 | BZ24: 51 | CA24: 5 | CB24: 0 | CC24: 67 | CD24: -9 | CE24: -10 | CF24: 0 | CG24: 0 | CH24: 0 | CI24: 0 | CJ24: 0 | CK24: 0 | CL24: 0 | CM24: 0 | CN24: 0 | CO24: 0 | CP24: na | CQ24: 0 | CR24: 0 | CS24: 0 | CT24: -753 | CU24: 0 | CV24: 0 | CW24: 0 | CX24: -94 | CY24: 0 | CZ24: -1077 | DA24: -1077 | DB24: -1036 | DC24: 0 | DD24: -1499 | DE24: na | DF24: -3270 | DG24: 0 | DH24: 0 | DI24: 0 | DJ24: 0 | DK24: 0 | DL24: 4.278 | DM24: 45.089 | DN24: 4.136 | DO24: 4.146 | DP24: 376.617 | DQ24: 43.695 | DR24: 10.343 | DS24: 10.343 | DT24: 6.041 | DU24: 825.6
A25: 9 | B25: 30 | C25: 10 | D25: 30 | E25: 9301030 | F25: 8256 | G25: 39 | H25: 0 | I25: 0 | J25: 0 | K25: 0 | L25: 0 | M25: 1 | N25: 0 | O25: 0 | P25: 0 | Q25: 8 | R25: 0 | S25: 0 | T25: 0 | U25: 3 | V25: 0 | W25: 7 | X25: 7 | Y25: 3 | Z25: 0 | AA25: 5 | AB25: 1 | AC25: 4 | AD25: 0 | AE25: 0 | AF25: 0 | AG25: 0 | AH25: 0 | AI25: 0 | AJ25: 0 | AK25: 0 | AL25: 0 | AM25: 0 | AN25: 27.4 | AO25: 0 | AP25: 0 | AQ25: 0 | AR25: 98.9 | AS25: 0 | AT25: 0 | AU25: 0 | AV25: 96.5 | AW25: 0 | AX25: 95.9 | AY25: 95.9 | AZ25: 86.7 | BA25: 0 | BB25: 98.6 | BC25: 12.2 | BD25: 84.5 | BE25: 0 | BF25: 0 | BG25: 0 | BH25: 0 | BI25: 0 | BJ25: 0 | BK25: 0 | BL25: 0 | BM25: 0 | BN25: 0 | BO25: -11 | BP25: 0 | BQ25: 0 | BR25: 0 | BS25: 23 | BT25: 0 | BU25: 0 | BV25: 0 | BW25: 42 | BX25: 0 | BY25: 51 | BZ25: 51 | CA25: 5 | CB25: 0 | CC25: 67 | CD25: -9 | CE25: -10 | CF25: 0 | CG25: 0 | CH25: 0 | CI25: 0 | CJ25: 0 | CK25: 0 | CL25: 0 | CM25: 0 | CN25: 0 | CO25: 0 | CP25: na | CQ25: 0 | CR25: 0 | CS25: 0 | CT25: -753 | CU25: 0 | CV25: 0 | CW25: 0 | CX25: -94 | CY25: 0 | CZ25: -1077 | DA25: -1077 | DB25: -1036 | DC25: 0 | DD25: -1499 | DE25: na | DF25: -3270 | DG25: 0 | DH25: 0 | DI25: 0 | DJ25: 0 | DK25: 0 | DL25: 4.278 | DM25: 45.089 | DN25: 4.136 | DO25: 4.146 | DP25: 376.617 | DQ25: 43.695 | DR25: 10.343 | DS25: 10.343 | DT25: 6.041 | DU25: 825.6
A26: 1 | B26: 45 | C26: 10 | D26: 30 | E26: 1451030 | F26: 8732 | G26: 56 | H26: 0 | I26: 0 | J26: 0 | K26: 0 | L26: 0 | M26: 1 | N26: 0 | O26: 0 | P26: 0 | Q26: 8 | R26: 0 | S26: 0 | T26: 0 | U26: 7 | V26: 0 | W26: 13 | X26: 13 | Y26: 4 | Z26: 0 | AA26: 5 | AB26: 1 | AC26: 4 | AD26: 0 | AE26: 0 | AF26: 0 | AG26: 0 | AH26: 0 | AI26: 0 | AJ26: 0 | AK26: 0 | AL26: 0 | AM26: 0 | AN26: 55.7 | AO26: 0 | AP26: 0 | AQ26: 0 | AR26: 98.9 | AS26: 0 | AT26: 0 | AU26: 0 | AV26: 85.4 | AW26: 0 | AX26: 54.6 | AY26: 54.6 | AZ26: 68.4 | BA26: 0 | BB26: 98.6 | BC26: 11.7 | BD26: 84.3 | BE26: 0 | BF26: 0 | BG26: 0 | BH26: 0 | BI26: 0 | BJ26: 0 | BK26: 0 | BL26: 0 | BM26: 0 | BN26: 0 | BO26: 11 | BP26: 0 | BQ26: 0 | BR26: 0 | BS26: 26 | BT26: 0 | BU26: 0 | BV26: 0 | BW26: 19 | BX26: 0 | BY26: 8 | BZ26: 8 | CA26: 4 | CB26: 0 | CC26: 224 | CD26: -6 | CE26: 2 | CF26: 0 | CG26: 0 | CH26: 0 | CI26: 0 | CJ26: 0 | CK26: 0 | CL26: 0 | CM26: 0 | CN26: 0 | CO26: 0 | CP26: na | CQ26: 0 | CR26: 0 | CS26: 0 | CT26: -895 | CU26: 0 | CV26: 0 | CW26: 0 | CX26: -43 | CY26: 0 | CZ26: -1 | DA26: -1 | DB26: -10 | DC26: 0 | DD26: -1707 | DE26: na | DF26: -1149 | DG26: 0 | DH26: 0 | DI26: 0 | DJ26: 0 | DK26: 0 | DL26: 4.278 | DM26: 44.676 | DN26: 4.1 | DO26: 4.109 | DP26: 51.071 | DQ26: 62.311 | DR26: 4.277 | DS26: 4.277 | DT26: 3.843 | DU26: 873.2
A27: 3 | B27: 45 | C27: 10 | D27: 30 | E27: 3451030 | F27: 8746 | G27: 53 | H27: 0 | I27: 0 | J27: 0 | K27: 0 | L27: 0 | M27: 2 | N27: 0 | O27: 0 | P27: 0 | Q27: 8 | R27: 0 | S27: 0 | T27: 0 | U27: 7 | V27: 0 | W27: 10 | X27: 10 | Y27: 6 | Z27: 0 | AA27: 5 | AB27: 1 | AC27: 4 | AD27: 0 | AE27: 0 | AF27: 0 | AG27: 0 | AH27: 0 | AI27: 0 | AJ27: 0 | AK27: 0 | AL27: 0 | AM27: 0 | AN27: 28.1 | AO27: 0 | AP27: 0 | AQ27: 0 | AR27: 98.9 | AS27: 0 | AT27: 0 | AU27: 0 | AV27: 85 | AW27: 0 | AX27: 71.1 | AY27: 71.1 | AZ27: 46 | BA27: 0 | BB27: 98.6 | BC27: 12.6 | BD27: 84.4 | BE27: 0 | BF27: 0 | BG27: 0 | BH27: 0 | BI27: 0 | BJ27: 0 | BK27: 0 | BL27: 0 | BM27: 0 | BN27: 0 | BO27: 2 | BP27: 0 | BQ27: 0 | BR27: 0 | BS27: 27 | BT27: 0 | BU27: 0 | BV27: 0 | BW27: -4 | BX27: 0 | BY27: 10 | BZ27: 10 | CA27: -14 | CB27: 0 | CC27: 207 | CD27: -17 | CE27: 14 | CF27: 0 | CG27: 0 | CH27: 0 | CI27: 0 | CJ27: 0 | CK27: 0 | CL27: 0 | CM27: 0 | CN27: 0 | CO27: 0 | CP27: -4 | CQ27: 0 | CR27: 0 | CS27: 0 | CT27: -897 | CU27: 0 | CV27: 0 | CW27: 0 | CX27: -42 | CY27: 0 | CZ27: -5 | DA27: -5 | DB27: -26 | DC27: 0 | DD27: -1721 | DE27: na | DF27: -1166 | DG27: 0 | DH27: 0 | DI27: 0 | DJ27: 0 | DK27: 0 | DL27: 4.284 | DM27: 43.616 | DN27: 4.203 | DO27: 4.154 | DP27: 48.984 | DQ27: 39.489 | DR27: 4.353 | DS27: 4.353 | DT27: 3.365 | DU27: 874.6
A28: 5 | B28: 45 | C28: 10 | D28: 30 | E28: 5451030 | F28: 8750 | G28: 49 | H28: 0 | I28: 0 | J28: 0 | K28: 0 | L28: 0 | M28: 3 | N28: 0 | O28: 0 | P28: 0 | Q28: 8 | R28: 0 | S28: 0 | T28: 0 | U28: 8 | V28: 0 | W28: 8 | X28: 8 | Y28: 4 | Z28: 0 | AA28: 5 | AB28: 1 | AC28: 4 | AD28: 0 | AE28: 0 | AF28: 0 | AG28: 0 | AH28: 0 | AI28: 0 | AJ28: 0 | AK28: 0 | AL28: 0 | AM28: 0 | AN28: 19.1 | AO28: 0 | AP28: 0 | AQ28: 0 | AR28: 98.9 | AS28: 0 | AT28: 0 | AU28: 0 | AV28: 76.2 | AW28: 0 | AX28: 79.1 | AY28: 79.1 | AZ28: 69 | BA28: 0 | BB28: 98.6 | BC28: 12.2 | BD28: 84.3 | BE28: 0 | BF28: 0 | BG28: 0 | BH28: 0 | BI28: 0 | BJ28: 0 | BK28: 0 | BL28: 0 | BM28: 0 | BN28: 0 | BO28: -1 | BP28: 0 | BQ28: 0 | BR28: 0 | BS28: 12 | BT28: 0 | BU28: 0 | BV28: 0 | BW28: 8 | BX28: 0 | BY28: -8 | BZ28: -8 | CA28: 4 | CB28: 0 | CC28: 196 | CD28: -5 | CE28: 8 | CF28: 0 | CG28: 0 | CH28: 0 | CI28: 0 | CJ28: 0 | CK28: 0 | CL28: 0 | CM28: 0 | CN28: 0 | CO28: 0 | CP28: -3 | CQ28: 0 | CR28: 0 | CS28: 0 | CT28: -905 | CU28: 0 | CV28: 0 | CW28: 0 | CX28: -11 | CY28: 0 | CZ28: -6 | DA28: -6 | DB28: -19 | DC28: 0 | DD28: -1715 | DE28: na | DF28: -1158 | DG28: 0 | DH28: 0 | DI28: 0 | DJ28: 0 | DK28: 0 | DL28: 4.287 | DM28: 44.371 | DN28: 4.123 | DO28: 4.072 | DP28: 41.838 | DQ28: 36.64 | DR28: 4.535 | DS28: 4.535 | DT28: 3.807 | DU28: 875
A29: 9 | B29: 45 | C29: 10 | D29: 30 | E29: 9451030 | F29: 8750 | G29: 49 | H29: 0 | I29: 0 | J29: 0 | K29: 0 | L29: 0 | M29: 3 | N29: 0 | O29: 0 | P29: 0 | Q29: 8 | R29: 0 | S29: 0 | T29: 0 | U29: 8 | V29: 0 | W29: 8 | X29: 8 | Y29: 4 | Z29: 0 | AA29: 5 | AB29: 1 | AC29: 4 | AD29: 0 | AE29: 0 | AF29: 0 | AG29: 0 | AH29: 0 | AI29: 0 | AJ29: 0 | AK29: 0 | AL29: 0 | AM29: 0 | AN29: 19.1 | AO29: 0 | AP29: 0 | AQ29: 0 | AR29: 98.9 | AS29: 0 | AT29: 0 | AU29: 0 | AV29: 76.2 | AW29: 0 | AX29: 79.1 | AY29: 79.1 | AZ29: 69 | BA29: 0 | BB29: 98.6 | BC29: 12.2 | BD29: 84.3 | BE29: 0 | BF29: 0 | BG29: 0 | BH29: 0 | BI29: 0 | BJ29: 0 | BK29: 0 | BL29: 0 | BM29: 0 | BN29: 0 | BO29: -1 | BP29: 0 | BQ29: 0 | BR29: 0 | BS29: 12 | BT29: 0 | BU29: 0 | BV29: 0 | BW29: 8 | BX29: 0 | BY29: -8 | BZ29: -8 | CA29: 4 | CB29: 0 | CC29: 196 | CD29: -5 | CE29: 8 | CF29: 0 | CG29: 0 | CH29: 0 | CI29: 0 | CJ29: 0 | CK29: 0 | CL29: 0 | CM29: 0 | CN29: 0 | CO29: 0 | CP29: -3 | CQ29: 0 | CR29: 0 | CS29: 0 | CT29: -905 | CU29: 0 | CV29: 0 | CW29: 0 | CX29: -11 | CY29: 0 | CZ29: -6 | DA29: -6 | DB29: -19 | DC29: 0 | DD29: -1715 | DE29: na | DF29: -1158 | DG29: 0 | DH29: 0 | DI29: 0 | DJ29: 0 | DK29: 0 | DL29: 4.287 | DM29: 44.371 | DN29: 4.123 | DO29: 4.072 | DP29: 41.838 | DQ29: 36.64 | DR29: 4.535 | DS29: 4.535 | DT29: 3.807 | DU29: 875
A30: 1 | B30: 15 | C30: 15 | D30: 30 | E30: 1151530 | F30: 4209 | G30: 26 | H30: 0 | I30: 0 | J30: 0 | K30: 0 | L30: 0 | M30: 1 | N30: 0 | O30: 0 | P30: 0 | Q30: 4 | R30: 0 | S30: 0 | T30: 0 | U30: 1 | V30: 0 | W30: 4 | X30: 4 | Y30: 2 | Z30: 0 | AA30: 3 | AB30: 3 | AC30: 4 | AD30: 0 | AE30: 0 | AF30: 0 | AG30: 0 | AH30: 0 | AI30: 0 | AJ30: 0 | AK30: 0 | AL30: 0 | AM30: 0 | AN30: 9.5 | AO30: 0 | AP30: 0 | AQ30: 0 | AR30: 99.5 | AS30: 0 | AT30: 0 | AU30: 0 | AV30: 96.6 | AW30: 0 | AX30: 85.6 | AY30: 85.6 | AZ30: 66.2 | BA30: 0 | BB30: 84.8 | BC30: 2.1 | BD30: 43.6 | BE30: 0 | BF30: 0 | BG30: 0 | BH30: 0 | BI30: 0 | BJ30: 0 | BK30: 0 | BL30: 0 | BM30: 0 | BN30: 0 | BO30: -4 | BP30: 0 | BQ30: 0 | BR30: 0 | BS30: 555 | BT30: 0 | BU30: 0 | BV30: 0 | BW30: 122 | BX30: 0 | BY30: 0 | BZ30: 0 | CA30: -14 | CB30: 0 | CC30: 20 | CD30: 0 | CE30: -4 | CF30: 0 | CG30: 0 | CH30: 0 | CI30: 0 | CJ30: 0 | CK30: 0 | CL30: 0 | CM30: 0 | CN30: 0 | CO30: 0 | CP30: na | CQ30: 0 | CR30: 0 | CS30: 0 | CT30: -1022 | CU30: 0 | CV30: 0 | CW30: 0 | CX30: na | CY30: 0 | CZ30: -623 | DA30: -623 | DB30: -594 | DC30: 0 | DD30: -897 | DE30: 2 | DF30: -7 | DG30: 0 | DH30: 0 | DI30: 0 | DJ30: 0 | DK30: 0 | DL30: 4.269 | DM30: 29.534 | DN30: 3.693 | DO30: 2.201 | DP30: 495.132 | DQ30: 38.504 | DR30: 6.319 | DS30: 6.319 | DT30: 4.266 | DU30: 420.9
A31: 3 | B31: 15 | C31: 15 | D31: 30 | E31: 3151530 | F31: 4205 | G31: 27 | H31: 0 | I31: 0 | J31: 0 | K31: 0 | L31: 0 | M31: 2 | N31: 0 | O31: 0 | P31: 0 | Q31: 4 | R31: 0 | S31: 0 | T31: 0 | U31: 1 | V31: 0 | W31: 4 | X31: 4 | Y31: 2 | Z31: 0 | AA31: 3 | AB31: 3 | AC31: 4 | AD31: 0 | AE31: 0 | AF31: 0 | AG31: 0 | AH31: 0 | AI31: 0 | AJ31: 0 | AK31: 0 | AL31: 0 | AM31: 0 | AN31: 4.9 | AO31: 0 | AP31: 0 | AQ31: 0 | AR31: 99.5 | AS31: 0 | AT31: 0 | AU31: 0 | AV31: 96.6 | AW31: 0 | AX31: 85.6 | AY31: 85.6 | AZ31: 66.2 | BA31: 0 | BB31: 84.8 | BC31: 2.2 | BD31: 43.6 | BE31: 0 | BF31: 0 | BG31: 0 | BH31: 0 | BI31: 0 | BJ31: 0 | BK31: 0 | BL31: 0 | BM31: 0 | BN31: 0 | BO31: 0 | BP31: 0 | BQ31: 0 | BR31: 0 | BS31: 558 | BT31: 0 | BU31: 0 | BV31: 0 | BW31: 123 | BX31: 0 | BY31: 0 | BZ31: 0 | CA31: -8 | CB31: 0 | CC31: -15 | CD31: 0 | CE31: 7 | CF31: 0 | CG31: 0 | CH31: 0 | CI31: 0 | CJ31: 0 | CK31: 0 | CL31: 0 | CM31: 0 | CN31: 0 | CO31: 0 | CP31: 4 | CQ31: 0 | CR31: 0 | CS31: 0 | CT31: -1019 | CU31: 0 | CV31: 0 | CW31: 0 | CX31: na | CY31: 0 | CZ31: -618 | DA31: -618 | DB31: -593 | DC31: 0 | DD31: -892 | DE31: 2 | DF31: -5 | DG31: 0 | DH31: 0 | DI31: 0 | DJ31: 0 | DK31: 0 | DL31: 4.268 | DM31: 29.529 | DN31: 3.74 | DO31: 2.197 | DP31: 493.773 | DQ31: 37.924 | DR31: 6.346 | DS31: 6.346 | DT31: 4.27 | DU31: 420.5
A32: 5 | B32: 15 | C32: 15 | D32: 30 | E32: 5151530 | F32: 4216 | G32: 32 | H32: 0 | I32: 0 | J32: 0 | K32: 0 | L32: 0 | M32: 2 | N32: 0 | O32: 0 | P32: 0 | Q32: 4 | R32: 0 | S32: 0 | T32: 0 | U32: 1 | V32: 0 | W32: 4 | X32: 4 | Y32: 2 | Z32: 0 | AA32: 3 | AB32: 5 | AC32: 7 | AD32: 0 | AE32: 0 | AF32: 0 | AG32: 0 | AH32: 0 | AI32: 0 | AJ32: 0 | AK32: 0 | AL32: 0 | AM32: 0 | AN32: 4.8 | AO32: 0 | AP32: 0 | AQ32: 0 | AR32: 99.5 | AS32: 0 | AT32: 0 | AU32: 0 | AV32: 96.6 | AW32: 0 | AX32: 85.7 | AY32: 85.7 | AZ32: 66.9 | BA32: 0 | BB32: 84.5 | BC32: 1.2 | BD32: 24.9 | BE32: 0 | BF32: 0 | BG32: 0 | BH32: 0 | BI32: 0 | BJ32: 0 | BK32: 0 | BL32: 0 | BM32: 0 | BN32: 0 | BO32: 0 | BP32: 0 | BQ32: 0 | BR32: 0 | BS32: 537 | BT32: 0 | BU32: 0 | BV32: 0 | BW32: 123 | BX32: 0 | BY32: 0 | BZ32: 0 | CA32: -23 | CB32: 0 | CC32: -20 | CD32: 0 | CE32: -10 | CF32: 0 | CG32: 0 | CH32: 0 | CI32: 0 | CJ32: 0 | CK32: 0 | CL32: 0 | CM32: 0 | CN32: 0 | CO32: 0 | CP32: -4 | CQ32: 0 | CR32: 0 | CS32: 0 | CT32: -1026 | CU32: 0 | CV32: 0 | CW32: 0 | CX32: na | CY32: 0 | CZ32: -630 | DA32: -630 | DB32: -592 | DC32: 0 | DD32: -917 | DE32: 0 | DF32: -27 | DG32: 0 | DH32: 0 | DI32: 0 | DJ32: 0 | DK32: 0 | DL32: 4.279 | DM32: 29.449 | DN32: 3.686 | DO32: 2.024 | DP32: 485.63 | DQ32: 33.95 | DR32: 6.455 | DS32: 6.455 | DT32: 4.325 | DU32: 421.6
A33: 9 | B33: 15 | C33: 15 | D33: 30 | E33: 9151530 | F33: 4212 | G33: 31 | H33: 0 | I33: 0 | J33: 0 | K33: 0 | L33: 0 | M33: 1 | N33: 0 | O33: 0 | P33: 0 | Q33: 4 | R33: 0 | S33: 0 | T33: 0 | U33: 1 | V33: 0 | W33: 4 | X33: 4 | Y33: 2 | Z33: 0 | AA33: 3 | AB33: 5 | AC33: 7 | AD33: 0 | AE33: 0 | AF33: 0 | AG33: 0 | AH33: 0 | AI33: 0 | AJ33: 0 | AK33: 0 | AL33: 0 | AM33: 0 | AN33: 9.2 | AO33: 0 | AP33: 0 | AQ33: 0 | AR33: 99.5 | AS33: 0 | AT33: 0 | AU33: 0 | AV33: 96.6 | AW33: 0 | AX33: 85.6 | AY33: 85.6 | AZ33: 66.8 | BA33: 0 | BB33: 84.7 | BC33: 1.3 | BD33: 24.9 | BE33: 0 | BF33: 0 | BG33: 0 | BH33: 0 | BI33: 0 | BJ33: 0 | BK33: 0 | BL33: 0 | BM33: 0 | BN33: 0 | BO33: 4 | BP33: 0 | BQ33: 0 | BR33: 0 | BS33: 541 | BT33: 0 | BU33: 0 | BV33: 0 | BW33: 124 | BX33: 0 | BY33: -16 | BZ33: -16 | CA33: -21 | CB33: 0 | CC33: -20 | CD33: 0 | CE33: -8 | CF33: 0 | CG33: 0 | CH33: 0 | CI33: 0 | CJ33: 0 | CK33: 0 | CL33: 0 | CM33: 0 | CN33: 0 | CO33: 0 | CP33: 4 | CQ33: 0 | CR33: 0 | CS33: 0 | CT33: -1024 | CU33: 0 | CV33: 0 | CW33: 0 | CX33: na | CY33: 0 | CZ33: -624 | DA33: -624 | DB33: -586 | DC33: 0 | DD33: -908 | DE33: 0 | DF33: -22 | DG33: 0 | DH33: 0 | DI33: 0 | DJ33: 0 | DK33: 0 | DL33: 4.275 | DM33: 29.469 | DN33: 3.714 | DO33: 2.023 | DP33: 488.24 | DQ33: 33.905 | DR33: 6.438 | DS33: 6.438 | DT33: 4.306 | DU33: 421.2
A34: 1 | B34: 30 | C34: 15 | D34: 30 | E34: 1301530 | F34: 8045 | G34: 41 | H34: 0 | I34: 0 | J34: 0 | K34: 0 | L34: 0 | M34: 1 | N34: 0 | O34: 0 | P34: 0 | Q34: 8 | R34: 0 | S34: 0 | T34: 0 | U34: 1 | V34: 0 | W34: 9 | X34: 9 | Y34: 3 | Z34: 0 | AA34: 5 | AB34: 1 | AC34: 4 | AD34: 0 | AE34: 0 | AF34: 0 | AG34: 0 | AH34: 0 | AI34: 0 | AJ34: 0 | AK34: 0 | AL34: 0 | AM34: 0 | AN34: 9.2 | AO34: 0 | AP34: 0 | AQ34: 0 | AR34: 98.9 | AS34: 0 | AT34: 0 | AU34: 0 | AV34: 97 | AW34: 0 | AX34: 72.7 | AY34: 72.7 | AZ34: 85.1 | BA34: 0 | BB34: 98.6 | BC34: 12.2 | BD34: 84.4 | BE34: 0 | BF34: 0 | BG34: 0 | BH34: 0 | BI34: 0 | BJ34: 0 | BK34: 0 | BL34: 0 | BM34: 0 | BN34: 0 | BO34: -5 | BP34: 0 | BQ34: 0 | BR34: 0 | BS34: 16 | BT34: 0 | BU34: 0 | BV34: 0 | BW34: 126 | BX34: 0 | BY34: 10 | BZ34: 10 | CA34: -14 | CB34: 0 | CC34: 189 | CD34: 0 | CE34: -7 | CF34: 0 | CG34: 0 | CH34: 0 | CI34: 0 | CJ34: 0 | CK34: 0 | CL34: 0 | CM34: 0 | CN34: 0 | CO34: 0 | CP34: na | CQ34: 0 | CR34: 0 | CS34: 0 | CT34: -808 | CU34: 0 | CV34: 0 | CW34: 0 | CX34: na | CY34: 0 | CZ34: -16 | DA34: -16 | DB34: -946 | DC34: 0 | DD34: -1556 | DE34: na | DF34: -1045 | DG34: 0 | DH34: 0 | DI34: 0 | DJ34: 0 | DK34: 0 | DL34: 4.281 | DM34: 43.914 | DN34: 4.149 | DO34: 4.117 | DP34: 592.484 | DQ34: 35.391 | DR34: 4.37 | DS34: 4.37 | DT34: 5.863 | DU34: 804.5
A35: 3 | B35: 30 | C35: 15 | D35: 30 | E35: 3301530 | F35: 8312 | G35: 42 | H35: 0 | I35: 0 | J35: 0 | K35: 0 | L35: 0 | M35: 2 | N35: 0 | O35: 0 | P35: 0 | Q35: 8 | R35: 0 | S35: 0 | T35: 0 | U35: 3 | V35: 0 | W35: 8 | X35: 8 | Y35: 3 | Z35: 0 | AA35: 5 | AB35: 1 | AC35: 4 | AD35: 0 | AE35: 0 | AF35: 0 | AG35: 0 | AH35: 0 | AI35: 0 | AJ35: 0 | AK35: 0 | AL35: 0 | AM35: 0 | AN35: 15.1 | AO35: 0 | AP35: 0 | AQ35: 0 | AR35: 98.9 | AS35: 0 | AT35: 0 | AU35: 0 | AV35: 96.5 | AW35: 0 | AX35: 84.5 | AY35: 84.5 | AZ35: 86.9 | BA35: 0 | BB35: 98.6 | BC35: 12 | BD35: 84.4 | BE35: 0 | BF35: 0 | BG35: 0 | BH35: 0 | BI35: 0 | BJ35: 0 | BK35: 0 | BL35: 0 | BM35: 0 | BN35: 0 | BO35: -10 | BP35: 0 | BQ35: 0 | BR35: 0 | BS35: 16 | BT35: 0 | BU35: 0 | BV35: 0 | BW35: 107 | BX35: 0 | BY35: -23 | BZ35: -23 | CA35: 1 | CB35: 0 | CC35: 165 | CD35: 0 | CE35: 11 | CF35: 0 | CG35: 0 | CH35: 0 | CI35: 0 | CJ35: 0 | CK35: 0 | CL35: 0 | CM35: 0 | CN35: 0 | CO35: 0 | CP35: -5 | CQ35: 0 | CR35: 0 | CS35: 0 | CT35: -827 | CU35: 0 | CV35: 0 | CW35: 0 | CX35: -145 | CY35: 0 | CZ35: -67 | DA35: -67 | DB35: -1090 | DC35: 0 | DD35: -1547 | DE35: na | DF35: -1066 | DG35: 0 | DH35: 0 | DI35: 0 | DJ35: 0 | DK35: 0 | DL35: 4.281 | DM35: 43.118 | DN35: 4.129 | DO35: 4.07 | DP35: 382.433 | DQ35: 37.805 | DR35: 4.79 | DS35: 4.79 | DT35: 6.346 | DU35: 831.2
A36: 5 | B36: 30 | C36: 15 | D36: 30 | E36: 5301530 | F36: 8250 | G36: 41 | H36: 0 | I36: 0 | J36: 0 | K36: 0 | L36: 0 | M36: 3 | N36: 0 | O36: 0 | P36: 0 | Q36: 8 | R36: 0 | S36: 0 | T36: 0 | U36: 3 | V36: 0 | W36: 7 | X36: 7 | Y36: 3 | Z36: 0 | AA36: 5 | AB36: 1 | AC36: 4 | AD36: 0 | AE36: 0 | AF36: 0 | AG36: 0 | AH36: 0 | AI36: 0 | AJ36: 0 | AK36: 0 | AL36: 0 | AM36: 0 | AN36: 9.4 | AO36: 0 | AP36: 0 | AQ36: 0 | AR36: 98.9 | AS36: 0 | AT36: 0 | AU36: 0 | AV36: 96.5 | AW36: 0 | AX36: 95.7 | AY36: 95.7 | AZ36: 86.6 | BA36: 0 | BB36: 98.6 | BC36: 12 | BD36: 84.4 | BE36: 0 | BF36: 0 | BG36: 0 | BH36: 0 | BI36: 0 | BJ36: 0 | BK36: 0 | BL36: 0 | BM36: 0 | BN36: 0 | BO36: 1 | BP36: 0 | BQ36: 0 | BR36: 0 | BS36: 19 | BT36: 0 | BU36: 0 | BV36: 0 | BW36: 50 | BX36: 0 | BY36: 52 | BZ36: 52 | CA36: 4 | CB36: 0 | CC36: 68 | CD36: 0 | CE36: 1 | CF36: 0 | CG36: 0 | CH36: 0 | CI36: 0 | CJ36: 0 | CK36: 0 | CL36: 0 | CM36: 0 | CN36: 0 | CO36: 0 | CP36: -5 | CQ36: 0 | CR36: 0 | CS36: 0 | CT36: -750 | CU36: 0 | CV36: 0 | CW36: 0 | CX36: -89 | CY36: 0 | CZ36: -1067 | DA36: -1067 | DB36: -1054 | DC36: 0 | DD36: -1485 | DE36: na | DF36: -1006 | DG36: 0 | DH36: 0 | DI36: 0 | DJ36: 0 | DK36: 0 | DL36: 4.279 | DM36: 44.707 | DN36: 4.075 | DO36: 4.117 | DP36: 378.251 | DQ36: 36.813 | DR36: 10.519 | DS36: 10.519 | DT36: 5.882 | DU36: 825
A37: 9 | B37: 30 | C37: 15 | D37: 30 | E37: 9301530 | F37: 8307 | G37: 41 | H37: 0 | I37: 0 | J37: 0 | K37: 0 | L37: 0 | M37: 1 | N37: 0 | O37: 0 | P37: 0 | Q37: 8 | R37: 0 | S37: 0 | T37: 0 | U37: 3 | V37: 0 | W37: 8 | X37: 8 | Y37: 3 | Z37: 0 | AA37: 5 | AB37: 1 | AC37: 4 | AD37: 0 | AE37: 0 | AF37: 0 | AG37: 0 | AH37: 0 | AI37: 0 | AJ37: 0 | AK37: 0 | AL37: 0 | AM37: 0 | AN37: 26.7 | AO37: 0 | AP37: 0 | AQ37: 0 | AR37: 98.9 | AS37: 0 | AT37: 0 | AU37: 0 | AV37: 96.5 | AW37: 0 | AX37: 84.3 | AY37: 84.3 | AZ37: 87.9 | BA37: 0 | BB37: 98.6 | BC37: 12.3 | BD37: 84.5 | BE37: 0 | BF37: 0 | BG37: 0 | BH37: 0 | BI37: 0 | BJ37: 0 | BK37: 0 | BL37: 0 | BM37: 0 | BN37: 0 | BO37: 5 | BP37: 0 | BQ37: 0 | BR37: 0 | BS37: 6 | BT37: 0 | BU37: 0 | BV37: 0 | BW37: 128 | BX37: 0 | BY37: -20 | BZ37: -20 | CA37: 0 | CB37: 0 | CC37: 187 | CD37: 0 | CE37: 3 | CF37: 0 | CG37: 0 | CH37: 0 | CI37: 0 | CJ37: 0 | CK37: 0 | CL37: 0 | CM37: 0 | CN37: 0 | CO37: 0 | CP37: na | CQ37: 0 | CR37: 0 | CS37: 0 | CT37: -832 | CU37: 0 | CV37: 0 | CW37: 0 | CX37: -143 | CY37: 0 | CZ37: -51 | DA37: -51 | DB37: -1068 | DC37: 0 | DD37: -1550 | DE37: na | DF37: -1060 | DG37: 0 | DH37: 0 | DI37: 0 | DJ37: 0 | DK37: 0 | DL37: 4.276 | DM37: 43.503 | DN37: 4.106 | DO37: 4.09 | DP37: 385.25 | DQ37: 41.13 | DR37: 4.782 | DS37: 4.782 | DT37: 6.602 | DU37: 830.7
A38: 1 | B38: 45 | C38: 15 | D38: 30 | E38: 1451530 | F38: 8732 | G38: 56 | H38: 0 | I38: 0 | J38: 0 | K38: 0 | L38: 0 | M38: 1 | N38: 0 | O38: 0 | P38: 0 | Q38: 8 | R38: 0 | S38: 0 | T38: 0 | U38: 7 | V38: 0 | W38: 13 | X38: 13 | Y38: 4 | Z38: 0 | AA38: 5 | AB38: 1 | AC38: 4 | AD38: 0 | AE38: 0 | AF38: 0 | AG38: 0 | AH38: 0 | AI38: 0 | AJ38: 0 | AK38: 0 | AL38: 0 | AM38: 0 | AN38: 55.7 | AO38: 0 | AP38: 0 | AQ38: 0 | AR38: 98.9 | AS38: 0 | AT38: 0 | AU38: 0 | AV38: 85.4 | AW38: 0 | AX38: 54.6 | AY38: 54.6 | AZ38: 68.4 | BA38: 0 | BB38: 98.6 | BC38: 11.7 | BD38: 84.3 | BE38: 0 | BF38: 0 | BG38: 0 | BH38: 0 | BI38: 0 | BJ38: 0 | BK38: 0 | BL38: 0 | BM38: 0 | BN38: 0 | BO38: 11 | BP38: 0 | BQ38: 0 | BR38: 0 | BS38: 26 | BT38: 0 | BU38: 0 | BV38: 0 | BW38: 19 | BX38: 0 | BY38: 8 | BZ38: 8 | CA38: 4 | CB38: 0 | CC38: 224 | CD38: -6 | CE38: 2 | CF38: 0 | CG38: 0 | CH38: 0 | CI38: 0 | CJ38: 0 | CK38: 0 | CL38: 0 | CM38: 0 | CN38: 0 | CO38: 0 | CP38: na | CQ38: 0 | CR38: 0 | CS38: 0 | CT38: -895 | CU38: 0 | CV38: 0 | CW38: 0 | CX38: -43 | CY38: 0 | CZ38: -1 | DA38: -1 | DB38: -10 | DC38: 0 | DD38: -1707 | DE38: na | DF38: -1149 | DG38: 0 | DH38: 0 | DI38: 0 | DJ38: 0 | DK38: 0 | DL38: 4.278 | DM38: 44.676 | DN38: 4.1 | DO38: 4.109 | DP38: 51.071 | DQ38: 62.311 | DR38: 4.277 | DS38: 4.277 | DT38: 3.843 | DU38: 873.2
A39: 3 | B39: 45 | C39: 15 | D39: 30 | E39: 3451530 | F39: 8757 | G39: 55 | H39: 0 | I39: 0 | J39: 0 | K39: 0 | L39: 0 | M39: 2 | N39: 0 | O39: 0 | P39: 0 | Q39: 8 | R39: 0 | S39: 0 | T39: 0 | U39: 11 | V39: 0 | W39: 8 | X39: 8 | Y39: 7 | Z39: 0 | AA39: 5 | AB39: 1 | AC39: 5 | AD39: 0 | AE39: 0 | AF39: 0 | AG39: 0 | AH39: 0 | AI39: 0 | AJ39: 0 | AK39: 0 | AL39: 0 | AM39: 0 | AN39: 28.3 | AO39: 0 | AP39: 0 | AQ39: 0 | AR39: 98.9 | AS39: 0 | AT39: 0 | AU39: 0 | AV39: 54.8 | AW39: 0 | AX39: 89.1 | AY39: 89.1 | AZ39: 39.7 | BA39: 0 | BB39: 98.6 | BC39: 12 | BD39: 67.5 | BE39: 0 | BF39: 0 | BG39: 0 | BH39: 0 | BI39: 0 | BJ39: 0 | BK39: 0 | BL39: 0 | BM39: 0 | BN39: 0 | BO39: -2 | BP39: 0 | BQ39: 0 | BR39: 0 | BS39: 13 | BT39: 0 | BU39: 0 | BV39: 0 | BW39: -8 | BX39: 0 | BY39: 5 | BZ39: 5 | CA39: -16 | CB39: 0 | CC39: 203 | CD39: -2 | CE39: -3 | CF39: 0 | CG39: 0 | CH39: 0 | CI39: 0 | CJ39: 0 | CK39: 0 | CL39: 0 | CM39: 0 | CN39: 0 | CO39: 0 | CP39: -3 | CQ39: 0 | CR39: 0 | CS39: 0 | CT39: -905 | CU39: 0 | CV39: 0 | CW39: 0 | CX39: -11 | CY39: 0 | CZ39: -399 | DA39: -399 | DB39: -4 | DC39: 0 | DD39: -1718 | DE39: na | DF39: -17 | DG39: 0 | DH39: 0 | DI39: 0 | DJ39: 0 | DK39: 0 | DL39: 4.277 | DM39: 43.622 | DN39: 4.1334 | DO39: 2.944 | DP39: 36.886 | DQ39: 39.336 | DR39: 5.725 | DS39: 5.725 | DT39: 3.351 | DU39: 875.7
A40: 5 | B40: 45 | C40: 15 | D40: 30 | E40: 5451530 | F40: 8757 | G40: 55 | H40: 0 | I40: 0 | J40: 0 | K40: 0 | L40: 0 | M40: 2 | N40: 0 | O40: 0 | P40: 0 | Q40: 8 | R40: 0 | S40: 0 | T40: 0 | U40: 11 | V40: 0 | W40: 8 | X40: 8 | Y40: 7 | Z40: 0 | AA40: 5 | AB40: 1 | AC40: 5 | AD40: 0 | AE40: 0 | AF40: 0 | AG40: 0 | AH40: 0 | AI40: 0 | AJ40: 0 | AK40: 0 | AL40: 0 | AM40: 0 | AN40: 28.3 | AO40: 0 | AP40: 0 | AQ40: 0 | AR40: 98.9 | AS40: 0 | AT40: 0 | AU40: 0 | AV40: 54.8 | AW40: 0 | AX40: 89.1 | AY40: 89.1 | AZ40: 39.7 | BA40: 0 | BB40: 98.6 | BC40: 12 | BD40: 67.5 | BE40: 0 | BF40: 0 | BG40: 0 | BH40: 0 | BI40: 0 | BJ40: 0 | BK40: 0 | BL40: 0 | BM40: 0 | BN40: 0 | BO40: -2 | BP40: 0 | BQ40: 0 | BR40: 0 | BS40: 13 | BT40: 0 | BU40: 0 | BV40: 0 | BW40: -8 | BX40: 0 | BY40: 5 | BZ40: 5 | CA40: -16 | CB40: 0 | CC40: 203 | CD40: -2 | CE40: -3 | CF40: 0 | CG40: 0 | CH40: 0 | CI40: 0 | CJ40: 0 | CK40: 0 | CL40: 0 | CM40: 0 | CN40: 0 | CO40: 0 | CP40: -3 | CQ40: 0 | CR40: 0 | CS40: 0 | CT40: -905 | CU40: 0 | CV40: 0 | CW40: 0 | CX40: -11 | CY40: 0 | CZ40: -399 | DA40: -399 | DB40: -4 | DC40: 0 | DD40: -1718 | DE40: na | DF40: -17 | DG40: 0 | DH40: 0 | DI40: 0 | DJ40: 0 | DK40: 0 | DL40: 4.277 | DM40: 43.622 | DN40: 4.1334 | DO40: 2.944 | DP40: 36.886 | DQ40: 39.336 | DR40: 5.725 | DS40: 5.725 | DT40: 3.351 | DU40: 875.7
A41: 9 | B41: 45 | C41: 15 | D41: 30 | E41: 9451530 | F41: 8767 | G41: 56 | H41: 0 | I41: 0 | J41: 0 | K41: 0 | L41: 0 | M41: 2 | N41: 0 | O41: 0 | P41: 0 | Q41: 8 | R41: 0 | S41: 0 | T41: 0 | U41: 11 | V41: 0 | W41: 9 | X41: 9 | Y41: 6 | Z41: 0 | AA41: 5 | AB41: 1 | AC41: 5 | AD41: 0 | AE41: 0 | AF41: 0 | AG41: 0 | AH41: 0 | AI41: 0 | AJ41: 0 | AK41: 0 | AL41: 0 | AM41: 0 | AN41: 30.8 | AO41: 0 | AP41: 0 | AQ41: 0 | AR41: 98.9 | AS41: 0 | AT41: 0 | AU41: 0 | AV41: 54.8 | AW41: 0 | AX41: 79.1 | AY41: 79.1 | AZ41: 46.1 | BA41: 0 | BB41: 98.6 | BC41: 11.9 | BD41: 67.7 | BE41: 0 | BF41: 0 | BG41: 0 | BH41: 0 | BI41: 0 | BJ41: 0 | BK41: 0 | BL41: 0 | BM41: 0 | BN41: 0 | BO41: 3 | BP41: 0 | BQ41: 0 | BR41: 0 | BS41: 21 | BT41: 0 | BU41: 0 | BV41: 0 | BW41: 6 | BX41: 0 | BY41: -3 | BZ41: -3 | CA41: -5 | CB41: 0 | CC41: 202 | CD41: -7 | CE41: -2 | CF41: 0 | CG41: 0 | CH41: 0 | CI41: 0 | CJ41: 0 | CK41: 0 | CL41: 0 | CM41: 0 | CN41: 0 | CO41: 0 | CP41: 1 | CQ41: 0 | CR41: 0 | CS41: 0 | CT41: -906 | CU41: 0 | CV41: 0 | CW41: 0 | CX41: 0 | CY41: 0 | CZ41: -14 | DA41: -14 | DB41: -21 | DC41: 0 | DD41: -1728 | DE41: na | DF41: -19 | DG41: 0 | DH41: 0 | DI41: 0 | DJ41: 0 | DK41: 0 | DL41: 4.271 | DM41: 43.083 | DN41: 4.131 | DO41: 2.99 | DP41: 38.79 | DQ41: 36.664 | DR41: 4.769 | DS41: 4.769 | DT41: 3.361 | DU41: 876.7
A42: 1 | B42: 15 | C42: 5 | D42: 75 | E42: 115575 | F42: 4155 | G42: 21 | H42: 0 | I42: 0 | J42: 0 | K42: 0 | L42: 0 | M42: 1 | N42: 0 | O42: 0 | P42: 0 | Q42: 4 | R42: 0 | S42: 0 | T42: 0 | U42: 1 | V42: 0 | W42: 4 | X42: 4 | Y42: 2 | Z42: 0 | AA42: 2 | AB42: 1 | AC42: 2 | AD42: 0 | AE42: 0 | AF42: 0 | AG42: 0 | AH42: 0 | AI42: 0 | AJ42: 0 | AK42: 0 | AL42: 0 | AM42: 0 | AN42: 8.2 | AO42: 0 | AP42: 0 | AQ42: 0 | AR42: 99.5 | AS42: 0 | AT42: 0 | AU42: 0 | AV42: 95.7 | AW42: 0 | AX42: 84.4 | AY42: 84.4 | AZ42: 65.2 | BA42: 0 | BB42: 52.1 | BC42: 6.4 | BD42: 86.1 | BE42: 0 | BF42: 0 | BG42: 0 | BH42: 0 | BI42: 0 | BJ42: 0 | BK42: 0 | BL42: 0 | BM42: 0 | BN42: 0 | BO42: 3 | BP42: 0 | BQ42: 0 | BR42: 0 | BS42: 480 | BT42: 0 | BU42: 0 | BV42: 0 | BW42: 137 | BX42: 0 | BY42: 5 | BZ42: 5 | CA42: 2 | CB42: 0 | CC42: 0 | CD42: 0 | CE42: 15 | CF42: 0 | CG42: 0 | CH42: 0 | CI42: 0 | CJ42: 0 | CK42: 0 | CL42: 0 | CM42: 0 | CN42: 0 | CO42: 0 | CP42: 0 | CQ42: 0 | CR42: 0 | CS42: 0 | CT42: -1003 | CU42: 0 | CV42: 0 | CW42: 0 | CX42: 0 | CY42: 0 | CZ42: -613 | DA42: -613 | DB42: -562 | DC42: 0 | DD42: -224 | DE42: 0 | DF42: -1763 | DG42: 0 | DH42: 0 | DI42: 0 | DJ42: 0 | DK42: 0 | DL42: 4.276 | DM42: 36.329 | DN42: 4.399 | DO42: 8.588 | DP42: 491.204 | DQ42: 36.463 | DR42: 5.417 | DS42: 5.417 | DT42: 4.299 | DU42: 415.5
A43: 3 | B43: 15 | C43: 5 | D43: 75 | E43: 315575 | F43: 4158 | G43: 23 | H43: 0 | I43: 0 | J43: 0 | K43: 0 | L43: 0 | M43: 3 | N43: 0 | O43: 0 | P43: 0 | Q43: 4 | R43: 0 | S43: 0 | T43: 0 | U43: 1 | V43: 0 | W43: 4 | X43: 4 | Y43: 2 | Z43: 0 | AA43: 2 | AB43: 1 | AC43: 2 | AD43: 0 | AE43: 0 | AF43: 0 | AG43: 0 | AH43: 0 | AI43: 0 | AJ43: 0 | AK43: 0 | AL43: 0 | AM43: 0 | AN43: 2.9 | AO43: 0 | AP43: 0 | AQ43: 0 | AR43: 99.5 | AS43: 0 | AT43: 0 | AU43: 0 | AV43: 95.7 | AW43: 0 | AX43: 84.5 | AY43: 84.5 | AZ43: 65 | BA43: 0 | BB43: 52.2 | BC43: 6.4 | BD43: 86.1 | BE43: 0 | BF43: 0 | BG43: 0 | BH43: 0 | BI43: 0 | BJ43: 0 | BK43: 0 | BL43: 0 | BM43: 0 | BN43: 0 | BO43: 0 | BP43: 0 | BQ43: 0 | BR43: 0 | BS43: 481 | BT43: 0 | BU43: 0 | BV43: 0 | BW43: 139 | BX43: 0 | BY43: -3 | BZ43: -3 | CA43: -2 | CB43: 0 | CC43: 0 | CD43: -2 | CE43: 16 | CF43: 0 | CG43: 0 | CH43: 0 | CI43: 0 | CJ43: 0 | CK43: 0 | CL43: 0 | CM43: 0 | CN43: 0 | CO43: 0 | CP43: 0 | CQ43: 0 | CR43: 0 | CS43: 0 | CT43: -1006 | CU43: 0 | CV43: 0 | CW43: 0 | CX43: 0 | CY43: 0 | CZ43: -618 | DA43: -618 | DB43: -562 | DC43: 0 | DD43: -226 | DE43: 0 | DF43: -1767 | DG43: 0 | DH43: 0 | DI43: 0 | DJ43: 0 | DK43: 0 | DL43: 4.273 | DM43: 36.328 | DN43: 4.376 | DO43: 8.591 | DP43: 491.914 | DQ43: 36.214 | DR43: 5.411 | DS43: 5.411 | DT43: 4.3 | DU43: 415.8
A44: 5 | B44: 15 | C44: 5 | D44: 75 | E44: 515575 | F44: 4158 | G44: 25 | H44: 0 | I44: 0 | J44: 0 | K44: 0 | L44: 0 | M44: 5 | N44: 0 | O44: 0 | P44: 0 | Q44: 4 | R44: 0 | S44: 0 | T44: 0 | U44: 1 | V44: 0 | W44: 4 | X44: 4 | Y44: 2 | Z44: 0 | AA44: 2 | AB44: 1 | AC44: 2 | AD44: 0 | AE44: 0 | AF44: 0 | AG44: 0 | AH44: 0 | AI44: 0 | AJ44: 0 | AK44: 0 | AL44: 0 | AM44: 0 | AN44: 1.7 | AO44: 0 | AP44: 0 | AQ44: 0 | AR44: 99.5 | AS44: 0 | AT44: 0 | AU44: 0 | AV44: 95.7 | AW44: 0 | AX44: 84.5 | AY44: 84.5 | AZ44: 65 | BA44: 0 | BB44: 52.2 | BC44: 6.4 | BD44: 86.1 | BE44: 0 | BF44: 0 | BG44: 0 | BH44: 0 | BI44: 0 | BJ44: 0 | BK44: 0 | BL44: 0 | BM44: 0 | BN44: 0 | BO44: 0 | BP44: 0 | BQ44: 0 | BR44: 0 | BS44: 481 | BT44: 0 | BU44: 0 | BV44: 0 | BW44: 139 | BX44: 0 | BY44: -3 | BZ44: -3 | CA44: -2 | CB44: 0 | CC44: 0 | CD44: -2 | CE44: 16 | CF44: 0 | CG44: 0 | CH44: 0 | CI44: 0 | CJ44: 0 | CK44: 0 | CL44: 0 | CM44: 0 | CN44: 0 | CO44: 0 | CP44: 0 | CQ44: 0 | CR44: 0 | CS44: 0 | CT44: -1006 | CU44: 0 | CV44: 0 | CW44: 0 | CX44: 0 | CY44: 0 | CZ44: -618 | DA44: -618 | DB44: -562 | DC44: 0 | DD44: -226 | DE44: 0 | DF44: -1767 | DG44: 0 | DH44: 0 | DI44: 0 | DJ44: 0 | DK44: 0 | DL44: 4.273 | DM44: 36.328 | DN44: 4.376 | DO44: 8.591 | DP44: 491.914 | DQ44: 36.214 | DR44: 5.411 | DS44: 5.411 | DT44: 4.3 | DU44: 415.8
A45: 9 | B45: 15 | C45: 5 | D45: 75 | E45: 915575 | F45: 4158 | G45: 29 | H45: 0 | I45: 0 | J45: 0 | K45: 0 | L45: 0 | M45: 9 | N45: 0 | O45: 0 | P45: 0 | Q45: 4 | R45: 0 | S45: 0 | T45: 0 | U45: 1 | V45: 0 | W45: 4 | X45: 4 | Y45: 2 | Z45: 0 | AA45: 2 | AB45: 1 | AC45: 2 | AD45: 0 | AE45: 0 | AF45: 0 | AG45: 0 | AH45: 0 | AI45: 0 | AJ45: 0 | AK45: 0 | AL45: 0 | AM45: 0 | AN45: 1 | AO45: 0 | AP45: 0 | AQ45: 0 | AR45: 99.5 | AS45: 0 | AT45: 0 | AU45: 0 | AV45: 95.7 | AW45: 0 | AX45: 84.5 | AY45: 84.5 | AZ45: 65 | BA45: 0 | BB45: 52.2 | BC45: 6.4 | BD45: 86.1 | BE45: 0 | BF45: 0 | BG45: 0 | BH45: 0 | BI45: 0 | BJ45: 0 | BK45: 0 | BL45: 0 | BM45: 0 | BN45: 0 | BO45: 0 | BP45: 0 | BQ45: 0 | BR45: 0 | BS45: 481 | BT45: 0 | BU45: 0 | BV45: 0 | BW45: 139 | BX45: 0 | BY45: -3 | BZ45: -3 | CA45: -2 | CB45: 0 | CC45: 0 | CD45: -2 | CE45: 16 | CF45: 0 | CG45: 0 | CH45: 0 | CI45: 0 | CJ45: 0 | CK45: 0 | CL45: 0 | CM45: 0 | CN45: 0 | CO45: 0 | CP45: 0 | CQ45: 0 | CR45: 0 | CS45: 0 | CT45: -1006 | CU45: 0 | CV45: 0 | CW45: 0 | CX45: 0 | CY45: 0 | CZ45: -618 | DA45: -618 | DB45: -562 | DC45: 0 | DD45: -226 | DE45: 0 | DF45: -1767 | DG45: 0 | DH45: 0 | DI45: 0 | DJ45: 0 | DK45: 0 | DL45: 4.273 | DM45: 36.328 | DN45: 4.376 | DO45: 8.591 | DP45: 491.914 | DQ45: 36.214 | DR45: 5.411 | DS45: 5.411 | DT45: 4.3 | DU45: 415.8
A46: 1 | B46: 30 | C46: 5 | D46: 75 | E46: 130575 | F46: 4454 | G46: 36 | H46: 0 | I46: 0 | J46: 0 | K46: 0 | L46: 0 | M46: 1 | N46: 0 | O46: 0 | P46: 0 | Q46: 4 | R46: 0 | S46: 0 | T46: 0 | U46: 8 | V46: 0 | W46: 7 | X46: 7 | Y46: 4 | Z46: 0 | AA46: 2 | AB46: 1 | AC46: 2 | AD46: 0 | AE46: 0 | AF46: 0 | AG46: 0 | AH46: 0 | AI46: 0 | AJ46: 0 | AK46: 0 | AL46: 0 | AM46: 0 | AN46: 27 | AO46: 0 | AP46: 0 | AQ46: 0 | AR46: 99.5 | AS46: 0 | AT46: 0 | AU46: 0 | AV46: 37.6 | AW46: 0 | AX46: 51.7 | AY46: 51.7 | AZ46: 35.2 | BA46: 0 | BB46: 52.1 | BC46: 6.1 | BD46: 85.8 | BE46: 0 | BF46: 0 | BG46: 0 | BH46: 0 | BI46: 0 | BJ46: 0 | BK46: 0 | BL46: 0 | BM46: 0 | BN46: 0 | BO46: 7 | BP46: 0 | BQ46: 0 | BR46: 0 | BS46: 558 | BT46: 0 | BU46: 0 | BV46: 0 | BW46: -2 | BX46: 0 | BY46: 7 | BZ46: 7 | CA46: 5 | CB46: 0 | CC46: 0 | CD46: 1 | CE46: 12 | CF46: 0 | CG46: 0 | CH46: 0 | CI46: 0 | CJ46: 0 | CK46: 0 | CL46: 0 | CM46: 0 | CN46: 0 | CO46: 0 | CP46: 0 | CQ46: 0 | CR46: 0 | CS46: 0 | CT46: -1122 | CU46: 0 | CV46: 0 | CW46: 0 | CX46: 1 | CY46: 0 | CZ46: 16 | DA46: 16 | DB46: 3 | DC46: 0 | DD46: -251 | DE46: 0 | DF46: -1960 | DG46: 0 | DH46: 0 | DI46: 0 | DJ46: 0 | DK46: 0 | DL46: 4.275 | DM46: 36.458 | DN46: 4.337 | DO46: 8.518 | DP46: 36.216 | DQ46: 42.837 | DR46: 4.272 | DS46: 4.272 | DT46: 3.362 | DU46: 445.4
A47: 3 | B47: 30 | C47: 5 | D47: 75 | E47: 330575 | F47: 4454 | G47: 36 | H47: 0 | I47: 0 | J47: 0 | K47: 0 | L47: 0 | M47: 1 | N47: 0 | O47: 0 | P47: 0 | Q47: 4 | R47: 0 | S47: 0 | T47: 0 | U47: 8 | V47: 0 | W47: 7 | X47: 7 | Y47: 4 | Z47: 0 | AA47: 2 | AB47: 1 | AC47: 2 | AD47: 0 | AE47: 0 | AF47: 0 | AG47: 0 | AH47: 0 | AI47: 0 | AJ47: 0 | AK47: 0 | AL47: 0 | AM47: 0 | AN47: 27 | AO47: 0 | AP47: 0 | AQ47: 0 | AR47: 99.5 | AS47: 0 | AT47: 0 | AU47: 0 | AV47: 37.6 | AW47: 0 | AX47: 51.7 | AY47: 51.7 | AZ47: 35.2 | BA47: 0 | BB47: 52.1 | BC47: 6.1 | BD47: 85.8 | BE47: 0 | BF47: 0 | BG47: 0 | BH47: 0 | BI47: 0 | BJ47: 0 | BK47: 0 | BL47: 0 | BM47: 0 | BN47: 0 | BO47: 7 | BP47: 0 | BQ47: 0 | BR47: 0 | BS47: 558 | BT47: 0 | BU47: 0 | BV47: 0 | BW47: -2 | BX47: 0 | BY47: 7 | BZ47: 7 | CA47: 5 | CB47: 0 | CC47: 0 | CD47: 1 | CE47: 12 | CF47: 0 | CG47: 0 | CH47: 0 | CI47: 0 | CJ47: 0 | CK47: 0 | CL47: 0 | CM47: 0 | CN47: 0 | CO47: 0 | CP47: 0 | CQ47: 0 | CR47: 0 | CS47: 0 | CT47: -1122 | CU47: 0 | CV47: 0 | CW47: 0 | CX47: 1 | CY47: 0 | CZ47: 16 | DA47: 16 | DB47: 3 | DC47: 0 | DD47: -251 | DE47: 0 | DF47: -1960 | DG47: 0 | DH47: 0 | DI47: 0 | DJ47: 0 | DK47: 0 | DL47: 4.275 | DM47: 36.458 | DN47: 4.337 | DO47: 8.518 | DP47: 36.216 | DQ47: 42.837 | DR47: 4.272 | DS47: 4.272 | DT47: 3.362 | DU47: 445.4
A48: 5 | B48: 30 | C48: 5 | D48: 75 | E48: 530575 | F48: 4459 | G48: 40 | H48: 0 | I48: 0 | J48: 0 | K48: 0 | L48: 0 | M48: 5 | N48: 0 | O48: 0 | P48: 0 | Q48: 4 | R48: 0 | S48: 0 | T48: 0 | U48: 8 | V48: 0 | W48: 7 | X48: 7 | Y48: 4 | Z48: 0 | AA48: 2 | AB48: 1 | AC48: 2 | AD48: 0 | AE48: 0 | AF48: 0 | AG48: 0 | AH48: 0 | AI48: 0 | AJ48: 0 | AK48: 0 | AL48: 0 | AM48: 0 | AN48: 5.5 | AO48: 0 | AP48: 0 | AQ48: 0 | AR48: 99.5 | AS48: 0 | AT48: 0 | AU48: 0 | AV48: 36.9 | AW48: 0 | AX48: 51.8 | AY48: 51.8 | AZ48: 35.6 | BA48: 0 | BB48: 52.2 | BC48: 5.7 | BD48: 86 | BE48: 0 | BF48: 0 | BG48: 0 | BH48: 0 | BI48: 0 | BJ48: 0 | BK48: 0 | BL48: 0 | BM48: 0 | BN48: 0 | BO48: 0 | BP48: 0 | BQ48: 0 | BR48: 0 | BS48: 549 | BT48: 0 | BU48: 0 | BV48: 0 | BW48: -7 | BX48: 0 | BY48: -1 | BZ48: -1 | CA48: -11 | CB48: 0 | CC48: 0 | CD48: -20 | CE48: 24 | CF48: 0 | CG48: 0 | CH48: 0 | CI48: 0 | CJ48: 0 | CK48: 0 | CL48: 0 | CM48: 0 | CN48: 0 | CO48: 0 | CP48: 0 | CQ48: 0 | CR48: 0 | CS48: 0 | CT48: -1134 | CU48: 0 | CV48: 0 | CW48: 0 | CX48: -6 | CY48: 0 | CZ48: 13 | DA48: 13 | DB48: -3 | DC48: 0 | DD48: -262 | DE48: 0 | DF48: -1966 | DG48: 0 | DH48: 0 | DI48: 0 | DJ48: 0 | DK48: 0 | DL48: 4.285 | DM48: 36.405 | DN48: 3.973 | DO48: 8.595 | DP48: 36.411 | DQ48: 36.06 | DR48: 4.281 | DS48: 4.281 | DT48: 3.374 | DU48: 445.9
A49: 9 | B49: 30 | C49: 5 | D49: 75 | E49: 930575 | F49: 4464 | G49: 44 | H49: 0 | I49: 0 | J49: 0 | K49: 0 | L49: 0 | M49: 9 | N49: 0 | O49: 0 | P49: 0 | Q49: 4 | R49: 0 | S49: 0 | T49: 0 | U49: 8 | V49: 0 | W49: 7 | X49: 7 | Y49: 4 | Z49: 0 | AA49: 2 | AB49: 1 | AC49: 2 | AD49: 0 | AE49: 0 | AF49: 0 | AG49: 0 | AH49: 0 | AI49: 0 | AJ49: 0 | AK49: 0 | AL49: 0 | AM49: 0 | AN49: 3.1 | AO49: 0 | AP49: 0 | AQ49: 0 | AR49: 99.5 | AS49: 0 | AT49: 0 | AU49: 0 | AV49: 38.4 | AW49: 0 | AX49: 51.9 | AY49: 51.9 | AZ49: 35.2 | BA49: 0 | BB49: 52.2 | BC49: 6.2 | BD49: 86.1 | BE49: 0 | BF49: 0 | BG49: 0 | BH49: 0 | BI49: 0 | BJ49: 0 | BK49: 0 | BL49: 0 | BM49: 0 | BN49: 0 | BO49: 0 | BP49: 0 | BQ49: 0 | BR49: 0 | BS49: 549 | BT49: 0 | BU49: 0 | BV49: 0 | BW49: -4 | BX49: 0 | BY49: -4 | BZ49: -4 | CA49: -16 | CB49: 0 | CC49: 0 | CD49: -11 | CE49: 5 | CF49: 0 | CG49: 0 | CH49: 0 | CI49: 0 | CJ49: 0 | CK49: 0 | CL49: 0 | CM49: 0 | CN49: 0 | CO49: 0 | CP49: -4 | CQ49: 0 | CR49: 0 | CS49: 0 | CT49: -1129 | CU49: 0 | CV49: 0 | CW49: 0 | CX49: -10 | CY49: 0 | CZ49: 1 | DA49: 1 | DB49: -5 | DC49: 0 | DD49: -261 | DE49: 0 | DF49: -1968 | DG49: 0 | DH49: 0 | DI49: 0 | DJ49: 0 | DK49: 0 | DL49: 4.289 | DM49: 36.396 | DN49: 4.42 | DO49: 8.568 | DP49: 36.512 | DQ49: 36.061 | DR49: 4.294 | DS49: 4.294 | DT49: 3.369 | DU49: 446.4
A50: 1 | B50: 45 | C50: 5 | D50: 75 | E50: 145575 | F50: 4480 | G50: 51 | H50: 0 | I50: 0 | J50: 0 | K50: 0 | L50: 0 | M50: 1 | N50: 0 | O50: 0 | P50: 0 | Q50: 4 | R50: 0 | S50: 0 | T50: 0 | U50: 8 | V50: 0 | W50: 8 | X50: 8 | Y50: 17 | Z50: 0 | AA50: 2 | AB50: 1 | AC50: 2 | AD50: 0 | AE50: 0 | AF50: 0 | AG50: 0 | AH50: 0 | AI50: 0 | AJ50: 0 | AK50: 0 | AL50: 0 | AM50: 0 | AN50: 27.2 | AO50: 0 | AP50: 0 | AQ50: 0 | AR50: 99.5 | AS50: 0 | AT50: 0 | AU50: 0 | AV50: 36.3 | AW50: 0 | AX50: 45.5 | AY50: 45.5 | AZ50: 8.1 | BA50: 0 | BB50: 52.3 | BC50: 5.4 | BD50: 86.5 | BE50: 0 | BF50: 0 | BG50: 0 | BH50: 0 | BI50: 0 | BJ50: 0 | BK50: 0 | BL50: 0 | BM50: 0 | BN50: 0 | BO50: -12 | BP50: 0 | BQ50: 0 | BR50: 0 | BS50: 533 | BT50: 0 | BU50: 0 | BV50: 0 | BW50: -14 | BX50: 0 | BY50: -22 | BZ50: -22 | CA50: 0 | CB50: 0 | CC50: 0 | CD50: -15 | CE50: -32 | CF50: 0 | CG50: 0 | CH50: 0 | CI50: 0 | CJ50: 0 | CK50: 0 | CL50: 0 | CM50: 0 | CN50: 0 | CO50: 0 | CP50: 0 | CQ50: 0 | CR50: 0 | CS50: 0 | CT50: -1135 | CU50: 0 | CV50: 0 | CW50: 0 | CX50: 1 | CY50: 0 | CZ50: -35 | DA50: -35 | DB50: 0 | DC50: 0 | DD50: -274 | DE50: 0 | DF50: -1986 | DG50: 0 | DH50: 0 | DI50: 0 | DJ50: 0 | DK50: 0 | DL50: 4.25 | DM50: 36.304 | DN50: 3.956 | DO50: 8.659 | DP50: 36.164 | DQ50: 45.531 | DR50: 4.256 | DS50: 4.256 | DT50: 3.333 | DU50: 448
A51: 3 | B51: 45 | C51: 5 | D51: 75 | E51: 345575 | F51: 4479 | G51: 53 | H51: 0 | I51: 0 | J51: 0 | K51: 0 | L51: 0 | M51: 3 | N51: 0 | O51: 0 | P51: 0 | Q51: 4 | R51: 0 | S51: 0 | T51: 0 | U51: 8 | V51: 0 | W51: 8 | X51: 8 | Y51: 17 | Z51: 0 | AA51: 2 | AB51: 1 | AC51: 2 | AD51: 0 | AE51: 0 | AF51: 0 | AG51: 0 | AH51: 0 | AI51: 0 | AJ51: 0 | AK51: 0 | AL51: 0 | AM51: 0 | AN51: 9.3 | AO51: 0 | AP51: 0 | AQ51: 0 | AR51: 99.5 | AS51: 0 | AT51: 0 | AU51: 0 | AV51: 37.5 | AW51: 0 | AX51: 45.3 | AY51: 45.3 | AZ51: 8.2 | BA51: 0 | BB51: 52.5 | BC51: 5.9 | BD51: 86.4 | BE51: 0 | BF51: 0 | BG51: 0 | BH51: 0 | BI51: 0 | BJ51: 0 | BK51: 0 | BL51: 0 | BM51: 0 | BN51: 0 | BO51: -4 | BP51: 0 | BQ51: 0 | BR51: 0 | BS51: 533 | BT51: 0 | BU51: 0 | BV51: 0 | BW51: -11 | BX51: 0 | BY51: -36 | BZ51: -36 | CA51: 0 | CB51: 0 | CC51: 0 | CD51: -14 | CE51: -20 | CF51: 0 | CG51: 0 | CH51: 0 | CI51: 0 | CJ51: 0 | CK51: 0 | CL51: 0 | CM51: 0 | CN51: 0 | CO51: 0 | CP51: -11 | CQ51: 0 | CR51: 0 | CS51: 0 | CT51: -1139 | CU51: 0 | CV51: 0 | CW51: 0 | CX51: -31 | CY51: 0 | CZ51: -39 | DA51: -39 | DB51: 0 | DC51: 0 | DD51: -283 | DE51: 0 | DF51: -1983 | DG51: 0 | DH51: 0 | DI51: 0 | DJ51: 0 | DK51: 0 | DL51: 4.283 | DM51: 36.434 | DN51: 4.33 | DO51: 8.712 | DP51: 36.452 | DQ51: 36.605 | DR51: 4.258 | DS51: 4.258 | DT51: 3.33 | DU51: 447.9
A52: 5 | B52: 45 | C52: 5 | D52: 75 | E52: 545575 | F52: 4475 | G52: 55 | H52: 0 | I52: 0 | J52: 0 | K52: 0 | L52: 0 | M52: 5 | N52: 0 | O52: 0 | P52: 0 | Q52: 4 | R52: 0 | S52: 0 | T52: 0 | U52: 8 | V52: 0 | W52: 8 | X52: 8 | Y52: 17 | Z52: 0 | AA52: 2 | AB52: 1 | AC52: 2 | AD52: 0 | AE52: 0 | AF52: 0 | AG52: 0 | AH52: 0 | AI52: 0 | AJ52: 0 | AK52: 0 | AL52: 0 | AM52: 0 | AN52: 5.3 | AO52: 0 | AP52: 0 | AQ52: 0 | AR52: 99.5 | AS52: 0 | AT52: 0 | AU52: 0 | AV52: 37.2 | AW52: 0 | AX52: 45.3 | AY52: 45.3 | AZ52: 8.2 | BA52: 0 | BB52: 52.4 | BC52: 6.1 | BD52: 86.4 | BE52: 0 | BF52: 0 | BG52: 0 | BH52: 0 | BI52: 0 | BJ52: 0 | BK52: 0 | BL52: 0 | BM52: 0 | BN52: 0 | BO52: 0 | BP52: 0 | BQ52: 0 | BR52: 0 | BS52: 537 | BT52: 0 | BU52: 0 | BV52: 0 | BW52: -4 | BX52: 0 | BY52: -32 | BZ52: -32 | CA52: 0 | CB52: 0 | CC52: 0 | CD52: -10 | CE52: -14 | CF52: 0 | CG52: 0 | CH52: 0 | CI52: 0 | CJ52: 0 | CK52: 0 | CL52: 0 | CM52: 0 | CN52: 0 | CO52: 0 | CP52: 0 | CQ52: 0 | CR52: 0 | CS52: 0 | CT52: -1135 | CU52: 0 | CV52: 0 | CW52: 0 | CX52: -26 | CY52: 0 | CZ52: -35 | DA52: -35 | DB52: 0 | DC52: 0 | DD52: -278 | DE52: 0 | DF52: -1979 | DG52: 0 | DH52: 0 | DI52: 0 | DJ52: 0 | DK52: 0 | DL52: 4.278 | DM52: 36.41 | DN52: 4.385 | DO52: 8.683 | DP52: 36.411 | DQ52: 36.468 | DR52: 4.257 | DS52: 4.257 | DT52: 3.331 | DU52: 447.5
A53: 9 | B53: 45 | C53: 5 | D53: 75 | E53: 945575 | F53: 4475 | G53: 59 | H53: 0 | I53: 0 | J53: 0 | K53: 0 | L53: 0 | M53: 9 | N53: 0 | O53: 0 | P53: 0 | Q53: 4 | R53: 0 | S53: 0 | T53: 0 | U53: 8 | V53: 0 | W53: 8 | X53: 8 | Y53: 17 | Z53: 0 | AA53: 2 | AB53: 1 | AC53: 2 | AD53: 0 | AE53: 0 | AF53: 0 | AG53: 0 | AH53: 0 | AI53: 0 | AJ53: 0 | AK53: 0 | AL53: 0 | AM53: 0 | AN53: 2.9 | AO53: 0 | AP53: 0 | AQ53: 0 | AR53: 99.5 | AS53: 0 | AT53: 0 | AU53: 0 | AV53: 37.2 | AW53: 0 | AX53: 45.3 | AY53: 45.3 | AZ53: 8.2 | BA53: 0 | BB53: 52.4 | BC53: 6.1 | BD53: 86.4 | BE53: 0 | BF53: 0 | BG53: 0 | BH53: 0 | BI53: 0 | BJ53: 0 | BK53: 0 | BL53: 0 | BM53: 0 | BN53: 0 | BO53: 0 | BP53: 0 | BQ53: 0 | BR53: 0 | BS53: 537 | BT53: 0 | BU53: 0 | BV53: 0 | BW53: -4 | BX53: 0 | BY53: -32 | BZ53: -32 | CA53: 0 | CB53: 0 | CC53: 0 | CD53: -10 | CE53: -14 | CF53: 0 | CG53: 0 | CH53: 0 | CI53: 0 | CJ53: 0 | CK53: 0 | CL53: 0 | CM53: 0 | CN53: 0 | CO53: 0 | CP53: 0 | CQ53: 0 | CR53: 0 | CS53: 0 | CT53: -1135 | CU53: 0 | CV53: 0 | CW53: 0 | CX53: -26 | CY53: 0 | CZ53: -35 | DA53: -35 | DB53: 0 | DC53: 0 | DD53: -278 | DE53: 0 | DF53: -1979 | DG53: 0 | DH53: 0 | DI53: 0 | DJ53: 0 | DK53: 0 | DL53: 4.278 | DM53: 36.41 | DN53: 4.385 | DO53: 8.683 | DP53: 36.411 | DQ53: 36.468 | DR53: 4.257 | DS53: 4.257 | DT53: 3.331 | DU53: 447.5
A54: 1 | B54: 15 | C54: 10 | D54: 75 | E54: 1151075 | F54: 4169 | G54: 26 | H54: 0 | I54: 0 | J54: 0 | K54: 0 | L54: 0 | M54: 1 | N54: 0 | O54: 0 | P54: 0 | Q54: 4 | R54: 0 | S54: 0 | T54: 0 | U54: 1 | V54: 0 | W54: 4 | X54: 4 | Y54: 2 | Z54: 0 | AA54: 4 | AB54: 2 | AC54: 4 | AD54: 0 | AE54: 0 | AF54: 0 | AG54: 0 | AH54: 0 | AI54: 0 | AJ54: 0 | AK54: 0 | AL54: 0 | AM54: 0 | AN54: 9.8 | AO54: 0 | AP54: 0 | AQ54: 0 | AR54: 99.5 | AS54: 0 | AT54: 0 | AU54: 0 | AV54: 95.9 | AW54: 0 | AX54: 85 | AY54: 85 | AZ54: 65.9 | BA54: 0 | BB54: 26 | BC54: 3.1 | BD54: 43.1 | BE54: 0 | BF54: 0 | BG54: 0 | BH54: 0 | BI54: 0 | BJ54: 0 | BK54: 0 | BL54: 0 | BM54: 0 | BN54: 0 | BO54: 3 | BP54: 0 | BQ54: 0 | BR54: 0 | BS54: 574 | BT54: 0 | BU54: 0 | BV54: 0 | BW54: 116 | BX54: 0 | BY54: -15 | BZ54: -15 | CA54: -7 | CB54: 0 | CC54: 0 | CD54: -8 | CE54: 5 | CF54: 0 | CG54: 0 | CH54: 0 | CI54: 0 | CJ54: 0 | CK54: 0 | CL54: 0 | CM54: 0 | CN54: 0 | CO54: 0 | CP54: 0 | CQ54: 0 | CR54: 0 | CS54: 0 | CT54: -1010 | CU54: 0 | CV54: 0 | CW54: 0 | CX54: 0 | CY54: 0 | CZ54: -619 | DA54: -619 | DB54: -563 | DC54: 0 | DD54: 0 | DE54: -6 | DF54: 2 | DG54: 0 | DH54: 0 | DI54: 0 | DJ54: 0 | DK54: 0 | DL54: 4.268 | DM54: 36.268 | DN54: 3.744 | DO54: 3.74 | DP54: 492.626 | DQ54: 37.212 | DR54: 7.786 | DS54: 7.786 | DT54: 4.415 | DU54: 416.9
A55: 3 | B55: 15 | C55: 10 | D55: 75 | E55: 3151075 | F55: 4173 | G55: 28 | H55: 0 | I55: 0 | J55: 0 | K55: 0 | L55: 0 | M55: 3 | N55: 0 | O55: 0 | P55: 0 | Q55: 4 | R55: 0 | S55: 0 | T55: 0 | U55: 1 | V55: 0 | W55: 4 | X55: 4 | Y55: 2 | Z55: 0 | AA55: 4 | AB55: 2 | AC55: 4 | AD55: 0 | AE55: 0 | AF55: 0 | AG55: 0 | AH55: 0 | AI55: 0 | AJ55: 0 | AK55: 0 | AL55: 0 | AM55: 0 | AN55: 3.2 | AO55: 0 | AP55: 0 | AQ55: 0 | AR55: 99.5 | AS55: 0 | AT55: 0 | AU55: 0 | AV55: 95.9 | AW55: 0 | AX55: 84.9 | AY55: 84.9 | AZ55: 65.7 | BA55: 0 | BB55: 26 | BC55: 3.1 | BD55: 43.1 | BE55: 0 | BF55: 0 | BG55: 0 | BH55: 0 | BI55: 0 | BJ55: 0 | BK55: 0 | BL55: 0 | BM55: 0 | BN55: 0 | BO55: 0 | BP55: 0 | BQ55: 0 | BR55: 0 | BS55: 568 | BT55: 0 | BU55: 0 | BV55: 0 | BW55: 117 | BX55: 0 | BY55: -17 | BZ55: -17 | CA55: -10 | CB55: 0 | CC55: 0 | CD55: -9 | CE55: 3 | CF55: 0 | CG55: 0 | CH55: 0 | CI55: 0 | CJ55: 0 | CK55: 0 | CL55: 0 | CM55: 0 | CN55: 0 | CO55: 0 | CP55: -1 | CQ55: 0 | CR55: 0 | CS55: 0 | CT55: -1013 | CU55: 0 | CV55: 0 | CW55: 0 | CX55: 0 | CY55: 0 | CZ55: -621 | DA55: -621 | DB55: -564 | DC55: 0 | DD55: 0 | DE55: -9 | DF55: -3 | DG55: 0 | DH55: 0 | DI55: 0 | DJ55: 0 | DK55: 0 | DL55: 4.275 | DM55: 36.289 | DN55: 3.744 | DO55: 3.743 | DP55: 493.477 | DQ55: 36.649 | DR55: 7.752 | DS55: 7.752 | DT55: 4.385 | DU55: 417.3
A56: 5 | B56: 15 | C56: 10 | D56: 75 | E56: 5151075 | F56: 4173 | G56: 30 | H56: 0 | I56: 0 | J56: 0 | K56: 0 | L56: 0 | M56: 5 | N56: 0 | O56: 0 | P56: 0 | Q56: 4 | R56: 0 | S56: 0 | T56: 0 | U56: 1 | V56: 0 | W56: 4 | X56: 4 | Y56: 2 | Z56: 0 | AA56: 4 | AB56: 2 | AC56: 4 | AD56: 0 | AE56: 0 | AF56: 0 | AG56: 0 | AH56: 0 | AI56: 0 | AJ56: 0 | AK56: 0 | AL56: 0 | AM56: 0 | AN56: 1.9 | AO56: 0 | AP56: 0 | AQ56: 0 | AR56: 99.5 | AS56: 0 | AT56: 0 | AU56: 0 | AV56: 95.9 | AW56: 0 | AX56: 84.9 | AY56: 84.9 | AZ56: 65.7 | BA56: 0 | BB56: 26 | BC56: 3.1 | BD56: 43.1 | BE56: 0 | BF56: 0 | BG56: 0 | BH56: 0 | BI56: 0 | BJ56: 0 | BK56: 0 | BL56: 0 | BM56: 0 | BN56: 0 | BO56: 0 | BP56: 0 | BQ56: 0 | BR56: 0 | BS56: 568 | BT56: 0 | BU56: 0 | BV56: 0 | BW56: 117 | BX56: 0 | BY56: -17 | BZ56: -17 | CA56: -10 | CB56: 0 | CC56: 0 | CD56: -9 | CE56: 3 | CF56: 0 | CG56: 0 | CH56: 0 | CI56: 0 | CJ56: 0 | CK56: 0 | CL56: 0 | CM56: 0 | CN56: 0 | CO56: 0 | CP56: 0 | CQ56: 0 | CR56: 0 | CS56: 0 | CT56: -1013 | CU56: 0 | CV56: 0 | CW56: 0 | CX56: 0 | CY56: 0 | CZ56: -621 | DA56: -621 | DB56: -564 | DC56: 0 | DD56: 0 | DE56: -9 | DF56: -3 | DG56: 0 | DH56: 0 | DI56: 0 | DJ56: 0 | DK56: 0 | DL56: 4.275 | DM56: 36.289 | DN56: 3.744 | DO56: 3.743 | DP56: 493.477 | DQ56: 36.649 | DR56: 7.752 | DS56: 7.752 | DT56: 4.385 | DU56: 417.3
A57: 9 | B57: 15 | C57: 10 | D57: 75 | E57: 9151075 | F57: 4173 | G57: 34 | H57: 0 | I57: 0 | J57: 0 | K57: 0 | L57: 0 | M57: 9 | N57: 0 | O57: 0 | P57: 0 | Q57: 4 | R57: 0 | S57: 0 | T57: 0 | U57: 1 | V57: 0 | W57: 4 | X57: 4 | Y57: 2 | Z57: 0 | AA57: 4 | AB57: 2 | AC57: 4 | AD57: 0 | AE57: 0 | AF57: 0 | AG57: 0 | AH57: 0 | AI57: 0 | AJ57: 0 | AK57: 0 | AL57: 0 | AM57: 0 | AN57: 1.1 | AO57: 0 | AP57: 0 | AQ57: 0 | AR57: 99.5 | AS57: 0 | AT57: 0 | AU57: 0 | AV57: 95.9 | AW57: 0 | AX57: 84.9 | AY57: 84.9 | AZ57: 65.7 | BA57: 0 | BB57: 26 | BC57: 3.1 | BD57: 43.1 | BE57: 0 | BF57: 0 | BG57: 0 | BH57: 0 | BI57: 0 | BJ57: 0 | BK57: 0 | BL57: 0 | BM57: 0 | BN57: 0 | BO57: 0 | BP57: 0 | BQ57: 0 | BR57: 0 | BS57: 568 | BT57: 0 | BU57: 0 | BV57: 0 | BW57: 117 | BX57: 0 | BY57: -17 | BZ57: -17 | CA57: -10 | CB57: 0 | CC57: 0 | CD57: -9 | CE57: 3 | CF57: 0 | CG57: 0 | CH57: 0 | CI57: 0 | CJ57: 0 | CK57: 0 | CL57: 0 | CM57: 0 | CN57: 0 | CO57: 0 | CP57: 0 | CQ57: 0 | CR57: 0 | CS57: 0 | CT57: -1013 | CU57: 0 | CV57: 0 | CW57: 0 | CX57: 0 | CY57: 0 | CZ57: -621 | DA57: -621 | DB57: -564 | DC57: 0 | DD57: 0 | DE57: -9 | DF57: -3 | DG57: 0 | DH57: 0 | DI57: 0 | DJ57: 0 | DK57: 0 | DL57: 4.275 | DM57: 36.289 | DN57: 3.744 | DO57: 3.743 | DP57: 493.477 | DQ57: 36.649 | DR57: 7.752 | DS57: 7.752 | DT57: 4.385 | DU57: 417.3
A58: 1 | B58: 30 | C58: 10 | D58: 75 | E58: 1301075 | F58: 9195 | G58: 41 | H58: 0 | I58: 0 | J58: 0 | K58: 0 | L58: 0 | M58: 1 | N58: 0 | O58: 0 | P58: 0 | Q58: 9 | R58: 0 | S58: 0 | T58: 0 | U58: 1 | V58: 0 | W58: 8 | X58: 8 | Y58: 4 | Z58: 0 | AA58: 4 | AB58: 2 | AC58: 4 | AD58: 0 | AE58: 0 | AF58: 0 | AG58: 0 | AH58: 0 | AI58: 0 | AJ58: 0 | AK58: 0 | AL58: 0 | AM58: 0 | AN58: 11.7 | AO58: 0 | AP58: 0 | AQ58: 0 | AR58: 98.8 | AS58: 0 | AT58: 0 | AU58: 0 | AV58: 97 | AW58: 0 | AX58: 93.2 | AY58: 93.2 | AZ58: 73 | BA58: 0 | BB58: 58.3 | BC58: 7.2 | BD58: 96.5 | BE58: 0 | BF58: 0 | BG58: 0 | BH58: 0 | BI58: 0 | BJ58: 0 | BK58: 0 | BL58: 0 | BM58: 0 | BN58: 0 | BO58: 10 | BP58: 0 | BQ58: 0 | BR58: 0 | BS58: 72 | BT58: 0 | BU58: 0 | BV58: 0 | BW58: 100 | BX58: 0 | BY58: -51 | BZ58: -51 | CA58: -14 | CB58: 0 | CC58: 0 | CD58: -7 | CE58: 27 | CF58: 0 | CG58: 0 | CH58: 0 | CI58: 0 | CJ58: 0 | CK58: 0 | CL58: 0 | CM58: 0 | CN58: 0 | CO58: 0 | CP58: 0 | CQ58: 0 | CR58: 0 | CS58: 0 | CT58: -984 | CU58: 0 | CV58: 0 | CW58: 0 | CX58: 0 | CY58: 0 | CZ58: -881 | DA58: -881 | DB58: -121 | DC58: 0 | DD58: -11 | DE58: -12 | DF58: -2215 | DG58: 0 | DH58: 0 | DI58: 0 | DJ58: 0 | DK58: 0 | DL58: 4.277 | DM58: 29.971 | DN58: 3.721 | DO58: 10.332 | DP58: 595.175 | DQ58: 37.106 | DR58: 5.612 | DS58: 5.612 | DT58: 3.872 | DU58: 919.5
A59: 3 | B59: 30 | C59: 10 | D59: 75 | E59: 3301075 | F59: 9205 | G59: 43 | H59: 0 | I59: 0 | J59: 0 | K59: 0 | L59: 0 | M59: 3 | N59: 0 | O59: 0 | P59: 0 | Q59: 9 | R59: 0 | S59: 0 | T59: 0 | U59: 1 | V59: 0 | W59: 8 | X59: 8 | Y59: 4 | Z59: 0 | AA59: 4 | AB59: 2 | AC59: 4 | AD59: 0 | AE59: 0 | AF59: 0 | AG59: 0 | AH59: 0 | AI59: 0 | AJ59: 0 | AK59: 0 | AL59: 0 | AM59: 0 | AN59: 3.7 | AO59: 0 | AP59: 0 | AQ59: 0 | AR59: 98.8 | AS59: 0 | AT59: 0 | AU59: 0 | AV59: 97 | AW59: 0 | AX59: 93.3 | AY59: 93.3 | AZ59: 73 | BA59: 0 | BB59: 58.4 | BC59: 7.2 | BD59: 96.6 | BE59: 0 | BF59: 0 | BG59: 0 | BH59: 0 | BI59: 0 | BJ59: 0 | BK59: 0 | BL59: 0 | BM59: 0 | BN59: 0 | BO59: 0 | BP59: 0 | BQ59: 0 | BR59: 0 | BS59: 62 | BT59: 0 | BU59: 0 | BV59: 0 | BW59: 52 | BX59: 0 | BY59: -77 | BZ59: -77 | CA59: -30 | CB59: 0 | CC59: 0 | CD59: -7 | CE59: 7 | CF59: 0 | CG59: 0 | CH59: 0 | CI59: 0 | CJ59: 0 | CK59: 0 | CL59: 0 | CM59: 0 | CN59: 0 | CO59: 0 | CP59: 0 | CQ59: 0 | CR59: 0 | CS59: 0 | CT59: -1013 | CU59: 0 | CV59: 0 | CW59: 0 | CX59: 0 | CY59: 0 | CZ59: -891 | DA59: -891 | DB59: -131 | DC59: 0 | DD59: -18 | DE59: -31 | DF59: -2225 | DG59: 0 | DH59: 0 | DI59: 0 | DJ59: 0 | DK59: 0 | DL59: 4.277 | DM59: 29.989 | DN59: 3.722 | DO59: 10.46 | DP59: 595.913 | DQ59: 35.941 | DR59: 5.678 | DS59: 5.678 | DT59: 3.88 | DU59: 920.5
A60: 5 | B60: 30 | C60: 10 | D60: 75 | E60: 5301075 | F60: 9205 | G60: 45 | H60: 0 | I60: 0 | J60: 0 | K60: 0 | L60: 0 | M60: 5 | N60: 0 | O60: 0 | P60: 0 | Q60: 9 | R60: 0 | S60: 0 | T60: 0 | U60: 1 | V60: 0 | W60: 8 | X60: 8 | Y60: 4 | Z60: 0 | AA60: 4 | AB60: 2 | AC60: 4 | AD60: 0 | AE60: 0 | AF60: 0 | AG60: 0 | AH60: 0 | AI60: 0 | AJ60: 0 | AK60: 0 | AL60: 0 | AM60: 0 | AN60: 2.2 | AO60: 0 | AP60: 0 | AQ60: 0 | AR60: 98.8 | AS60: 0 | AT60: 0 | AU60: 0 | AV60: 97 | AW60: 0 | AX60: 93.3 | AY60: 93.3 | AZ60: 73 | BA60: 0 | BB60: 58.4 | BC60: 7.2 | BD60: 96.6 | BE60: 0 | BF60: 0 | BG60: 0 | BH60: 0 | BI60: 0 | BJ60: 0 | BK60: 0 | BL60: 0 | BM60: 0 | BN60: 0 | BO60: 0 | BP60: 0 | BQ60: 0 | BR60: 0 | BS60: 62 | BT60: 0 | BU60: 0 | BV60: 0 | BW60: 52 | BX60: 0 | BY60: -77 | BZ60: -77 | CA60: -30 | CB60: 0 | CC60: 0 | CD60: -7 | CE60: 7 | CF60: 0 | CG60: 0 | CH60: 0 | CI60: 0 | CJ60: 0 | CK60: 0 | CL60: 0 | CM60: 0 | CN60: 0 | CO60: 0 | CP60: 0 | CQ60: 0 | CR60: 0 | CS60: 0 | CT60: -1013 | CU60: 0 | CV60: 0 | CW60: 0 | CX60: 0 | CY60: 0 | CZ60: -891 | DA60: -891 | DB60: -131 | DC60: 0 | DD60: -18 | DE60: -31 | DF60: -2225 | DG60: 0 | DH60: 0 | DI60: 0 | DJ60: 0 | DK60: 0 | DL60: 4.277 | DM60: 29.989 | DN60: 3.722 | DO60: 10.46 | DP60: 595.913 | DQ60: 35.941 | DR60: 5.678 | DS60: 5.678 | DT60: 3.88 | DU60: 920.5
A61: 9 | B61: 30 | C61: 10 | D61: 75 | E61: 9301075 | F61: 9205 | G61: 49 | H61: 0 | I61: 0 | J61: 0 | K61: 0 | L61: 0 | M61: 9 | N61: 0 | O61: 0 | P61: 0 | Q61: 9 | R61: 0 | S61: 0 | T61: 0 | U61: 1 | V61: 0 | W61: 8 | X61: 8 | Y61: 4 | Z61: 0 | AA61: 4 | AB61: 2 | AC61: 4 | AD61: 0 | AE61: 0 | AF61: 0 | AG61: 0 | AH61: 0 | AI61: 0 | AJ61: 0 | AK61: 0 | AL61: 0 | AM61: 0 | AN61: 1.2 | AO61: 0 | AP61: 0 | AQ61: 0 | AR61: 98.8 | AS61: 0 | AT61: 0 | AU61: 0 | AV61: 97 | AW61: 0 | AX61: 93.3 | AY61: 93.3 | AZ61: 73 | BA61: 0 | BB61: 58.4 | BC61: 7.2 | BD61: 96.6 | BE61: 0 | BF61: 0 | BG61: 0 | BH61: 0 | BI61: 0 | BJ61: 0 | BK61: 0 | BL61: 0 | BM61: 0 | BN61: 0 | BO61: 0 | BP61: 0 | BQ61: 0 | BR61: 0 | BS61: 62 | BT61: 0 | BU61: 0 | BV61: 0 | BW61: 52 | BX61: 0 | BY61: -77 | BZ61: 0 | CA61: -30 | CB61: 0 | CC61: 0 | CD61: -7 | CE61: 7 | CF61: 0 | CG61: 0 | CH61: 0 | CI61: 0 | CJ61: 0 | CK61: 0 | CL61: 0 | CM61: 0 | CN61: 0 | CO61: 0 | CP61: 0 | CQ61: 0 | CR61: 0 | CS61: 0 | CT61: -1013 | CU61: 0 | CV61: 0 | CW61: 0 | CX61: 0 | CY61: 0 | CZ61: -891 | DA61: -891 | DB61: -131 | DC61: 0 | DD61: -18 | DE61: -31 | DF61: -2225 | DG61: 0 | DH61: 0 | DI61: 0 | DJ61: 0 | DK61: 0 | DL61: 4.277 | DM61: 29.989 | DN61: 3.722 | DO61: 10.46 | DP61: 595.913 | DQ61: 35.941 | DR61: 5.678 | DS61: 5.678 | DT61: 3.88 | DU61: 920.5
A62: 1 | B62: 45 | C62: 10 | D62: 75 | E62: 1451075 | F62: 12047 | G62: 56 | H62: 0 | I62: 0 | J62: 0 | K62: 0 | L62: 0 | M62: 1 | N62: 0 | O62: 0 | P62: 0 | Q62: 11 | R62: 0 | S62: 0 | T62: 0 | U62: 8 | V62: 0 | W62: 11 | X62: 11 | Y62: 4 | Z62: 0 | AA62: 4 | AB62: 1 | AC62: 5 | AD62: 0 | AE62: 0 | AF62: 0 | AG62: 0 | AH62: 0 | AI62: 0 | AJ62: 0 | AK62: 0 | AL62: 0 | AM62: 0 | AN62: 68.2 | AO62: 0 | AP62: 0 | AQ62: 0 | AR62: 98.6 | AS62: 0 | AT62: 0 | AU62: 0 | AV62: 94.7 | AW62: 0 | AX62: 89.8 | AY62: 89.8 | AZ62: 94.3 | BA62: 0 | BB62: 71.3 | BC62: 16.8 | BD62: 94.5 | BE62: 0 | BF62: 0 | BG62: 0 | BH62: 0 | BI62: 0 | BJ62: 0 | BK62: 0 | BL62: 0 | BM62: 0 | BN62: 0 | BO62: -26 | BP62: 0 | BQ62: 0 | BR62: 0 | BS62: 227 | BT62: 0 | BU62: 0 | BV62: 0 | BW62: 103 | BX62: 0 | BY62: 29 | BZ62: 29 | CA62: 78 | CB62: 0 | CC62: 0 | CD62: 33 | CE62: 25 | CF62: 0 | CG62: 0 | CH62: 0 | CI62: 0 | CJ62: 0 | CK62: 0 | CL62: 0 | CM62: 0 | CN62: 0 | CO62: 0 | CP62: 0 | CQ62: 0 | CR62: 0 | CS62: 0 | CT62: -997 | CU62: 0 | CV62: 0 | CW62: 0 | CX62: -66 | CY62: 0 | CZ62: -217 | DA62: -217 | DB62: -1384 | DC62: 0 | DD62: -28 | DE62: 0 | DF62: -1949 | DG62: 0 | DH62: 0 | DI62: 0 | DJ62: 0 | DK62: 0 | DL62: 4.28 | DM62: 29.154 | DN62: 4.379 | DO62: 5.717 | DP62: 104.417 | DQ62: 76.706 | DR62: 4.885 | DS62: 4.885 | DT62: 15.571 | DU62: 1204.7
A63: 3 | B63: 45 | C63: 10 | D63: 75 | E63: 3451075 | F63: 12063 | G63: 58 | H63: 0 | I63: 0 | J63: 0 | K63: 0 | L63: 0 | M63: 3 | N63: 0 | O63: 0 | P63: 0 | Q63: 11 | R63: 0 | S63: 0 | T63: 0 | U63: 8 | V63: 0 | W63: 11 | X63: 11 | Y63: 4 | Z63: 0 | AA63: 4 | AB63: 1 | AC63: 5 | AD63: 0 | AE63: 0 | AF63: 0 | AG63: 0 | AH63: 0 | AI63: 0 | AJ63: 0 | AK63: 0 | AL63: 0 | AM63: 0 | AN63: 26.1 | AO63: 0 | AP63: 0 | AQ63: 0 | AR63: 98.6 | AS63: 0 | AT63: 0 | AU63: 0 | AV63: 95 | AW63: 0 | AX63: 89.7 | AY63: 89.7 | AZ63: 94.5 | BA63: 0 | BB63: 71.3 | BC63: 17.9 | BD63: 94.6 | BE63: 0 | BF63: 0 | BG63: 0 | BH63: 0 | BI63: 0 | BJ63: 0 | BK63: 0 | BL63: 0 | BM63: 0 | BN63: 0 | BO63: -14 | BP63: 0 | BQ63: 0 | BR63: 0 | BS63: 252 | BT63: 0 | BU63: 0 | BV63: 0 | BW63: 53 | BX63: 0 | BY63: 68 | BZ63: 68 | CA63: 97 | CB63: 0 | CC63: 0 | CD63: -9 | CE63: 29 | CF63: 0 | CG63: 0 | CH63: 0 | CI63: 0 | CJ63: 0 | CK63: 0 | CL63: 0 | CM63: 0 | CN63: 0 | CO63: 0 | CP63: -42 | CQ63: 0 | CR63: 0 | CS63: 0 | CT63: -950 | CU63: 0 | CV63: 0 | CW63: 0 | CX63: -108 | CY63: 0 | CZ63: -215 | DA63: -215 | DB63: -1424 | DC63: 0 | DD63: -76 | DE63: 0 | DF63: -2003 | DG63: 0 | DH63: 0 | DI63: 0 | DJ63: 0 | DK63: 0 | DL63: 4.29 | DM63: 29.142 | DN63: 4.465 | DO63: 5.766 | DP63: 106.447 | DQ63: 37.842 | DR63: 4.934 | DS63: 4.934 | DT63: 15.737 | DU63: 1206.3
A64: 5 | B64: 45 | C64: 10 | D64: 75 | E64: 5451075 | F64: 12039 | G64: 60 | H64: 0 | I64: 0 | J64: 0 | K64: 0 | L64: 0 | M64: 5 | N64: 0 | O64: 0 | P64: 0 | Q64: 11 | R64: 0 | S64: 0 | T64: 0 | U64: 8 | V64: 0 | W64: 11 | X64: 11 | Y64: 4 | Z64: 0 | AA64: 4 | AB64: 1 | AC64: 5 | AD64: 0 | AE64: 0 | AF64: 0 | AG64: 0 | AH64: 0 | AI64: 0 | AJ64: 0 | AK64: 0 | AL64: 0 | AM64: 0 | AN64: 14.5 | AO64: 0 | AP64: 0 | AQ64: 0 | AR64: 98.6 | AS64: 0 | AT64: 0 | AU64: 0 | AV64: 95 | AW64: 0 | AX64: 89.8 | AY64: 89.8 | AZ64: 94.5 | BA64: 0 | BB64: 71.4 | BC64: 17.5 | BD64: 94.8 | BE64: 0 | BF64: 0 | BG64: 0 | BH64: 0 | BI64: 0 | BJ64: 0 | BK64: 0 | BL64: 0 | BM64: 0 | BN64: 0 | BO64: 0 | BP64: 0 | BQ64: 0 | BR64: 0 | BS64: 265 | BT64: 0 | BU64: 0 | BV64: 0 | BW64: 85 | BX64: 0 | BY64: 74 | BZ64: 74 | CA64: 62 | CB64: 0 | CC64: 0 | CD64: 12 | CE64: 16 | CF64: 0 | CG64: 0 | CH64: 0 | CI64: 0 | CJ64: 0 | CK64: 0 | CL64: 0 | CM64: 0 | CN64: 0 | CO64: 0 | CP64: 10 | CQ64: 0 | CR64: 0 | CS64: 0 | CT64: -929 | CU64: 0 | CV64: 0 | CW64: 0 | CX64: -92 | CY64: 0 | CZ64: -196 | DA64: -196 | DB64: -1432 | DC64: 0 | DD64: -32 | DE64: 0 | DF64: -1967 | DG64: 0 | DH64: 0 | DI64: 0 | DJ64: 0 | DK64: 0 | DL64: 4.27 | DM64: 29.102 | DN64: 4.435 | DO64: 5.9 | DP64: 108.139 | DQ64: 36.169 | DR64: 4.903 | DS64: 4.903 | DT64: 17.913 | DU64: 1203.9
A65: 9 | B65: 45 | C65: 10 | D65: 75 | E65: 9451075 | F65: 12039 | G65: 64 | H65: 0 | I65: 0 | J65: 0 | K65: 0 | L65: 0 | M65: 9 | N65: 0 | O65: 0 | P65: 0 | Q65: 11 | R65: 0 | S65: 0 | T65: 0 | U65: 8 | V65: 0 | W65: 11 | X65: 11 | Y65: 4 | Z65: 0 | AA65: 4 | AB65: 1 | AC65: 5 | AD65: 0 | AE65: 0 | AF65: 0 | AG65: 0 | AH65: 0 | AI65: 0 | AJ65: 0 | AK65: 0 | AL65: 0 | AM65: 0 | AN65: 8.1 | AO65: 0 | AP65: 0 | AQ65: 0 | AR65: 98.6 | AS65: 0 | AT65: 0 | AU65: 0 | AV65: 95 | AW65: 0 | AX65: 89.8 | AY65: 89.8 | AZ65: 94.5 | BA65: 0 | BB65: 71.4 | BC65: 17.5 | BD65: 94.8 | BE65: 0 | BF65: 0 | BG65: 0 | BH65: 0 | BI65: 0 | BJ65: 0 | BK65: 0 | BL65: 0 | BM65: 0 | BN65: 0 | BO65: 0 | BP65: 0 | BQ65: 0 | BR65: 0 | BS65: 265 | BT65: 0 | BU65: 0 | BV65: 0 | BW65: 85 | BX65: 0 | BY65: 96 | BZ65: 96 | CA65: 62 | CB65: 0 | CC65: 0 | CD65: 12 | CE65: 16 | CF65: 0 | CG65: 0 | CH65: 0 | CI65: 0 | CJ65: 0 | CK65: 0 | CL65: 0 | CM65: 0 | CN65: 0 | CO65: 0 | CP65: 0 | CQ65: 0 | CR65: 0 | CS65: 0 | CT65: -929 | CU65: 0 | CV65: 0 | CW65: 0 | CX65: -92 | CY65: 0 | CZ65: -196 | DA65: -196 | DB65: -1432 | DC65: 0 | DD65: -32 | DE65: 0 | DF65: -1967 | DG65: 0 | DH65: 0 | DI65: 0 | DJ65: 0 | DK65: 0 | DL65: 4.27 | DM65: 29.102 | DN65: 4.435 | DO65: 5.9 | DP65: 108.139 | DQ65: 36.169 | DR65: 4.903 | DS65: 4.903 | DT65: 17.913 | DU65: 1203.9
A66: 1 | B66: 15 | C66: 15 | D66: 75 | E66: 1151575 | F66: 4173 | G66: 31 | H66: 0 | I66: 0 | J66: 0 | K66: 0 | L66: 0 | M66: 1 | N66: 0 | O66: 0 | P66: 0 | Q66: 4 | R66: 0 | S66: 0 | T66: 0 | U66: 1 | V66: 0 | W66: 4 | X66: 4 | Y66: 2 | Z66: 0 | AA66: 5 | AB66: 4 | AC66: 6 | AD66: 0 | AE66: 0 | AF66: 0 | AG66: 0 | AH66: 0 | AI66: 0 | AJ66: 0 | AK66: 0 | AL66: 0 | AM66: 0 | AN66: 9.4 | AO66: 0 | AP66: 0 | AQ66: 0 | AR66: 99.5 | AS66: 0 | AT66: 0 | AU66: 0 | AV66: 95.9 | AW66: 0 | AX66: 84.9 | AY66: 84.9 | AZ66: 65.6 | BA66: 0 | BB66: 20.8 | BC66: 1.7 | BD66: 28.8 | BE66: 0 | BF66: 0 | BG66: 0 | BH66: 0 | BI66: 0 | BJ66: 0 | BK66: 0 | BL66: 0 | BM66: 0 | BN66: 0 | BO66: 4 | BP66: 0 | BQ66: 0 | BR66: 0 | BS66: 570 | BT66: 0 | BU66: 0 | BV66: 0 | BW66: 129 | BX66: 0 | BY66: 8 | BZ66: 8 | CA66: -1 | CB66: 0 | CC66: 0 | CD66: 0 | CE66: -13 | CF66: 0 | CG66: 0 | CH66: 0 | CI66: 0 | CJ66: 0 | CK66: 0 | CL66: 0 | CM66: 0 | CN66: 0 | CO66: 0 | CP66: 0 | CQ66: 0 | CR66: 0 | CS66: 0 | CT66: -1022 | CU66: 0 | CV66: 0 | CW66: 0 | CX66: 0 | CY66: 0 | CZ66: -624 | DA66: -624 | DB66: -569 | DC66: 0 | DD66: 0 | DE66: 7 | DF66: -5 | DG66: 0 | DH66: 0 | DI66: 0 | DJ66: 0 | DK66: 0 | DL66: 4.276 | DM66: 36.307 | DN66: 3.679 | DO66: 2.549 | DP66: 497.707 | DQ66: 35.955 | DR66: 8.709 | DS66: 8.709 | DT66: 4.363 | DU66: 417.3
A67: 3 | B67: 15 | C67: 15 | D67: 75 | E67: 3151575 | F67: 4177 | G67: 33 | H67: 0 | I67: 0 | J67: 0 | K67: 0 | L67: 0 | M67: 3 | N67: 0 | O67: 0 | P67: 0 | Q67: 4 | R67: 0 | S67: 0 | T67: 0 | U67: 1 | V67: 0 | W67: 4 | X67: 4 | Y67: 2 | Z67: 0 | AA67: 5 | AB67: 4 | AC67: 6 | AD67: 0 | AE67: 0 | AF67: 0 | AG67: 0 | AH67: 0 | AI67: 0 | AJ67: 0 | AK67: 0 | AL67: 0 | AM67: 0 | AN67: 3 | AO67: 0 | AP67: 0 | AQ67: 0 | AR67: 99.5 | AS67: 0 | AT67: 0 | AU67: 0 | AV67: 95.9 | AW67: 0 | AX67: 85 | AY67: 85 | AZ67: 65.4 | BA67: 0 | BB67: 20.9 | BC67: 1.6 | BD67: 28.9 | BE67: 0 | BF67: 0 | BG67: 0 | BH67: 0 | BI67: 0 | BJ67: 0 | BK67: 0 | BL67: 0 | BM67: 0 | BN67: 0 | BO67: 0 | BP67: 0 | BQ67: 0 | BR67: 0 | BS67: 566 | BT67: 0 | BU67: 0 | BV67: 0 | BW67: 125 | BX67: 0 | BY67: 1 | BZ67: 1 | CA67: -4 | CB67: 0 | CC67: 0 | CD67: 0 | CE67: -17 | CF67: 0 | CG67: 0 | CH67: 0 | CI67: 0 | CJ67: 0 | CK67: 0 | CL67: 0 | CM67: 0 | CN67: 0 | CO67: 0 | CP67: 0 | CQ67: 0 | CR67: 0 | CS67: 0 | CT67: -1030 | CU67: 0 | CV67: 0 | CW67: 0 | CX67: 0 | CY67: 0 | CZ67: -627 | DA67: -627 | DB67: -573 | DC67: 0 | DD67: 0 | DE67: 5 | DF67: -3 | DG67: 0 | DH67: 0 | DI67: 0 | DJ67: 0 | DK67: 0 | DL67: 4.273 | DM67: 36.279 | DN67: 3.679 | DO67: 2.544 | DP67: 499.43 | DQ67: 34.796 | DR67: 8.695 | DS67: 8.695 | DT67: 4.355 | DU67: 417.7
A68: 5 | B68: 15 | C68: 15 | D68: 75 | E68: 5151575 | F68: 4177 | G68: 35 | H68: 0 | I68: 0 | J68: 0 | K68: 0 | L68: 0 | M68: 5 | N68: 0 | O68: 0 | P68: 0 | Q68: 4 | R68: 0 | S68: 0 | T68: 0 | U68: 1 | V68: 0 | W68: 4 | X68: 4 | Y68: 2 | Z68: 0 | AA68: 5 | AB68: 4 | AC68: 6 | AD68: 0 | AE68: 0 | AF68: 0 | AG68: 0 | AH68: 0 | AI68: 0 | AJ68: 0 | AK68: 0 | AL68: 0 | AM68: 0 | AN68: 1.8 | AO68: 0 | AP68: 0 | AQ68: 0 | AR68: 99.5 | AS68: 0 | AT68: 0 | AU68: 0 | AV68: 95.9 | AW68: 0 | AX68: 85 | AY68: 85 | AZ68: 65.4 | BA68: 0 | BB68: 20.9 | BC68: 1.6 | BD68: 28.9 | BE68: 0 | BF68: 0 | BG68: 0 | BH68: 0 | BI68: 0 | BJ68: 0 | BK68: 0 | BL68: 0 | BM68: 0 | BN68: 0 | BO68: 0 | BP68: 0 | BQ68: 0 | BR68: 0 | BS68: 566 | BT68: 0 | BU68: 0 | BV68: 0 | BW68: 125 | BX68: 0 | BY68: 1 | BZ68: 1 | CA68: -4 | CB68: 0 | CC68: 0 | CD68: 0 | CE68: -17 | CF68: 0 | CG68: 0 | CH68: 0 | CI68: 0 | CJ68: 0 | CK68: 0 | CL68: 0 | CM68: 0 | CN68: 0 | CO68: 0 | CP68: 0 | CQ68: 0 | CR68: 0 | CS68: 0 | CT68: -1030 | CU68: 0 | CV68: 0 | CW68: 0 | CX68: 0 | CY68: 0 | CZ68: -627 | DA68: -627 | DB68: -573 | DC68: 0 | DD68: 0 | DE68: 5 | DF68: -3 | DG68: 0 | DH68: 0 | DI68: 0 | DJ68: 0 | DK68: 0 | DL68: 4.273 | DM68: 36.279 | DN68: 3.679 | DO68: 2.544 | DP68: 499.43 | DQ68: 34.796 | DR68: 8.695 | DS68: 8.695 | DT68: 4.355 | DU68: 417.7
A69: 9 | B69: 15 | C69: 15 | D69: 75 | E69: 9151575 | F69: 4177 | G69: 39 | H69: 0 | I69: 0 | J69: 0 | K69: 0 | L69: 0 | M69: 9 | N69: 0 | O69: 0 | P69: 0 | Q69: 4 | R69: 0 | S69: 0 | T69: 0 | U69: 1 | V69: 0 | W69: 4 | X69: 4 | Y69: 2 | Z69: 0 | AA69: 5 | AB69: 4 | AC69: 6 | AD69: 0 | AE69: 0 | AF69: 0 | AG69: 0 | AH69: 0 | AI69: 0 | AJ69: 0 | AK69: 0 | AL69: 0 | AM69: 0 | AN69: 1 | AO69: 0 | AP69: 0 | AQ69: 0 | AR69: 99.5 | AS69: 0 | AT69: 0 | AU69: 0 | AV69: 95.9 | AW69: 0 | AX69: 85 | AY69: 85 | AZ69: 65.4 | BA69: 0 | BB69: 20.9 | BC69: 1.6 | BD69: 28.9 | BE69: 0 | BF69: 0 | BG69: 0 | BH69: 0 | BI69: 0 | BJ69: 0 | BK69: 0 | BL69: 0 | BM69: 0 | BN69: 0 | BO69: 0 | BP69: 0 | BQ69: 0 | BR69: 0 | BS69: 566 | BT69: 0 | BU69: 0 | BV69: 0 | BW69: 125 | BX69: 0 | BY69: 1 | BZ69: 1 | CA69: -4 | CB69: 0 | CC69: 0 | CD69: 0 | CE69: -17 | CF69: 0 | CG69: 0 | CH69: 0 | CI69: 0 | CJ69: 0 | CK69: 0 | CL69: 0 | CM69: 0 | CN69: 0 | CO69: 0 | CP69: 0 | CQ69: 0 | CR69: 0 | CS69: 0 | CT69: -1030 | CU69: 0 | CV69: 0 | CW69: 0 | CX69: 0 | CY69: 0 | CZ69: -627 | DA69: -627 | DB69: -573 | DC69: 0 | DD69: 0 | DE69: 5 | DF69: -3 | DG69: 0 | DH69: 0 | DI69: 0 | DJ69: 0 | DK69: 0 | DL69: 4.273 | DM69: 36.279 | DN69: 3.679 | DO69: 2.544 | DP69: 499.43 | DQ69: 34.796 | DR69: 8.695 | DS69: 8.695 | DT69: 4.355 | DU69: 417.7
A70: 1 | B70: 30 | C70: 15 | D70: 75 | E70: 1301575 | F70: 9188 | G70: 46 | H70: 0 | I70: 0 | J70: 0 | K70: 0 | L70: 0 | M70: 1 | N70: 0 | O70: 0 | P70: 0 | Q70: 9 | R70: 0 | S70: 0 | T70: 0 | U70: 1 | V70: 0 | W70: 8 | X70: 8 | Y70: 4 | Z70: 0 | AA70: 4 | AB70: 7 | AC70: 4 | AD70: 0 | AE70: 0 | AF70: 0 | AG70: 0 | AH70: 0 | AI70: 0 | AJ70: 0 | AK70: 0 | AL70: 0 | AM70: 0 | AN70: 7.2 | AO70: 0 | AP70: 0 | AQ70: 0 | AR70: 98.8 | AS70: 0 | AT70: 0 | AU70: 0 | AV70: 97 | AW70: 0 | AX70: 93.2 | AY70: 93.2 | AZ70: 72.8 | BA70: 0 | BB70: 58.3 | BC70: 2 | BD70: 96.5 | BE70: 0 | BF70: 0 | BG70: 0 | BH70: 0 | BI70: 0 | BJ70: 0 | BK70: 0 | BL70: 0 | BM70: 0 | BN70: 0 | BO70: 10 | BP70: 0 | BQ70: 0 | BR70: 0 | BS70: 61 | BT70: 0 | BU70: 0 | BV70: 0 | BW70: 90 | BX70: 0 | BY70: -22 | BZ70: -22 | CA70: -26 | CB70: 0 | CC70: 0 | CD70: 0 | CE70: 38 | CF70: 0 | CG70: 0 | CH70: 0 | CI70: 0 | CJ70: 0 | CK70: 0 | CL70: 0 | CM70: 0 | CN70: 0 | CO70: 0 | CP70: 0 | CQ70: 0 | CR70: 0 | CS70: 0 | CT70: -1004 | CU70: 0 | CV70: 0 | CW70: 0 | CX70: 0 | CY70: 0 | CZ70: -870 | DA70: -870 | DB70: -143 | DC70: 0 | DD70: -36 | DE70: 0 | DF70: -2242 | DG70: 0 | DH70: 0 | DI70: 0 | DJ70: 0 | DK70: 0 | DL70: 4.273 | DM70: 30.031 | DN70: 3.698 | DO70: 10.355 | DP70: 586.154 | DQ70: 32.916 | DR70: 5.718 | DS70: 5.718 | DT70: 3.851 | DU70: 918.8
A71: 3 | B71: 30 | C71: 15 | D71: 75 | E71: =VALUE(_xlfn.CONCAT(A71,B71,C71,D71)) -> 3301575 | F71: 9198 | G71: 48 | H71: 0 | I71: 0 | J71: 0 | K71: 0 | L71: 0 | M71: 3 | N71: 0 | O71: 0 | P71: 0 | Q71: 9 | R71: 0 | S71: 0 | T71: 0 | U71: 1 | V71: 0 | W71: 8 | X71: 8 | Y71: 4 | Z71: 0 | AA71: 4 | AB71: 7 | AC71: 4 | AD71: 0 | AE71: 0 | AF71: 0 | AG71: 0 | AH71: 0 | AI71: 0 | AJ71: 0 | AK71: 0 | AL71: 0 | AM71: 0 | AN71: 2.4 | AO71: 0 | AP71: 0 | AQ71: 0 | AR71: 98.8 | AS71: 0 | AT71: 0 | AU71: 0 | AV71: 97 | AW71: 0 | AX71: 93.3 | AY71: 93.3 | AZ71: 72.8 | BA71: 0 | BB71: 58.4 | BC71: 2 | BD71: 96.5 | BE71: 0 | BF71: 0 | BG71: 0 | BH71: 0 | BI71: 0 | BJ71: 0 | BK71: 0 | BL71: 0 | BM71: 0 | BN71: 0 | BO71: 0 | BP71: 0 | BQ71: 0 | BR71: 0 | BS71: 52 | BT71: 0 | BU71: 0 | BV71: 0 | BW71: 70 | BX71: 0 | BY71: -44 | BZ71: -44 | CA71: -47 | CB71: 0 | CC71: 0 | CD71: 0 | CE71: 28 | CF71: 0 | CG71: 0 | CH71: 0 | CI71: 0 | CJ71: 0 | CK71: 0 | CL71: 0 | CM71: 0 | CN71: 0 | CO71: 0 | CP71: 0 | CQ71: 0 | CR71: 0 | CS71: 0 | CT71: -1012 | CU71: 0 | CV71: 0 | CW71: 0 | CX71: 0 | CY71: 0 | CZ71: -880 | DA71: -880 | DB71: -148 | DC71: 0 | DD71: -36 | DE71: 0 | DF71: -2250 | DG71: 0 | DH71: 0 | DI71: 0 | DJ71: 0 | DK71: 0 | DL71: 4.271 | DM71: 30.038 | DN71: 3.711 | DO71: 10.369 | DP71: 586.547 | DQ71: 32.566 | DR71: 5.744 | DS71: 5.744 | DT71: 3.861 | DU71: =0.1*F71 -> 919.8
A72: 5 | B72: 30 | C72: 15 | D72: 75 | E72: 5301575 | F72: 9198 | G72: 50 | H72: 0 | I72: 0 | J72: 0 | K72: 0 | L72: 0 | M72: 5 | N72: 0 | O72: 0 | P72: 0 | Q72: 9 | R72: 0 | S72: 0 | T72: 0 | U72: 1 | V72: 0 | W72: 8 | X72: 8 | Y72: 4 | Z72: 0 | AA72: 4 | AB72: 7 | AC72: 4 | AD72: 0 | AE72: 0 | AF72: 0 | AG72: 0 | AH72: 0 | AI72: 0 | AJ72: 0 | AK72: 0 | AL72: 0 | AM72: 0 | AN72: 1.4 | AO72: 0 | AP72: 0 | AQ72: 0 | AR72: 98.8 | AS72: 0 | AT72: 0 | AU72: 0 | AV72: 97 | AW72: 0 | AX72: 93.3 | AY72: 93.3 | AZ72: 72.8 | BA72: 0 | BB72: 58.4 | BC72: 2 | BD72: 96.5 | BE72: 0 | BF72: 0 | BG72: 0 | BH72: 0 | BI72: 0 | BJ72: 0 | BK72: 0 | BL72: 0 | BM72: 0 | BN72: 0 | BO72: 0 | BP72: 0 | BQ72: 0 | BR72: 0 | BS72: 52 | BT72: 0 | BU72: 0 | BV72: 0 | BW72: 70 | BX72: 0 | BY72: -44 | BZ72: -44 | CA72: -47 | CB72: 0 | CC72: 0 | CD72: 0 | CE72: 28 | CF72: 0 | CG72: 0 | CH72: 0 | CI72: 0 | CJ72: 0 | CK72: 0 | CL72: 0 | CM72: 0 | CN72: 0 | CO72: 0 | CP72: 0 | CQ72: 0 | CR72: 0 | CS72: 0 | CT72: -1012 | CU72: 0 | CV72: 0 | CW72: 0 | CX72: 0 | CY72: 0 | CZ72: -880 | DA72: -880 | DB72: -148 | DC72: 0 | DD72: -36 | DE72: 0 | DF72: -2250 | DG72: 0 | DH72: 0 | DI72: 0 | DJ72: 0 | DK72: 0 | DL72: 4.271 | DM72: 30.038 | DN72: 3.711 | DO72: 10.369 | DP72: 586.547 | DQ72: 32.566 | DR72: 5.744 | DS72: 5.744 | DT72: 3.861 | DU72: 919.8
A73: 9 | B73: 30 | C73: 15 | D73: 75 | E73: 9301575 | F73: 9198 | G73: 54 | H73: 0 | I73: 0 | J73: 0 | K73: 0 | L73: 0 | M73: 9 | N73: 0 | O73: 0 | P73: 0 | Q73: 9 | R73: 0 | S73: 0 | T73: 0 | U73: 1 | V73: 0 | W73: 8 | X73: 8 | Y73: 4 | Z73: 0 | AA73: 4 | AB73: 7 | AC73: 4 | AD73: 0 | AE73: 0 | AF73: 0 | AG73: 0 | AH73: 0 | AI73: 0 | AJ73: 0 | AK73: 0 | AL73: 0 | AM73: 0 | AN73: 0.8 | AO73: 0 | AP73: 0 | AQ73: 0 | AR73: 98.8 | AS73: 0 | AT73: 0 | AU73: 0 | AV73: 97 | AW73: 0 | AX73: 93.3 | AY73: 93.3 | AZ73: 72.8 | BA73: 0 | BB73: 58.4 | BC73: 2 | BD73: 96.5 | BE73: 0 | BF73: 0 | BG73: 0 | BH73: 0 | BI73: 0 | BJ73: 0 | BK73: 0 | BL73: 0 | BM73: 0 | BN73: 0 | BO73: 0 | BP73: 0 | BQ73: 0 | BR73: 0 | BS73: 52 | BT73: 0 | BU73: 0 | BV73: 0 | BW73: 70 | BX73: 0 | BY73: -44 | BZ73: -44 | CA73: -47 | CB73: 0 | CC73: 0 | CD73: 0 | CE73: 28 | CF73: 0 | CG73: 0 | CH73: 0 | CI73: 0 | CJ73: 0 | CK73: 0 | CL73: 0 | CM73: 0 | CN73: 0 | CO73: 0 | CP73: 0 | CQ73: 0 | CR73: 0 | CS73: 0 | CT73: -1012 | CU73: 0 | CV73: 0 | CW73: 0 | CX73: 0 | CY73: 0 | CZ73: -880 | DA73: -880 | DB73: -148 | DC73: 0 | DD73: -36 | DE73: 0 | DF73: -2250 | DG73: 0 | DH73: 0 | DI73: 0 | DJ73: 0 | DK73: 0 | DL73: 4.271 | DM73: 30.038 | DN73: 3.711 | DO73: 10.369 | DP73: 586.547 | DQ73: 32.566 | DR73: 5.744 | DS73: 5.744 | DT73: 3.861 | DU73: 919.8
A74: 1 | B74: 45 | C74: 15 | D74: 75 | E74: 1451575 | F74: 14235 | G74: 61 | H74: 0 | I74: 0 | J74: 0 | K74: 0 | L74: 0 | M74: 1 | N74: 0 | O74: 0 | P74: 0 | Q74: 14 | R74: 0 | S74: 0 | T74: 0 | U74: 2 | V74: 0 | W74: 12 | X74: 12 | Y74: 5 | Z74: 0 | AA74: 5 | AB74: 1 | AC74: 9 | AD74: 0 | AE74: 0 | AF74: 0 | AG74: 0 | AH74: 0 | AI74: 0 | AJ74: 0 | AK74: 0 | AL74: 0 | AM74: 0 | AN74: 20.6 | AO74: 0 | AP74: 0 | AQ74: 0 | AR74: 98.3 | AS74: 0 | AT74: 0 | AU74: 0 | AV74: 97.2 | AW74: 0 | AX74: 96.4 | AY74: 96.4 | AZ74: 90 | BA74: 0 | BB74: 72.3 | BC74: 23.1 | BD74: 66.9 | BE74: 0 | BF74: 0 | BG74: 0 | BH74: 0 | BI74: 0 | BJ74: 0 | BK74: 0 | BL74: 0 | BM74: 0 | BN74: 0 | BO74: 26 | BP74: 0 | BQ74: 0 | BR74: 0 | BS74: 89 | BT74: 0 | BU74: 0 | BV74: 0 | BW74: 51 | BX74: 0 | BY74: 99 | BZ74: 99 | CA74: 2 | CB74: 0 | CC74: 0 | CD74: -13 | CE74: 4 | CF74: 0 | CG74: 0 | CH74: 0 | CI74: 0 | CJ74: 0 | CK74: 0 | CL74: 0 | CM74: 0 | CN74: 0 | CO74: 0 | CP74: 0 | CQ74: 0 | CR74: 0 | CS74: 0 | CT74: -869 | CU74: 0 | CV74: 0 | CW74: 0 | CX74: -75 | CY74: 0 | CZ74: -1080 | DA74: -1080 | DB74: -959 | DC74: 0 | DD74: -8 | DE74: 0 | DF74: -10 | DG74: 0 | DH74: 0 | DI74: 0 | DJ74: 0 | DK74: 0 | DL74: 4.276 | DM74: 28.228 | DN74: 4.64 | DO74: 2.443 | DP74: 582.982 | DQ74: 38.971 | DR74: 11.301 | DS74: 11.301 | DT74: 5.664 | DU74: 1423.5
A75: 3 | B75: 45 | C75: 15 | D75: 75 | E75: 3451575 | F75: 14261 | G75: 63 | H75: 0 | I75: 0 | J75: 0 | K75: 0 | L75: 0 | M75: 3 | N75: 0 | O75: 0 | P75: 0 | Q75: 14 | R75: 0 | S75: 0 | T75: 0 | U75: 2 | V75: 0 | W75: 12 | X75: 12 | Y75: 5 | Z75: 0 | AA75: 5 | AB75: 1 | AC75: 9 | AD75: 0 | AE75: 0 | AF75: 0 | AG75: 0 | AH75: 0 | AI75: 0 | AJ75: 0 | AK75: 0 | AL75: 0 | AM75: 0 | AN75: 7.3 | AO75: 0 | AP75: 0 | AQ75: 0 | AR75: 98.3 | AS75: 0 | AT75: 0 | AU75: 0 | AV75: 97.2 | AW75: 0 | AX75: 96.5 | AY75: 96.5 | AZ75: 89.9 | BA75: 0 | BB75: 72.3 | BC75: 22.3 | BD75: 66.9 | BE75: 0 | BF75: 0 | BG75: 0 | BH75: 0 | BI75: 0 | BJ75: 0 | BK75: 0 | BL75: 0 | BM75: 0 | BN75: 0 | BO75: 0 | BP75: 0 | BQ75: 0 | BR75: 0 | BS75: 82 | BT75: 0 | BU75: 0 | BV75: 0 | BW75: 46 | BX75: 0 | BY75: 76 | BZ75: 76 | CA75: -17 | CB75: 0 | CC75: 0 | CD75: -30 | CE75: -38 | CF75: 0 | CG75: 0 | CH75: 0 | CI75: 0 | CJ75: 0 | CK75: 0 | CL75: 0 | CM75: 0 | CN75: 0 | CO75: 0 | CP75: 0 | CQ75: 0 | CR75: 0 | CS75: 0 | CT75: -884 | CU75: 0 | CV75: 0 | CW75: 0 | CX75: -105 | CY75: 0 | CZ75: -1139 | DA75: -1139 | DB75: -1047 | DC75: 0 | DD75: -38 | DE75: 0 | DF75: -46 | DG75: 0 | DH75: 0 | DI75: 0 | DJ75: 0 | DK75: 0 | DL75: 4.289 | DM75: 28.262 | DN75: 4.576 | DO75: 2.433 | DP75: 578.476 | DQ75: 37.104 | DR75: 10.989 | DS75: 10.989 | DT75: 5.705 | DU75: 1426.1
A76: 5 | B76: 45 | C76: 15 | D76: 75 | E76: 5451575 | F76: 14261 | G76: 65 | H76: 0 | I76: 0 | J76: 0 | K76: 0 | L76: 0 | M76: 5 | N76: 0 | O76: 0 | P76: 0 | Q76: 14 | R76: 0 | S76: 0 | T76: 0 | U76: 2 | V76: 0 | W76: 12 | X76: 12 | Y76: 5 | Z76: 0 | AA76: 5 | AB76: 1 | AC76: 9 | AD76: 0 | AE76: 0 | AF76: 0 | AG76: 0 | AH76: 0 | AI76: 0 | AJ76: 0 | AK76: 0 | AL76: 0 | AM76: 0 | AN76: 4.4 | AO76: 0 | AP76: 0 | AQ76: 0 | AR76: 98.3 | AS76: 0 | AT76: 0 | AU76: 0 | AV76: 97.2 | AW76: 0 | AX76: 96.5 | AY76: 96.5 | AZ76: 89.9 | BA76: 0 | BB76: 72.3 | BC76: 22.3 | BD76: 66.9 | BE76: 0 | BF76: 0 | BG76: 0 | BH76: 0 | BI76: 0 | BJ76: 0 | BK76: 0 | BL76: 0 | BM76: 0 | BN76: 0 | BO76: 0 | BP76: 0 | BQ76: 0 | BR76: 0 | BS76: 82 | BT76: 0 | BU76: 0 | BV76: 0 | BW76: 46 | BX76: 0 | BY76: 76 | BZ76: 76 | CA76: -17 | CB76: 0 | CC76: 0 | CD76: -30 | CE76: -38 | CF76: 0 | CG76: 0 | CH76: 0 | CI76: 0 | CJ76: 0 | CK76: 0 | CL76: 0 | CM76: 0 | CN76: 0 | CO76: 0 | CP76: 0 | CQ76: 0 | CR76: 0 | CS76: 0 | CT76: -884 | CU76: 0 | CV76: 0 | CW76: 0 | CX76: -105 | CY76: 0 | CZ76: -1139 | DA76: -1139 | DB76: -1047 | DC76: 0 | DD76: -38 | DE76: 0 | DF76: -46 | DG76: 0 | DH76: 0 | DI76: 0 | DJ76: 0 | DK76: 0 | DL76: 4.289 | DM76: 28.262 | DN76: 4.576 | DO76: 2.433 | DP76: 578.476 | DQ76: 37.104 | DR76: 10.989 | DS76: 10.989 | DT76: 5.705 | DU76: 1426.1
A77: 9 | B77: 45 | C77: 15 | D77: 75 | E77: 9451575 | F77: 14261 | G77: 69 | H77: 0 | I77: 0 | J77: 0 | K77: 0 | L77: 0 | M77: 9 | N77: 0 | O77: 0 | P77: 0 | Q77: 14 | R77: 0 | S77: 0 | T77: 0 | U77: 2 | V77: 0 | W77: 12 | X77: 12 | Y77: 5 | Z77: 0 | AA77: 5 | AB77: 1 | AC77: 9 | AD77: 0 | AE77: 0 | AF77: 0 | AG77: 0 | AH77: 0 | AI77: 0 | AJ77: 0 | AK77: 0 | AL77: 0 | AM77: 0 | AN77: 2.4 | AO77: 0 | AP77: 0 | AQ77: 0 | AR77: 98.3 | AS77: 0 | AT77: 0 | AU77: 0 | AV77: 97.2 | AW77: 0 | AX77: 96.5 | AY77: 96.5 | AZ77: 89.9 | BA77: 0 | BB77: 72.3 | BC77: 22.3 | BD77: 66.9 | BE77: 0 | BF77: 0 | BG77: 0 | BH77: 0 | BI77: 0 | BJ77: 0 | BK77: 0 | BL77: 0 | BM77: 0 | BN77: 0 | BO77: 0 | BP77: 0 | BQ77: 0 | BR77: 0 | BS77: 82 | BT77: 0 | BU77: 0 | BV77: 0 | BW77: 46 | BX77: 0 | BY77: 76 | BZ77: 76 | CA77: -17 | CB77: 0 | CC77: 0 | CD77: -30 | CE77: -38 | CF77: 0 | CG77: 0 | CH77: 0 | CI77: 0 | CJ77: 0 | CK77: 0 | CL77: 0 | CM77: 0 | CN77: 0 | CO77: 0 | CP77: 0 | CQ77: 0 | CR77: 0 | CS77: 0 | CT77: -884 | CU77: 0 | CV77: 0 | CW77: 0 | CX77: -105 | CY77: 0 | CZ77: -1139 | DA77: -1139 | DB77: -1047 | DC77: 0 | DD77: -38 | DE77: 0 | DF77: -46 | DG77: 0 | DH77: 0 | DI77: 0 | DJ77: 0 | DK77: 0 | DL77: 4.289 | DM77: 28.262 | DN77: 4.576 | DO77: 2.433 | DP77: 578.476 | DQ77: 37.104 | DR77: 10.989 | DS77: 10.989 | DT77: 5.705 | DU77: 1426.1
